Department Family,Entity,Date of Payment,Expense Type,Expense Area,Supplier,Voluntary & Community Sector,SME Class,Sole Trader,D-U-N-S Number,Transaction number,PSPES Level 2,Narrative,Postal Code,Amount in Sterling,Grant?
Communities & Local Government,DCLG,01/04/2016,Accommodation - actuals,Casey Review,REDFERN TRAVEL LIMITED,,Small,,213089972,2100263390,Business Travel Accommodation,Consolidated Monthly Travel February Hotels,BD1 3AZ,251,
Communities & Local Government,DCLG,01/04/2016,Accommodation - actuals,Decentralisation and Local Growth,REDFERN TRAVEL LIMITED,,Small,,213089972,2100263390,Business Travel Accommodation,Consolidated Monthly Travel February Hotels,BD1 3AZ,"1,105.00",
Communities & Local Government,DCLG,01/04/2016,Accommodation - actuals,Decentralisation and Local Growth,REDFERN TRAVEL LIMITED,,Small,,213089972,2100263390,Business Travel Accommodation,Consolidated Monthly Travel February Hotels,BD1 3AZ,250,
Communities & Local Government,DCLG,01/04/2016,Accommodation - actuals,Decentralisation and Local Growth,REDFERN TRAVEL LIMITED,,Small,,213089972,2100263390,Business Travel Accommodation,Consolidated Monthly Travel February Hotels,BD1 3AZ,655.21,
Communities & Local Government,DCLG,01/04/2016,Accommodation - actuals,Decentralisation and Local Growth,REDFERN TRAVEL LIMITED,,Small,,213089972,2100263390,Business Travel Accommodation,Consolidated Monthly Travel February Hotels,BD1 3AZ,"1,949.89",
Communities & Local Government,DCLG,01/04/2016,Accommodation - actuals,Decentralisation and Local Growth,REDFERN TRAVEL LIMITED,,Small,,213089972,2100263390,Business Travel Accommodation,Consolidated Monthly Travel February Hotels,BD1 3AZ,585.89,
Communities & Local Government,DCLG,01/04/2016,Accommodation - actuals,Decentralisation and Local Growth,REDFERN TRAVEL LIMITED,,Small,,213089972,2100263390,Business Travel Accommodation,Consolidated Monthly Travel February Hotels,BD1 3AZ,389.65,
Communities & Local Government,DCLG,01/04/2016,Accommodation - actuals,Decentralisation and Local Growth,REDFERN TRAVEL LIMITED,,Small,,213089972,2100263390,Business Travel Accommodation,Consolidated Monthly Travel February Hotels,BD1 3AZ,331.5,
Communities & Local Government,DCLG,01/04/2016,Accommodation - actuals,Decentralisation and Local Growth,REDFERN TRAVEL LIMITED,,Small,,213089972,2100263390,Business Travel Accommodation,Consolidated Monthly Travel February Hotels,BD1 3AZ,730.95,
Communities & Local Government,DCLG,01/04/2016,Accommodation - actuals,Decentralisation and Local Growth,REDFERN TRAVEL LIMITED,,Small,,213089972,2100263390,Business Travel Accommodation,Consolidated Monthly Travel February Hotels,BD1 3AZ,"2,381.18",
Communities & Local Government,DCLG,01/04/2016,Accommodation - actuals,Finance,REDFERN TRAVEL LIMITED,,Small,,213089972,2100263390,Business Travel Accommodation,Consolidated Monthly Travel February Hotels,BD1 3AZ,"1,470.89",
Communities & Local Government,DCLG,01/04/2016,Accommodation - actuals,Finance,REDFERN TRAVEL LIMITED,,Small,,213089972,2100263390,Business Travel Accommodation,Consolidated Monthly Travel February Hotels,BD1 3AZ,327.95,
Communities & Local Government,DCLG,01/04/2016,Accommodation - actuals,Housing & Planning,REDFERN TRAVEL LIMITED,,Small,,213089972,2100263390,Business Travel Accommodation,Consolidated Monthly Travel February Hotels,BD1 3AZ,356.1,
Communities & Local Government,DCLG,01/04/2016,Accommodation - actuals,Local Government & Public Services,REDFERN TRAVEL LIMITED,,Small,,213089972,2100263390,Business Travel Accommodation,Consolidated Monthly Travel February Hotels,BD1 3AZ,254.16,
Communities & Local Government,DCLG,01/04/2016,Accommodation - actuals,Local Government & Public Services,REDFERN TRAVEL LIMITED,,Small,,213089972,2100263390,Business Travel Accommodation,Consolidated Monthly Travel February Hotels,BD1 3AZ,936.71,
Communities & Local Government,DCLG,01/04/2016,Accommodation - actuals,Local Government & Public Services,REDFERN TRAVEL LIMITED,,Small,,213089972,2100263390,Business Travel Accommodation,Consolidated Monthly Travel February Hotels,BD1 3AZ,"2,921.40",
Communities & Local Government,DCLG,01/04/2016,Accommodation - actuals,Local Government & Public Services,REDFERN TRAVEL LIMITED,,Small,,213089972,2100263390,Business Travel Accommodation,Consolidated Monthly Travel February Hotels,BD1 3AZ,328,
Communities & Local Government,DCLG,01/04/2016,Accommodation - actuals,Local Government & Public Services,REDFERN TRAVEL LIMITED,,Small,,213089972,2100263390,Business Travel Accommodation,Consolidated Monthly Travel February Hotels,BD1 3AZ,334.03,
Communities & Local Government,DCLG,01/04/2016,Accommodation - actuals,Local Government & Public Services,REDFERN TRAVEL LIMITED,,Small,,213089972,2100263390,Business Travel Accommodation,Consolidated Monthly Travel February Hotels,BD1 3AZ,456.5,
Communities & Local Government,DCLG,01/04/2016,Accommodation - actuals,Local Government & Public Services,REDFERN TRAVEL LIMITED,,Small,,213089972,2100263390,Business Travel Accommodation,Consolidated Monthly Travel February Hotels,BD1 3AZ,444.68,
Communities & Local Government,DCLG,01/04/2016,Accommodation - actuals,Local Government & Public Services,REDFERN TRAVEL LIMITED,,Small,,213089972,2100263390,Business Travel Accommodation,Consolidated Monthly Travel February Hotels,BD1 3AZ,904.98,
Communities & Local Government,DCLG,01/04/2016,Accommodation - actuals,Local Government & Public Services,REDFERN TRAVEL LIMITED,,Small,,213089972,2100263390,Business Travel Accommodation,Consolidated Monthly Travel February Hotels,BD1 3AZ,699.4,
Communities & Local Government,DCLG,01/04/2016,Accommodation - actuals,Local Government & Public Services,REDFERN TRAVEL LIMITED,,Small,,213089972,2100263390,Business Travel Accommodation,Consolidated Monthly Travel February Hotels,BD1 3AZ,787.71,
Communities & Local Government,DCLG,01/04/2016,Accommodation - actuals,Local Government & Public Services,REDFERN TRAVEL LIMITED,,Small,,213089972,2100263390,Business Travel Accommodation,Consolidated Monthly Travel February Hotels,BD1 3AZ,264.19,
Communities & Local Government,DCLG,01/04/2016,Agency Staff,Decentralisation and Local Growth,BROOK STREET UK LTD,,Large,,364940028,5106220822,Contingent Labour,Interim Manager,AL1 4JB,648.72,
Communities & Local Government,DCLG,01/04/2016,Agency Staff,Decentralisation and Local Growth,BROOK STREET UK LTD,,Large,,364940028,5106220823,Contingent Labour,Temporary Staff to Support GDT Project C,AL1 4JB,480.94,
Communities & Local Government,DCLG,01/04/2016,Agency Staff,Decentralisation and Local Growth,BROOK STREET UK LTD,,Large,,364940028,5106220830,Contingent Labour,Interim Manager,AL1 4JB,637.91,
Communities & Local Government,DCLG,01/04/2016,Agency Staff,Decentralisation and Local Growth,BROOK STREET UK LTD,,Large,,364940028,5106220838,Contingent Labour,Agency Staff ,AL1 4JB,493.2,
Communities & Local Government,DCLG,01/04/2016,Agency Staff,Decentralisation and Local Growth,BROOK STREET UK LTD,,Large,,364940028,5106220839,Contingent Labour,Agency Staff - Brook Street,AL1 4JB,493.2,
Communities & Local Government,DCLG,01/04/2016,Agency Staff,Decentralisation and Local Growth,BROOK STREET UK LTD,,Large,,364940028,5106220840,Contingent Labour,2 Temporary staff for e-claims,AL1 4JB,513.74,
Communities & Local Government,DCLG,01/04/2016,Agency Staff,Decentralisation and Local Growth,BROOK STREET UK LTD,,Large,,364940028,5106220877,Contingent Labour,2 Temporary staff for e-claims,AL1 4JB,593.72,
Communities & Local Government,DCLG,01/04/2016,Agency Staff,Finance,BROOK STREET UK LTD,,Large,,364940028,5106220825,Contingent Labour,Interim Admin support Rate Increase,AL1 4JB,464.35,
Communities & Local Government,DCLG,01/04/2016,Agency Staff,Finance,BROOK STREET UK LTD,,Large,,364940028,5106220851,Contingent Labour,Interim Admin support Rate Increase,AL1 4JB,613.61,
Communities & Local Government,DCLG,01/04/2016,Agency Staff,Finance,BROOK STREET UK LTD,,Large,,364940028,5106220852,Contingent Labour,Interim Admin support,AL1 4JB,480.94,
Communities & Local Government,DCLG,01/04/2016,Agency Staff,Finance,BROOK STREET UK LTD,,Large,,364940028,5106220853,Contingent Labour,Interim Admin support,AL1 4JB,414.6,
Communities & Local Government,DCLG,01/04/2016,Agency Staff,Finance,BROOK STREET UK LTD,,Large,,364940028,5106220854,Contingent Labour,Interim Admin support,AL1 4JB,575.4,
Communities & Local Government,DCLG,01/04/2016,Agency Staff,Finance,BROOK STREET UK LTD,,Large,,364940028,5106220855,Contingent Labour,Interim Admin support,AL1 4JB,555.02,
Communities & Local Government,DCLG,01/04/2016,Agency Staff,"Strategy, Communications and Private Office",BROOK STREET UK LTD,,Large,,364940028,5106220817,Contingent Labour,Correspondance Interim Staff 15-16,AL1 4JB,284.44,
Communities & Local Government,DCLG,01/04/2016,Air Travel,Decentralisation and Local Growth,REDFERN TRAVEL LIMITED,,Small,,213089972,2100263390,Air,Consolidated Monthly Travel February Air Tickets,BD1 3AZ,"2,350.28",
Communities & Local Government,DCLG,01/04/2016,Air Travel,Decentralisation and Local Growth,REDFERN TRAVEL LIMITED,,Small,,213089972,2100263390,Air,Consolidated Monthly Travel February Air Tickets,BD1 3AZ,433.2,
Communities & Local Government,DCLG,01/04/2016,Air Travel,Housing & Planning,REDFERN TRAVEL LIMITED,,Small,,213089972,2100263390,Air,Consolidated Monthly Travel February Air Tickets,BD1 3AZ,314.21,
Communities & Local Government,DCLG,01/04/2016,Air Travel,"Strategy, Communications and Private Office",REDFERN TRAVEL LIMITED,,Small,,213089972,2100263390,Air,Consolidated Monthly Travel February Air Tickets,BD1 3AZ,554.71,
Communities & Local Government,DCLG,01/04/2016,Catering,Housing & Planning,BOUYGUES E&S FM UK LTD (CATERING),,Large,,,2100263399,Business Support,Brownfield Pilot Register Workshop,SE1 7NQ,117.2,
Communities & Local Government,DCLG,01/04/2016,Catering,Housing & Planning,BOUYGUES E&S FM UK LTD (CATERING),,Large,,,2100263399,Business Support,Consildated Monthly caterings March 2016,SE1 7NQ,27,
Communities & Local Government,DCLG,01/04/2016,Catering,Local Government & Public Services,BOUYGUES E&S FM UK LTD (CATERING),,Large,,,2100263399,Business Support,Consildated Monthly caterings March 2016,SE1 7NQ,93.8,
Communities & Local Government,DCLG,01/04/2016,Catering,Local Government & Public Services,BOUYGUES E&S FM UK LTD (CATERING),,Large,,,2100263399,Business Support,Consildated Monthly caterings March 2016,SE1 7NQ,11.25,
Communities & Local Government,DCLG,01/04/2016,Catering,Local Government & Public Services,BOUYGUES E&S FM UK LTD (CATERING),,Large,,,2100263399,Business Support,Consildated Monthly caterings March 2016,SE1 7NQ,281.45,
Communities & Local Government,DCLG,01/04/2016,Current (non AEF) Grants to Local Authorities,Finance,TAMESIDE MBC,,Large,,212635875,2100263393,,National Cyber Security Programme,OL6 0GA,"275,000.00",Yes
Communities & Local Government,DCLG,01/04/2016,Current (non AEF) Grants to Local Authorities,Housing & Planning,DORSET COUNTY COUNCIL,,Public Bodies,,225431279,2100263396,,Rent Officer Services and Pansions Liability,DT1 1XJ,"2,873.17",Yes
Communities & Local Government,DCLG,01/04/2016,Current (non AEF) Grants to Local Authorities,Housing & Planning,LB SUTTON,,,,,2100263395,,Rent Officer Services and Pensions Liability,SM1 1EA,"3,101.01",Yes
Communities & Local Government,DCLG,01/04/2016,Current Grants to Non Profit Bodies,Housing & Planning,INST STRUCTURAL ENGINEERS,,Medium,,225944198,2100263408,,Building Regulations Research Programme,EC1V 3PS,"35,000.00",Yes
Communities & Local Government,DCLG,01/04/2016,Current Grants to Non Profit Bodies,Housing & Planning,ROYAL TOWN PLANNING INSTITUTE,,,,227231818,2100263394,,Royal Town Planning Student Burseries,EC3R 8DL,"36,662.56",Yes
Communities & Local Government,DCLG,01/04/2016,Facilities Management (ISD use only),Finance,INTERSERVE (FACILITIES MANAGEMENT),,Large,,364834825,5106220828,Property Occupation,IFM Fixed Fee Uplift 2015-16,BS32 4NH,"15,135.83",
Communities & Local Government,DCLG,01/04/2016,IT - Service Contracts,Finance,ARCUS GLOBAL LIMITED,,Medium,,,5106220590,IT Managed / Outsourced Services,HelpDesk Application Support,CB4 2HY,607.5,
Communities & Local Government,DCLG,01/04/2016,IT - Service Contracts,Finance,ARCUS GLOBAL LIMITED,,Medium,,,5106220590,IT Managed / Outsourced Services,HelpDesk Infrastructure,CB4 2HY,376.03,
Communities & Local Government,DCLG,01/04/2016,IT - Service Contracts,Finance,DAISY CORPORATE SERVICES LTD,,Large,,221481042,5106220883,IT Managed / Outsourced Services,FY 15/16 Transition Costs Capital,BB9 5SR,"17,967.36",
Communities & Local Government,DCLG,01/04/2016,IT - Service Contracts,Finance,DAISY CORPORATE SERVICES LTD,,Large,,221481042,5106220883,IT Managed / Outsourced Services,FY15/16 Transition Costs Resource,BB9 5SR,"10,106.64",
Communities & Local Government,DCLG,01/04/2016,IT - Service Contracts,Finance,VERIZON UK LTD,,Large,,346786171,5106220815,IT Managed / Outsourced Services,FY15-16 TESA Common Hosting 10125855,RG2 6DA,"19,906.44",
Communities & Local Government,DCLG,01/04/2016,IT - Service Contracts,Finance,VERIZON UK LTD,,Large,,346786171,5106220886,IT Managed / Outsourced Services,FY15-16 TESA DEDICATED Hosting 10125855,RG2 6DA,"6,517.38",
Communities & Local Government,DCLG,01/04/2016,IT - Service Contracts,Housing & Planning,APTO SOLUTIONS LTD,,Small,,739026040,5106220863,IT Managed / Outsourced Services,Planning Portal 1 APP forms contract,BS8 3BA,"3,784.00",
Communities & Local Government,DCLG,01/04/2016,IT - Service Contracts,Local Government & Public Services,INFORMED SOLUTIONS LTD,,Small,,346179542,5106220818,IT Managed / Outsourced Services,Additional Funds for Bug fixing,WA14 4PA,"1,225.00",
Communities & Local Government,DCLG,01/04/2016,IT - Service Contracts,Local Government & Public Services,SWIRRL IT LIMITED,,Micro,,211074993,5106220833,IT Managed / Outsourced Services,DCLG Open Data Strategy,FK7 7WT,"27,540.00",
Communities & Local Government,DCLG,01/04/2016,IT - Service Contracts,Local Government & Public Services,VERIZON UK LTD,,Large,,346786171,5106220815,IT Managed / Outsourced Services,FY15-16 IRS Common Hosting 10126249,RG2 6DA,"18,860.16",
Communities & Local Government,DCLG,01/04/2016,IT Maintenance,Finance,NEW RICOH UK,,Large,,424537512,5106220814,ICT Services,MFD Service Charges (London) FY15/16,NN4 7YB,"27,158.97",
Communities & Local Government,DCLG,01/04/2016,Legal Fees,Finance,GOVERNMENT LEGAL DEPARTMENT,,Public Bodies,,215580680,5106220827,Legal,Legal Advice,WC2B 4TS,"69,001.00",
Communities & Local Government,DCLG,01/04/2016,Legal Fees,Finance,GOVERNMENT LEGAL DEPARTMENT,,Public Bodies,,215580680,5106220827,Legal,Legal Advice,WC2B 4TS,507.2,
Communities & Local Government,DCLG,01/04/2016,Legal Fees,Finance,GOVERNMENT LEGAL DEPARTMENT,,Public Bodies,,215580680,5106220834,Legal,Legal Advice,WC2B 4TS,"6,607.68",
Communities & Local Government,DCLG,01/04/2016,NCA - Loans additions to LA,Housing & Planning,MANCHESTER CITY COUNCIL,,Large,,238004407,2100263239,,Birmingham Kerslake Review,M60 2LA,"3,500,000.00",
Communities & Local Government,DCLG,01/04/2016,Online Database Information Retrieval,Finance,DOW JONES REUTERS BUS INTERACT,,Large,,221036630,5106220894,ICT Services,Factiva DJX 2015-16,E1W 1AZ,"1,025.34",
Communities & Local Government,DCLG,01/04/2016,Photocopying,Finance,BOUYGUES E&S FM UK LTD,,Large,,,5106220821,Business Support,Reprographic Services - 2 MS,SE1 7NQ,399.09,
Communities & Local Government,DCLG,01/04/2016,Professional services,Decentralisation and Local Growth,BROOK STREET UK LTD,,Large,,364940028,5106220343,Financial,Agency Staff ,AL1 4JB,656.46,
Communities & Local Government,DCLG,01/04/2016,Professional services,Decentralisation and Local Growth,LONDON PENSIONS FUND AUTHORITY,,Public Bodies,,236915880,5106220882,Financial,Admin of pensions for LTGDC,SE1 0LL,270,
Communities & Local Government,DCLG,01/04/2016,"Rail, Underground and Eurostar",Casey Review,REDFERN TRAVEL LIMITED,,Small,,213089972,2100263390,Rail,Consolidated Monthly Travel February Rail,BD1 3AZ,926.55,
Communities & Local Government,DCLG,01/04/2016,"Rail, Underground and Eurostar",Decentralisation and Local Growth,REDFERN TRAVEL LIMITED,,Small,,213089972,2100263390,Rail,Consolidated Monthly Travel February Rail,BD1 3AZ,"1,075.50",
Communities & Local Government,DCLG,01/04/2016,"Rail, Underground and Eurostar",Decentralisation and Local Growth,REDFERN TRAVEL LIMITED,,Small,,213089972,2100263390,Rail,Consolidated Monthly Travel February Rail,BD1 3AZ,"1,132.60",
Communities & Local Government,DCLG,01/04/2016,"Rail, Underground and Eurostar",Decentralisation and Local Growth,REDFERN TRAVEL LIMITED,,Small,,213089972,2100263390,Rail,Consolidated Monthly Travel February Rail,BD1 3AZ,"1,823.50",
Communities & Local Government,DCLG,01/04/2016,"Rail, Underground and Eurostar",Decentralisation and Local Growth,REDFERN TRAVEL LIMITED,,Small,,213089972,2100263390,Rail,Consolidated Monthly Travel February Rail,BD1 3AZ,920.15,
Communities & Local Government,DCLG,01/04/2016,"Rail, Underground and Eurostar",Decentralisation and Local Growth,REDFERN TRAVEL LIMITED,,Small,,213089972,2100263390,Rail,Consolidated Monthly Travel February Rail,BD1 3AZ,"2,721.35",
Communities & Local Government,DCLG,01/04/2016,"Rail, Underground and Eurostar",Decentralisation and Local Growth,REDFERN TRAVEL LIMITED,,Small,,213089972,2100263390,Rail,Consolidated Monthly Travel February Rail,BD1 3AZ,"4,808.29",
Communities & Local Government,DCLG,01/04/2016,"Rail, Underground and Eurostar",Decentralisation and Local Growth,REDFERN TRAVEL LIMITED,,Small,,213089972,2100263390,Rail,Consolidated Monthly Travel February Rail,BD1 3AZ,"3,709.20",
Communities & Local Government,DCLG,01/04/2016,"Rail, Underground and Eurostar",Decentralisation and Local Growth,REDFERN TRAVEL LIMITED,,Small,,213089972,2100263390,Rail,Consolidated Monthly Travel February Rail,BD1 3AZ,"2,326.20",
Communities & Local Government,DCLG,01/04/2016,"Rail, Underground and Eurostar",Decentralisation and Local Growth,REDFERN TRAVEL LIMITED,,Small,,213089972,2100263390,Rail,Consolidated Monthly Travel February Rail,BD1 3AZ,"3,988.95",
Communities & Local Government,DCLG,01/04/2016,"Rail, Underground and Eurostar",Decentralisation and Local Growth,REDFERN TRAVEL LIMITED,,Small,,213089972,2100263390,Rail,Consolidated Monthly Travel February Rail,BD1 3AZ,"1,298.10",
Communities & Local Government,DCLG,01/04/2016,"Rail, Underground and Eurostar",Decentralisation and Local Growth,REDFERN TRAVEL LIMITED,,Small,,213089972,2100263390,Rail,Consolidated Monthly Travel February Rail,BD1 3AZ,"1,292.50",
Communities & Local Government,DCLG,01/04/2016,"Rail, Underground and Eurostar",Decentralisation and Local Growth,REDFERN TRAVEL LIMITED,,Small,,213089972,2100263390,Rail,Consolidated Monthly Travel February Rail,BD1 3AZ,"2,725.10",
Communities & Local Government,DCLG,01/04/2016,"Rail, Underground and Eurostar",Decentralisation and Local Growth,REDFERN TRAVEL LIMITED,,Small,,213089972,2100263390,Rail,Consolidated Monthly Travel February Rail,BD1 3AZ,"1,526.92",
Communities & Local Government,DCLG,01/04/2016,"Rail, Underground and Eurostar",Decentralisation and Local Growth,REDFERN TRAVEL LIMITED,,Small,,213089972,2100263390,Rail,Consolidated Monthly Travel February Rail,BD1 3AZ,"1,283.80",
Communities & Local Government,DCLG,01/04/2016,"Rail, Underground and Eurostar",Decentralisation and Local Growth,REDFERN TRAVEL LIMITED,,Small,,213089972,2100263390,Rail,Consolidated Monthly Travel February Rail,BD1 3AZ,699.44,
Communities & Local Government,DCLG,01/04/2016,"Rail, Underground and Eurostar",Decentralisation and Local Growth,REDFERN TRAVEL LIMITED,,Small,,213089972,2100263390,Rail,Consolidated Monthly Travel February Rail,BD1 3AZ,"1,475.90",
Communities & Local Government,DCLG,01/04/2016,"Rail, Underground and Eurostar",Decentralisation and Local Growth,REDFERN TRAVEL LIMITED,,Small,,213089972,2100263390,Rail,Consolidated Monthly Travel February Rail,BD1 3AZ,"6,624.88",
Communities & Local Government,DCLG,01/04/2016,"Rail, Underground and Eurostar",Decentralisation and Local Growth,REDFERN TRAVEL LIMITED,,Small,,213089972,2100263390,Rail,Consolidated Monthly Travel February Rail,BD1 3AZ,"1,207.00",
Communities & Local Government,DCLG,01/04/2016,"Rail, Underground and Eurostar",Decentralisation and Local Growth,REDFERN TRAVEL LIMITED,,Small,,213089972,2100263390,Rail,Consolidated Monthly Travel February Rail,BD1 3AZ,304,
Communities & Local Government,DCLG,01/04/2016,"Rail, Underground and Eurostar",Decentralisation and Local Growth,REDFERN TRAVEL LIMITED,,Small,,213089972,2100263390,Rail,Consolidated Monthly Travel February Rail,BD1 3AZ,"4,327.52",
Communities & Local Government,DCLG,01/04/2016,"Rail, Underground and Eurostar",Finance,REDFERN TRAVEL LIMITED,,Small,,213089972,2100263390,Rail,Consolidated Monthly Travel February Rail,BD1 3AZ,456.13,
Communities & Local Government,DCLG,01/04/2016,"Rail, Underground and Eurostar",Finance,REDFERN TRAVEL LIMITED,,Small,,213089972,2100263390,Rail,Consolidated Monthly Travel February Rail,BD1 3AZ,736.6,
Communities & Local Government,DCLG,01/04/2016,"Rail, Underground and Eurostar",Finance,REDFERN TRAVEL LIMITED,,Small,,213089972,2100263390,Rail,Consolidated Monthly Travel February Rail,BD1 3AZ,811.5,
Communities & Local Government,DCLG,01/04/2016,"Rail, Underground and Eurostar",Finance,REDFERN TRAVEL LIMITED,,Small,,213089972,2100263390,Rail,Consolidated Monthly Travel February Rail,BD1 3AZ,"6,911.10",
Communities & Local Government,DCLG,01/04/2016,"Rail, Underground and Eurostar",Finance,REDFERN TRAVEL LIMITED,,Small,,213089972,2100263390,Rail,Consolidated Monthly Travel February Rail,BD1 3AZ,724.55,
Communities & Local Government,DCLG,01/04/2016,"Rail, Underground and Eurostar",Finance,REDFERN TRAVEL LIMITED,,Small,,213089972,2100263390,Rail,Consolidated Monthly Travel February Rail,BD1 3AZ,629,
Communities & Local Government,DCLG,01/04/2016,"Rail, Underground and Eurostar",Finance,REDFERN TRAVEL LIMITED,,Small,,213089972,2100263390,Rail,Consolidated Monthly Travel February Rail,BD1 3AZ,-284.8,
Communities & Local Government,DCLG,01/04/2016,"Rail, Underground and Eurostar",Housing & Planning,REDFERN TRAVEL LIMITED,,Small,,213089972,2100263390,Rail,Consolidated Monthly Travel February Rail,BD1 3AZ,350.8,
Communities & Local Government,DCLG,01/04/2016,"Rail, Underground and Eurostar",Housing & Planning,REDFERN TRAVEL LIMITED,,Small,,213089972,2100263390,Rail,Consolidated Monthly Travel February Rail,BD1 3AZ,"2,494.81",
Communities & Local Government,DCLG,01/04/2016,"Rail, Underground and Eurostar",Housing & Planning,REDFERN TRAVEL LIMITED,,Small,,213089972,2100263390,Rail,Consolidated Monthly Travel February Rail,BD1 3AZ,"1,824.00",
Communities & Local Government,DCLG,01/04/2016,"Rail, Underground and Eurostar",Housing & Planning,REDFERN TRAVEL LIMITED,,Small,,213089972,2100263390,Rail,Consolidated Monthly Travel February Rail,BD1 3AZ,"3,501.65",
Communities & Local Government,DCLG,01/04/2016,"Rail, Underground and Eurostar",Housing & Planning,REDFERN TRAVEL LIMITED,,Small,,213089972,2100263390,Rail,Consolidated Monthly Travel February Rail,BD1 3AZ,"2,272.70",
Communities & Local Government,DCLG,01/04/2016,"Rail, Underground and Eurostar",Housing & Planning,REDFERN TRAVEL LIMITED,,Small,,213089972,2100263390,Rail,Consolidated Monthly Travel February Rail,BD1 3AZ,881.9,
Communities & Local Government,DCLG,01/04/2016,"Rail, Underground and Eurostar",Housing & Planning,REDFERN TRAVEL LIMITED,,Small,,213089972,2100263390,Rail,Consolidated Monthly Travel February Rail,BD1 3AZ,476.5,
Communities & Local Government,DCLG,01/04/2016,"Rail, Underground and Eurostar",Local Government & Public Services,REDFERN TRAVEL LIMITED,,Small,,213089972,2100263390,Rail,Consolidated Monthly Travel February Rail,BD1 3AZ,"1,783.00",
Communities & Local Government,DCLG,01/04/2016,"Rail, Underground and Eurostar",Local Government & Public Services,REDFERN TRAVEL LIMITED,,Small,,213089972,2100263390,Rail,Consolidated Monthly Travel February Rail,BD1 3AZ,257.9,
Communities & Local Government,DCLG,01/04/2016,"Rail, Underground and Eurostar",Local Government & Public Services,REDFERN TRAVEL LIMITED,,Small,,213089972,2100263390,Rail,Consolidated Monthly Travel February Rail,BD1 3AZ,277.95,
Communities & Local Government,DCLG,01/04/2016,"Rail, Underground and Eurostar",Local Government & Public Services,REDFERN TRAVEL LIMITED,,Small,,213089972,2100263390,Rail,Consolidated Monthly Travel February Rail,BD1 3AZ,698.55,
Communities & Local Government,DCLG,01/04/2016,"Rail, Underground and Eurostar",Local Government & Public Services,REDFERN TRAVEL LIMITED,,Small,,213089972,2100263390,Rail,Consolidated Monthly Travel February Rail,BD1 3AZ,425.55,
Communities & Local Government,DCLG,01/04/2016,"Rail, Underground and Eurostar",Local Government & Public Services,REDFERN TRAVEL LIMITED,,Small,,213089972,2100263390,Rail,Consolidated Monthly Travel February Rail,BD1 3AZ,"1,376.03",
Communities & Local Government,DCLG,01/04/2016,"Rail, Underground and Eurostar",Local Government & Public Services,REDFERN TRAVEL LIMITED,,Small,,213089972,2100263390,Rail,Consolidated Monthly Travel February Rail,BD1 3AZ,"2,458.75",
Communities & Local Government,DCLG,01/04/2016,"Rail, Underground and Eurostar",Local Government & Public Services,REDFERN TRAVEL LIMITED,,Small,,213089972,2100263390,Rail,Consolidated Monthly Travel February Rail,BD1 3AZ,"1,947.85",
Communities & Local Government,DCLG,01/04/2016,"Rail, Underground and Eurostar",Local Government & Public Services,REDFERN TRAVEL LIMITED,,Small,,213089972,2100263390,Rail,Consolidated Monthly Travel February Rail,BD1 3AZ,908.42,
Communities & Local Government,DCLG,01/04/2016,"Rail, Underground and Eurostar",Local Government & Public Services,REDFERN TRAVEL LIMITED,,Small,,213089972,2100263390,Rail,Consolidated Monthly Travel February Rail,BD1 3AZ,"1,623.40",
Communities & Local Government,DCLG,01/04/2016,"Rail, Underground and Eurostar",Local Government & Public Services,REDFERN TRAVEL LIMITED,,Small,,213089972,2100263390,Rail,Consolidated Monthly Travel February Rail,BD1 3AZ,"1,695.60",
Communities & Local Government,DCLG,01/04/2016,"Rail, Underground and Eurostar",Local Government & Public Services,REDFERN TRAVEL LIMITED,,Small,,213089972,2100263390,Rail,Consolidated Monthly Travel February Rail,BD1 3AZ,"1,180.30",
Communities & Local Government,DCLG,01/04/2016,"Rail, Underground and Eurostar",Local Government & Public Services,REDFERN TRAVEL LIMITED,,Small,,213089972,2100263390,Rail,Consolidated Monthly Travel February Rail,BD1 3AZ,741.4,
Communities & Local Government,DCLG,01/04/2016,"Rail, Underground and Eurostar",Local Government & Public Services,REDFERN TRAVEL LIMITED,,Small,,213089972,2100263390,Rail,Consolidated Monthly Travel February Rail,BD1 3AZ,"1,580.00",
Communities & Local Government,DCLG,01/04/2016,"Rail, Underground and Eurostar",Local Government & Public Services,REDFERN TRAVEL LIMITED,,Small,,213089972,2100263390,Rail,Consolidated Monthly Travel February Rail,BD1 3AZ,"1,406.80",
Communities & Local Government,DCLG,01/04/2016,"Rail, Underground and Eurostar",Local Government & Public Services,REDFERN TRAVEL LIMITED,,Small,,213089972,2100263390,Rail,Consolidated Monthly Travel February Rail,BD1 3AZ,"1,262.70",
Communities & Local Government,DCLG,01/04/2016,"Rail, Underground and Eurostar",Local Government & Public Services,REDFERN TRAVEL LIMITED,,Small,,213089972,2100263390,Rail,Consolidated Monthly Travel February Rail,BD1 3AZ,"1,385.00",
Communities & Local Government,DCLG,01/04/2016,"Rail, Underground and Eurostar",Local Government & Public Services,REDFERN TRAVEL LIMITED,,Small,,213089972,2100263390,Rail,Consolidated Monthly Travel February Rail,BD1 3AZ,"1,764.70",
Communities & Local Government,DCLG,01/04/2016,"Rail, Underground and Eurostar",Local Government & Public Services,REDFERN TRAVEL LIMITED,,Small,,213089972,2100263390,Rail,Consolidated Monthly Travel February Rail,BD1 3AZ,"2,360.62",
Communities & Local Government,DCLG,01/04/2016,"Rail, Underground and Eurostar",Local Government & Public Services,REDFERN TRAVEL LIMITED,,Small,,213089972,2100263390,Rail,Consolidated Monthly Travel February Rail,BD1 3AZ,"5,085.63",
Communities & Local Government,DCLG,01/04/2016,"Rail, Underground and Eurostar","Strategy, Communications and Private Office",REDFERN TRAVEL LIMITED,,Small,,213089972,2100263390,Rail,Consolidated Monthly Travel February Rail,BD1 3AZ,792.9,
Communities & Local Government,DCLG,01/04/2016,"Rail, Underground and Eurostar","Strategy, Communications and Private Office",REDFERN TRAVEL LIMITED,,Small,,213089972,2100263390,Rail,Consolidated Monthly Travel February Rail,BD1 3AZ,921.4,
Communities & Local Government,DCLG,01/04/2016,"Rail, Underground and Eurostar","Strategy, Communications and Private Office",REDFERN TRAVEL LIMITED,,Small,,213089972,2100263390,Rail,Consolidated Monthly Travel February Rail,BD1 3AZ,"1,160.90",
Communities & Local Government,DCLG,01/04/2016,"Rail, Underground and Eurostar","Strategy, Communications and Private Office",REDFERN TRAVEL LIMITED,,Small,,213089972,2100263390,Rail,Consolidated Monthly Travel February Rail,BD1 3AZ,289.3,
Communities & Local Government,DCLG,01/04/2016,"Rail, Underground and Eurostar","Strategy, Communications and Private Office",REDFERN TRAVEL LIMITED,,Small,,213089972,2100263390,Rail,Consolidated Monthly Travel February Rail,BD1 3AZ,374.4,
Communities & Local Government,DCLG,01/04/2016,"Rail, Underground and Eurostar","Strategy, Communications and Private Office",REDFERN TRAVEL LIMITED,,Small,,213089972,2100263390,Rail,Consolidated Monthly Travel February Rail,BD1 3AZ,535.35,
Communities & Local Government,DCLG,01/04/2016,Research,Housing & Planning,BUILDING RESEARCH ESTABLISHMENT,,Large,,896495033,5106220865,Research,Part 2: Experimental Fire Testing,WD25 9XX,"3,457.20",
Communities & Local Government,DCLG,01/04/2016,Research,Housing & Planning,HAMPSHIRE COUNTY COUNCIL,,,,506774652,5106220895,Research,Lot 1 (London) Expenses VAT Exempt,SO23 8UD,33.12,
Communities & Local Government,DCLG,01/04/2016,Research,Housing & Planning,HAMPSHIRE COUNTY COUNCIL,,,,506774652,5106220895,Research,Lot 1 (London) Fixed Fees + Expenses,SO23 8UD,"6,652.00",
Communities & Local Government,DCLG,01/04/2016,Research,Housing & Planning,HAMPSHIRE COUNTY COUNCIL,,,,506774652,5106220895,Research,Lot 2(South East) Fixed Fee + Expenses,SO23 8UD,"6,652.25",
Communities & Local Government,DCLG,01/04/2016,Research,Housing & Planning,INNOVATE AT PRP LTD,,Large,,,5106220871,Research,Final reports,KT7 0QJ,"5,490.00",
Communities & Local Government,DCLG,01/04/2016,Research,Housing & Planning,INNOVATE AT PRP LTD,,Large,,,5106220872,Research,Draft final report,KT7 0QJ,"41,475.00",
Communities & Local Government,DCLG,01/04/2016,Research,Local Government & Public Services,ATLANTIC PRODUCTIONS LTD,,Medium,,,5106220578,Research,UKHMF - Testimony,W6 7DE,"219,810.00",
Communities & Local Government,DCLG,01/04/2016,Revenue Support grant payable,Local Government & Public Services,ADUR DC,,,,227472891,5000328311,,Grant Payable by Exchequer,BN11 1HA,"69,654.00",Yes
Communities & Local Government,DCLG,01/04/2016,Revenue Support grant payable,Local Government & Public Services,ALLERDALE BOROUGH COUNCIL,,,,230824120,5000328313,,Grant Payable by Exchequer,CA14 3YJ,"153,042.00",Yes
Communities & Local Government,DCLG,01/04/2016,Revenue Support grant payable,Local Government & Public Services,AMBER VALLEY BC,,,,,5000328315,,Grant Payable by Exchequer,DE5 3BT,"139,296.00",Yes
Communities & Local Government,DCLG,01/04/2016,Revenue Support grant payable,Local Government & Public Services,ARUN DC,,,,211217668,5000328316,,Grant Payable by Exchequer,BN17 5LF,"149,905.00",Yes
Communities & Local Government,DCLG,01/04/2016,Revenue Support grant payable,Local Government & Public Services,ASHFIELD DC,,,,235415296,5000328319,,Grant Payable by Exchequer,NG17 8DA,"167,345.00",Yes
Communities & Local Government,DCLG,01/04/2016,Revenue Support grant payable,Local Government & Public Services,ASHFORD BC,,,,229467071,5000328320,,Grant Payable by Exchequer,TN23 1PL,"114,292.00",Yes
Communities & Local Government,DCLG,01/04/2016,Revenue Support grant payable,Local Government & Public Services,AVON FIRE AUTHORITY,,,,424872570,5000328322,,Grant Payable by Exchequer,BS1 6EU,"2,882,395.00",Yes
Communities & Local Government,DCLG,01/04/2016,Revenue Support grant payable,Local Government & Public Services,AYLESBURY VALE DC,,,,396710709,5000328324,,Grant Payable by Exchequer,HP19 8FF,"141,248.00",Yes
Communities & Local Government,DCLG,01/04/2016,Revenue Support grant payable,Local Government & Public Services,BABERGH DC,,,,232618405,5000328327,,Grant Payable by Exchequer,IP7 6SJ,"89,239.00",Yes
Communities & Local Government,DCLG,01/04/2016,Revenue Support grant payable,Local Government & Public Services,BARKING & DAGENHAM LB,,Public Bodies,,227419488,5000328329,,Grant Payable by Exchequer,RM10 7BY,"3,302,040.00",Yes
Communities & Local Government,DCLG,01/04/2016,Revenue Support grant payable,Local Government & Public Services,BARNET LBC,,,,211049507,5000328331,,Grant Payable by Exchequer,N11 1NP,"3,316,395.00",Yes
Communities & Local Government,DCLG,01/04/2016,Revenue Support grant payable,Local Government & Public Services,BARNSLEY MBC,,Public Bodies,,211178595,5000328333,,Grant Payable by Exchequer,S70 2AQ,"3,110,386.00",Yes
Communities & Local Government,DCLG,01/04/2016,Revenue Support grant payable,Local Government & Public Services,BARROW BC,,,,295632913,5000328334,,Grant Payable by Exchequer,LA14 2LD,"243,323.00",Yes
Communities & Local Government,DCLG,01/04/2016,Revenue Support grant payable,Local Government & Public Services,BASILDON DC,,,,,5000328336,,Grant Payable by Exchequer,SS14 0DF,"233,549.00",Yes
Communities & Local Government,DCLG,01/04/2016,Revenue Support grant payable,Local Government & Public Services,BASINGSTOKE & DEANE BC,,,,228328506,5000328338,,Grant Payable by Exchequer,RG21 2AJ,"128,149.00",Yes
Communities & Local Government,DCLG,01/04/2016,Revenue Support grant payable,Local Government & Public Services,BASSETLAW DC,,,,230225054,5000328341,,Grant Payable by Exchequer,S80 2AH,"171,635.00",Yes
Communities & Local Government,DCLG,01/04/2016,Revenue Support grant payable,Local Government & Public Services,BATH & NORTH EAST SOMERSET DC,,,,214502499,5000328342,,Grant Payable by Exchequer,BA1 5AW,"1,298,036.00",Yes
Communities & Local Government,DCLG,01/04/2016,Revenue Support grant payable,Local Government & Public Services,BEDFORD BOROUGH COUNCIL,,,,211166889,5000328472,,Grant Payable by Exchequer,MK40 1SJ,"1,927,683.00",Yes
Communities & Local Government,DCLG,01/04/2016,Revenue Support grant payable,Local Government & Public Services,BEDS & LUTON FIRE & RESCUE SERVICE,,,,387821283,5000328344,,Grant Payable by Exchequer,MK42 7NR,"1,589,938.00",Yes
Communities & Local Government,DCLG,01/04/2016,Revenue Support grant payable,Local Government & Public Services,BEXLEY LB,,,,,5000328348,,Grant Payable by Exchequer,DA8 1TL,"1,972,620.00",Yes
Communities & Local Government,DCLG,01/04/2016,Revenue Support grant payable,Local Government & Public Services,BIRMINGHAM CITY CNCL,,,,213780559,5000328350,,Grant Payable by Exchequer,B3 3AB,"20,392,821.00",Yes
Communities & Local Government,DCLG,01/04/2016,Revenue Support grant payable,Local Government & Public Services,BLABY DC,,,,,5000328352,,Grant Payable by Exchequer,LE9 5EP,"85,706.00",Yes
Communities & Local Government,DCLG,01/04/2016,Revenue Support grant payable,Local Government & Public Services,BLACKBURN WITH DARWEN BC,,,,,5000328354,,Grant Payable by Exchequer,BB1 7DY,"2,596,823.00",Yes
Communities & Local Government,DCLG,01/04/2016,Revenue Support grant payable,Local Government & Public Services,BLACKPOOL BC,,,,,5000328356,,Grant Payable by Exchequer,FY1 1NA,"2,847,214.00",Yes
Communities & Local Government,DCLG,01/04/2016,Revenue Support grant payable,Local Government & Public Services,BOLSOVER DC,,Large,,235516523,5000328358,,Grant Payable by Exchequer,S43 4JY,"221,129.00",Yes
Communities & Local Government,DCLG,01/04/2016,Revenue Support grant payable,Local Government & Public Services,BOLTON MBC,,,,,5000328360,,Grant Payable by Exchequer,BL1 1RU,"3,780,685.00",Yes
Communities & Local Government,DCLG,01/04/2016,Revenue Support grant payable,Local Government & Public Services,BOSTON BC,,,,236417713,5000328362,,Grant Payable by Exchequer,PE21 8QR,"128,753.00",Yes
Communities & Local Government,DCLG,01/04/2016,Revenue Support grant payable,Local Government & Public Services,BOURNEMOUTH DC,,,,,5000328364,,Grant Payable by Exchequer,BH2 6EB,"1,686,274.00",Yes
Communities & Local Government,DCLG,01/04/2016,Revenue Support grant payable,Local Government & Public Services,BRACKNELL FOREST DC,,,,236184867,5000328366,,Grant Payable by Exchequer,RG12 1AQ,"1,015,440.00",Yes
Communities & Local Government,DCLG,01/04/2016,Revenue Support grant payable,Local Government & Public Services,BRADFORD MBC,,,,,5000328368,,Grant Payable by Exchequer,BD1 1HX,"7,555,235.00",Yes
Communities & Local Government,DCLG,01/04/2016,Revenue Support grant payable,Local Government & Public Services,BRAINTREE DC,,,,226941730,5000328370,,Grant Payable by Exchequer,CM7 9HB,"144,225.00",Yes
Communities & Local Government,DCLG,01/04/2016,Revenue Support grant payable,Local Government & Public Services,BRECKLAND DC,,,,232611384,5000328372,,Grant Payable by Exchequer,NR19 1EE,"182,542.00",Yes
Communities & Local Government,DCLG,01/04/2016,Revenue Support grant payable,Local Government & Public Services,BRENT LB,,,,,5000328374,,Grant Payable by Exchequer,HA9 9EZ,"5,040,011.00",Yes
Communities & Local Government,DCLG,01/04/2016,Revenue Support grant payable,Local Government & Public Services,BRENTWOOD BC,,,,227473188,5000328376,,Grant Payable by Exchequer,CM15 8AY,"63,914.00",Yes
Communities & Local Government,DCLG,01/04/2016,Revenue Support grant payable,Local Government & Public Services,BRIGHTON & HOVE CITY COUNCIL,,Large,,228455218,5000328378,,Grant Payable by Exchequer,BN3 2LS,"2,981,311.00",Yes
Communities & Local Government,DCLG,01/04/2016,Revenue Support grant payable,Local Government & Public Services,BRISTOL CITY CNCL,,,,211103882,5000328380,,Grant Payable by Exchequer,BS99 7BL,"5,433,079.00",Yes
Communities & Local Government,DCLG,01/04/2016,Revenue Support grant payable,Local Government & Public Services,BROADLAND DC,,,,219737785,5000328382,,Grant Payable by Exchequer,NR7 0DU,"125,047.00",Yes
Communities & Local Government,DCLG,01/04/2016,Revenue Support grant payable,Local Government & Public Services,BROMLEY LB,,,,211331954,5000328384,,Grant Payable by Exchequer,BR1 3UH,"1,916,321.00",Yes
Communities & Local Government,DCLG,01/04/2016,Revenue Support grant payable,Local Government & Public Services,BROMSGROVE DC,,,,236654745,5000328386,,Grant Payable by Exchequer,B60 1AA,"50,745.00",Yes
Communities & Local Government,DCLG,01/04/2016,Revenue Support grant payable,Local Government & Public Services,BROXBOURNE BOROUGH COUNCIL,,,,239931918,5000328388,,Grant Payable by Exchequer,EN8 9XQ,"102,843.00",Yes
Communities & Local Government,DCLG,01/04/2016,Revenue Support grant payable,Local Government & Public Services,BROXTOWE BC,,,,239877640,5000328390,,Grant Payable by Exchequer,NG9 1AB,"127,211.00",Yes
Communities & Local Government,DCLG,01/04/2016,Revenue Support grant payable,Local Government & Public Services,BUCKINGHAMSHIRE CC,,,,293750923,5000328394,,Grant Payable by Exchequer,HP20 1UD,"2,134,127.00",Yes
Communities & Local Government,DCLG,01/04/2016,Revenue Support grant payable,Local Government & Public Services,BUCKS & MILTON KEYNES FIRE AUTH,,Public Bodies,,423679463,5000328392,,Grant Payable by Exchequer,HP20 1BD,"1,472,727.00",Yes
Communities & Local Government,DCLG,01/04/2016,Revenue Support grant payable,Local Government & Public Services,BURNLEY BC,,,,229413281,5000328396,,Grant Payable by Exchequer,BB11 1JA,"329,419.00",Yes
Communities & Local Government,DCLG,01/04/2016,Revenue Support grant payable,Local Government & Public Services,BURY MBC,,,,236491114,5000328398,,Grant Payable by Exchequer,BL9 0SP,"2,002,286.00",Yes
Communities & Local Government,DCLG,01/04/2016,Revenue Support grant payable,Local Government & Public Services,CALDERDALE MBC,,Public Bodies,,,5000328400,,Grant Payable by Exchequer,HX1 1YP,"2,277,306.00",Yes
Communities & Local Government,DCLG,01/04/2016,Revenue Support grant payable,Local Government & Public Services,CAMBRIDGE CITY COUNCIL,,,,210357534,5000328402,,Grant Payable by Exchequer,CB1 0JH,"175,899.00",Yes
Communities & Local Government,DCLG,01/04/2016,Revenue Support grant payable,Local Government & Public Services,CAMBRIDGESHIRE COUNTY CNCL,,,,219047347,5000328406,,Grant Payable by Exchequer,CB3 0AP,"3,001,203.00",Yes
Communities & Local Government,DCLG,01/04/2016,Revenue Support grant payable,Local Government & Public Services,CAMBS & PETERBOROUGH FIRE AUTHORITY,,,,235999737,5000328404,,Grant Payable by Exchequer,PE29 2NA,"1,693,134.00",Yes
Communities & Local Government,DCLG,01/04/2016,Revenue Support grant payable,Local Government & Public Services,CAMDEN LONDON BOROUGH,,,,,5000328408,,Grant Payable by Exchequer,WC1H 8NG,"4,933,216.00",Yes
Communities & Local Government,DCLG,01/04/2016,Revenue Support grant payable,Local Government & Public Services,CANNOCK CHASE DC,,,,215064770,5000328410,,Grant Payable by Exchequer,WS11 1BG,"126,519.00",Yes
Communities & Local Government,DCLG,01/04/2016,Revenue Support grant payable,Local Government & Public Services,CANTERBURY CITY CNCL,,,,,5000328412,,Grant Payable by Exchequer,CT1 1YW,"179,476.00",Yes
Communities & Local Government,DCLG,01/04/2016,Revenue Support grant payable,Local Government & Public Services,CARLISLE CITY CNCL,,,,227471059,5000328414,,Grant Payable by Exchequer,CA3 8QG,"143,058.00",Yes
Communities & Local Government,DCLG,01/04/2016,Revenue Support grant payable,Local Government & Public Services,CASTLE POINT BC,,Public Bodies,,228217931,5000328416,,Grant Payable by Exchequer,SS7 1TF,"82,577.00",Yes
Communities & Local Government,DCLG,01/04/2016,Revenue Support grant payable,Local Government & Public Services,CENTRAL BEDFORDSHIRE COUNCIL,,,,232624882,5000328457,,Grant Payable by Exchequer,SG17 5TQ,"1,813,668.00",Yes
Communities & Local Government,DCLG,01/04/2016,Revenue Support grant payable,Local Government & Public Services,CHARNWOOD BC,,,,,5000328418,,Grant Payable by Exchequer,LE11 2TU,"188,123.00",Yes
Communities & Local Government,DCLG,01/04/2016,Revenue Support grant payable,Local Government & Public Services,CHELMSFORD BC,,,,,5000328420,,Grant Payable by Exchequer,CM1 1JE,"109,863.00",Yes
Communities & Local Government,DCLG,01/04/2016,Revenue Support grant payable,Local Government & Public Services,CHELTENHAM BC,,,,,5000328422,,Grant Payable by Exchequer,GL50 1PW,"114,567.00",Yes
Communities & Local Government,DCLG,01/04/2016,Revenue Support grant payable,Local Government & Public Services,CHERWELL DC,,,,,5000328424,,Grant Payable by Exchequer,OX15 4AA,"166,606.00",Yes
Communities & Local Government,DCLG,01/04/2016,Revenue Support grant payable,Local Government & Public Services,CHESHIRE EAST BOROUGH COUNCIL,,,,293699450,5000328459,,Grant Payable by Exchequer,CW11 1HZ,"2,370,558.00",Yes
Communities & Local Government,DCLG,01/04/2016,Revenue Support grant payable,Local Government & Public Services,CHESHIRE FIRE AUTHORITY,,,,424872737,5000328426,,Grant Payable by Exchequer,CW7 2FQ,"2,456,632.00",Yes
Communities & Local Government,DCLG,01/04/2016,Revenue Support grant payable,Local Government & Public Services,CHESHIRE WEST AND CHESTER,,Large,,215584383,5000328461,,Grant Payable by Exchequer,CH1 2NP,"2,857,266.00",Yes
Communities & Local Government,DCLG,01/04/2016,Revenue Support grant payable,Local Government & Public Services,CHESTERFIELD BC,,,,232102301,5000328428,,Grant Payable by Exchequer,S40 1LP,"165,247.00",Yes
Communities & Local Government,DCLG,01/04/2016,Revenue Support grant payable,Local Government & Public Services,CHICHESTER DC,,,,739800998,5000328430,,Grant Payable by Exchequer,PO19 1TY,"74,615.00",Yes
Communities & Local Government,DCLG,01/04/2016,Revenue Support grant payable,Local Government & Public Services,CHILTERN DC,,,,236183554,5000328432,,Grant Payable by Exchequer,HP6 5AW,"36,593.00",Yes
Communities & Local Government,DCLG,01/04/2016,Revenue Support grant payable,Local Government & Public Services,CHORLEY DC,,,,236415576,5000328434,,Grant Payable by Exchequer,PR7 1AL,"123,317.00",Yes
Communities & Local Government,DCLG,01/04/2016,Revenue Support grant payable,Local Government & Public Services,CHRISTCHURCH BC,,,,227415213,5000328437,,Grant Payable by Exchequer,BH23 1AZ,"28,158.00",Yes
Communities & Local Government,DCLG,01/04/2016,Revenue Support grant payable,Local Government & Public Services,CITY OF LINCOLN COUNCIL,,,,,5000328585,,Grant Payable by Exchequer,LN1 1DB,"152,775.00",Yes
Communities & Local Government,DCLG,01/04/2016,Revenue Support grant payable,Local Government & Public Services,CITY OF WAKEFIELD MDC,,,,,5000328379,,Grant Payable by Exchequer,WF1 2QW,"3,862,384.00",Yes
Communities & Local Government,DCLG,01/04/2016,Revenue Support grant payable,Local Government & Public Services,CLEVELAND FIRE AUTHORITY,,,,424872778,5000328443,,Grant Payable by Exchequer,TS25 5TB,"2,573,149.00",Yes
Communities & Local Government,DCLG,01/04/2016,Revenue Support grant payable,Local Government & Public Services,CO DURHAM & DARLINGTON FIRE & RESCU,,,,424872851,5000328489,,Grant Payable by Exchequer,DH1 1TW,"1,937,754.00",Yes
Communities & Local Government,DCLG,01/04/2016,Revenue Support grant payable,Local Government & Public Services,COLCHESTER BC,,,,,5000328445,,Grant Payable by Exchequer,CO3 3WG,"178,062.00",Yes
Communities & Local Government,DCLG,01/04/2016,Revenue Support grant payable,Local Government & Public Services,COPELAND BC,,,,236414827,5000328447,,Grant Payable by Exchequer,CA28 7NY,"104,330.00",Yes
Communities & Local Government,DCLG,01/04/2016,Revenue Support grant payable,Local Government & Public Services,CORBY BC,,,,,5000328448,,Grant Payable by Exchequer,NN17 1GD,"93,803.00",Yes
Communities & Local Government,DCLG,01/04/2016,Revenue Support grant payable,Local Government & Public Services,CORNWALL COUNCIL,,,,211334404,5000328463,,Grant Payable by Exchequer,TR1 3AY,"5,876,725.00",Yes
Communities & Local Government,DCLG,01/04/2016,Revenue Support grant payable,Local Government & Public Services,CORPORATION OF LONDON,,,,225438175,5000328439,,Grant Payable by Exchequer,EC2P 2EJ,"957,399.00",Yes
Communities & Local Government,DCLG,01/04/2016,Revenue Support grant payable,Local Government & Public Services,COTSWOLD DC,,,,232462085,5000328450,,Grant Payable by Exchequer,GL7 1PX,"77,072.00",Yes
Communities & Local Government,DCLG,01/04/2016,Revenue Support grant payable,Local Government & Public Services,COVENTRY CITY CNCL,,,,210384802,5000328452,,Grant Payable by Exchequer,CV1 2QL,"4,286,319.00",Yes
Communities & Local Government,DCLG,01/04/2016,Revenue Support grant payable,Local Government & Public Services,CRAVEN DISTRICT COUNCIL,,,,215577851,5000328454,,Grant Payable by Exchequer,BD23 1PS,"62,761.00",Yes
Communities & Local Government,DCLG,01/04/2016,Revenue Support grant payable,Local Government & Public Services,CRAWLEY BOROUGH COUNCIL,,,,211222500,5000328456,,Grant Payable by Exchequer,RH10 1UZ,"159,816.00",Yes
Communities & Local Government,DCLG,01/04/2016,Revenue Support grant payable,Local Government & Public Services,CROYDON LB,,,,212419973,5000328458,,Grant Payable by Exchequer,CR9 3JS,"4,212,047.00",Yes
Communities & Local Government,DCLG,01/04/2016,Revenue Support grant payable,Local Government & Public Services,CUMBRIA COUNTY CNCL,,,,211316542,5000328460,,Grant Payable by Exchequer,CA3 8NA,"5,270,225.00",Yes
Communities & Local Government,DCLG,01/04/2016,Revenue Support grant payable,Local Government & Public Services,DACORUM BC,,,,236448643,5000328462,,Grant Payable by Exchequer,HP1 1HH,"87,366.00",Yes
Communities & Local Government,DCLG,01/04/2016,Revenue Support grant payable,Local Government & Public Services,DARLINGTON BC,,,,,5000328464,,Grant Payable by Exchequer,TS19 1JA,"1,195,704.00",Yes
Communities & Local Government,DCLG,01/04/2016,Revenue Support grant payable,Local Government & Public Services,DARTFORD BC,,,,225694942,5000328467,,Grant Payable by Exchequer,DA1 1DR,"115,489.00",Yes
Communities & Local Government,DCLG,01/04/2016,Revenue Support grant payable,Local Government & Public Services,DAVENTRY DC,,,,239859333,5000328469,,Grant Payable by Exchequer,NN11 5AF,"79,243.00",Yes
Communities & Local Government,DCLG,01/04/2016,Revenue Support grant payable,Local Government & Public Services,DERBY CITY CNCL,,,,229641378,5000328471,,Grant Payable by Exchequer,DE1 2FS,"3,115,426.00",Yes
Communities & Local Government,DCLG,01/04/2016,Revenue Support grant payable,Local Government & Public Services,DERBYSHIRE COUNTYCOUNCIL,,,,232152967,5000328475,,Grant Payable by Exchequer,DE4 3AG,"6,094,996.00",Yes
Communities & Local Government,DCLG,01/04/2016,Revenue Support grant payable,Local Government & Public Services,DERBYSHIRE DALES DC,,,,,5000328476,,Grant Payable by Exchequer,DE4 3NN,"66,280.00",Yes
Communities & Local Government,DCLG,01/04/2016,Revenue Support grant payable,Local Government & Public Services,DERBYSHIRE FIRE AND RESCUE SERVICE,,,,424872935,5000328473,,Grant Payable by Exchequer,DE23 6EH,"2,429,795.00",Yes
Communities & Local Government,DCLG,01/04/2016,Revenue Support grant payable,Local Government & Public Services,DEVON & SOMERSET FIRE & RESCUE SERV,,,,424872976,5000328479,,Grant Payable by Exchequer,EX3 0NW,"4,098,019.00",Yes
Communities & Local Government,DCLG,01/04/2016,Revenue Support grant payable,Local Government & Public Services,DEVON COUNTY CNCL,,,,213754018,5000328478,,Grant Payable by Exchequer,EX2 4QJ,"5,192,997.00",Yes
Communities & Local Government,DCLG,01/04/2016,Revenue Support grant payable,Local Government & Public Services,DONCASTER MBC,,,,,5000328481,,Grant Payable by Exchequer,DN1 3QA,"4,321,020.00",Yes
Communities & Local Government,DCLG,01/04/2016,Revenue Support grant payable,Local Government & Public Services,DORSET & WILTSHIRE FIRE & RESCUE AU,,Large,,,5000328474,,Grant Payable by Exchequer,SP1 3NR,"2,689,611.00",Yes
Communities & Local Government,DCLG,01/04/2016,Revenue Support grant payable,Local Government & Public Services,DORSET COUNTY CNCL,,,,225431279,5000328483,,Grant Payable by Exchequer,DT1 1XJ,"1,750,159.00",Yes
Communities & Local Government,DCLG,01/04/2016,Revenue Support grant payable,Local Government & Public Services,DOVER DC,,,,,5000328485,,Grant Payable by Exchequer,CT16 3PD,"158,215.00",Yes
Communities & Local Government,DCLG,01/04/2016,Revenue Support grant payable,Local Government & Public Services,DUDLEY MBC,,,,,5000328487,,Grant Payable by Exchequer,DY1 1HF,"4,042,368.00",Yes
Communities & Local Government,DCLG,01/04/2016,Revenue Support grant payable,Local Government & Public Services,DURHAM COUNTY COUNCIL,,,,228453601,5000328465,,Grant Payable by Exchequer,DH1 5UE,"6,942,913.00",Yes
Communities & Local Government,DCLG,01/04/2016,Revenue Support grant payable,Local Government & Public Services,EALING LB,,,,,5000328490,,Grant Payable by Exchequer,W5 2HL,"4,353,397.00",Yes
Communities & Local Government,DCLG,01/04/2016,Revenue Support grant payable,Local Government & Public Services,EAST CAMBRIDGESHIRE DC,,,,236472023,5000328492,,Grant Payable by Exchequer,CB7 4PL,"103,402.00",Yes
Communities & Local Government,DCLG,01/04/2016,Revenue Support grant payable,Local Government & Public Services,EAST DEVON DC,,,,,5000328494,,Grant Payable by Exchequer,EX10 8HL,"108,251.00",Yes
Communities & Local Government,DCLG,01/04/2016,Revenue Support grant payable,Local Government & Public Services,EAST DORSET DC,,,,228470456,5000328496,,Grant Payable by Exchequer,BH21 4HN,"23,658.00",Yes
Communities & Local Government,DCLG,01/04/2016,Revenue Support grant payable,Local Government & Public Services,EAST HAMPSHIRE DC,,,,,5000328499,,Grant Payable by Exchequer,GU31 4EX,"66,030.00",Yes
Communities & Local Government,DCLG,01/04/2016,Revenue Support grant payable,Local Government & Public Services,EAST HERTFORDSHIRE DC,,,,236176954,5000328500,,Grant Payable by Exchequer,SG13 8EQ,"103,010.00",Yes
Communities & Local Government,DCLG,01/04/2016,Revenue Support grant payable,Local Government & Public Services,EAST LINDSEY DC,,,,,5000328501,,Grant Payable by Exchequer,LN11 8UP,"283,557.00",Yes
Communities & Local Government,DCLG,01/04/2016,Revenue Support grant payable,Local Government & Public Services,EAST NORTHAMPTONSHIRE COUNCIL,,,,227475290,5000328502,,Grant Payable by Exchequer,NN14 4LZ,"105,163.00",Yes
Communities & Local Government,DCLG,01/04/2016,Revenue Support grant payable,Local Government & Public Services,EAST RIDING OF YORKS,,,,,5000328503,,Grant Payable by Exchequer,HU17 9AB,"2,895,574.00",Yes
Communities & Local Government,DCLG,01/04/2016,Revenue Support grant payable,Local Government & Public Services,EAST STAFFORDSHIRE BC,,,,226778033,5000328504,,Grant Payable by Exchequer,DE14 2EB,"135,692.00",Yes
Communities & Local Government,DCLG,01/04/2016,Revenue Support grant payable,Local Government & Public Services,EAST SUSSEX COUNTY CNCL,,,,,5000328505,,Grant Payable by Exchequer,BN7 1SF,"4,059,621.00",Yes
Communities & Local Government,DCLG,01/04/2016,Revenue Support grant payable,Local Government & Public Services,EAST SUSSEX FIRE & RESCUE SERVICE,,,,424873057,5000328506,,Grant Payable by Exchequer,BN21 1EU,"2,065,171.00",Yes
Communities & Local Government,DCLG,01/04/2016,Revenue Support grant payable,Local Government & Public Services,EASTBOURNE BC,,,,229896428,5000328507,,Grant Payable by Exchequer,BN21 4TW,"157,678.00",Yes
Communities & Local Government,DCLG,01/04/2016,Revenue Support grant payable,Local Government & Public Services,EASTLEIGH BOROUGH COUNCIL,,,,232669911,5000328508,,Grant Payable by Exchequer,SO5 9YN,"107,604.00",Yes
Communities & Local Government,DCLG,01/04/2016,Revenue Support grant payable,Local Government & Public Services,EDEN DC,,,,,5000328509,,Grant Payable by Exchequer,CA11 7QF,"63,714.00",Yes
Communities & Local Government,DCLG,01/04/2016,Revenue Support grant payable,Local Government & Public Services,ELMBRIDGE BOROUGH COUNCIL,,Large,,236082442,5000328510,,Grant Payable by Exchequer,KT10 9SD,"60,057.00",Yes
Communities & Local Government,DCLG,01/04/2016,Revenue Support grant payable,Local Government & Public Services,ENFIELD LB,,,,,5000328511,,Grant Payable by Exchequer,EN1 3XF,"4,189,820.00",Yes
Communities & Local Government,DCLG,01/04/2016,Revenue Support grant payable,Local Government & Public Services,EPPING FOREST DC,,,,775876360,5000328512,,Grant Payable by Exchequer,CM16 4BZ,"138,088.00",Yes
Communities & Local Government,DCLG,01/04/2016,Revenue Support grant payable,Local Government & Public Services,EPSOM & EWELL BC,,,,225423094,5000328513,,Grant Payable by Exchequer,KT18 5BY,"37,516.00",Yes
Communities & Local Government,DCLG,01/04/2016,Revenue Support grant payable,Local Government & Public Services,EREWASH BC,,,,211209762,5000328514,,Grant Payable by Exchequer,DE7 5RP,"146,336.00",Yes
Communities & Local Government,DCLG,01/04/2016,Revenue Support grant payable,Local Government & Public Services,ESSEX COUNTY CNCL,,,,233572986,5000328515,,Grant Payable by Exchequer,CM1 1JZ,"10,614,436.00",Yes
Communities & Local Government,DCLG,01/04/2016,Revenue Support grant payable,Local Government & Public Services,ESSEX FIRE AUTHORITY,,,,345412402,5000328516,,Grant Payable by Exchequer,CM8 3HB,"4,744,493.00",Yes
Communities & Local Government,DCLG,01/04/2016,Revenue Support grant payable,Local Government & Public Services,EXETER CITY CNCL,,,,,5000328517,,Grant Payable by Exchequer,EX1 1JW,"182,024.00",Yes
Communities & Local Government,DCLG,01/04/2016,Revenue Support grant payable,Local Government & Public Services,FAREHAM BC,,,,228474144,5000328518,,Grant Payable by Exchequer,PO16 7PU,"74,504.00",Yes
Communities & Local Government,DCLG,01/04/2016,Revenue Support grant payable,Local Government & Public Services,FENLAND DC,,,,227476348,5000328519,,Grant Payable by Exchequer,PE15 8NQ,"152,886.00",Yes
Communities & Local Government,DCLG,01/04/2016,Revenue Support grant payable,Local Government & Public Services,FOREST HEATH DISTRICT COUNCIL,,,,236678116,5000328520,,Grant Payable by Exchequer,IP28 7EY,"90,379.00",Yes
Communities & Local Government,DCLG,01/04/2016,Revenue Support grant payable,Local Government & Public Services,FOREST OF DEAN DC,,,,211278890,5000328521,,Grant Payable by Exchequer,GL16 8HG,"112,247.00",Yes
Communities & Local Government,DCLG,01/04/2016,Revenue Support grant payable,Local Government & Public Services,FYLDE BC,,,,227479912,5000328522,,Grant Payable by Exchequer,FY8 1LW,"77,458.00",Yes
Communities & Local Government,DCLG,01/04/2016,Revenue Support grant payable,Local Government & Public Services,GATESHEAD COUNCIL,,,,216116041,5000328523,,Grant Payable by Exchequer,NE8 1HH,"3,353,184.00",Yes
Communities & Local Government,DCLG,01/04/2016,Revenue Support grant payable,Local Government & Public Services,GEDLING BC,,,,236180337,5000328524,,Grant Payable by Exchequer,NG5 6LU,"127,414.00",Yes
Communities & Local Government,DCLG,01/04/2016,Revenue Support grant payable,Local Government & Public Services,GLOUCESTER CITY COUNCIL,,,,230841392,5000328526,,Grant Payable by Exchequer,GL1 2EQ,"167,082.00",Yes
Communities & Local Government,DCLG,01/04/2016,Revenue Support grant payable,Local Government & Public Services,GLOUCESTERSHIRE COUNTY CNCL,,,,211272067,5000328527,,Grant Payable by Exchequer,GL1 2TG,"4,491,486.00",Yes
Communities & Local Government,DCLG,01/04/2016,Revenue Support grant payable,Local Government & Public Services,GOSPORT BOROUGH COUNCIL,,,,239825078,5000328528,,Grant Payable by Exchequer,PO12 1ED,"105,830.00",Yes
Communities & Local Government,DCLG,01/04/2016,Revenue Support grant payable,Local Government & Public Services,GRAVESHAM BC,,,,236178612,5000328529,,Grant Payable by Exchequer,DA12 1AU,"110,319.00",Yes
Communities & Local Government,DCLG,01/04/2016,Revenue Support grant payable,Local Government & Public Services,GREAT YARMOUTH BC,,,,292697372,5000328530,,Grant Payable by Exchequer,NR30 2QG,"336,570.00",Yes
Communities & Local Government,DCLG,01/04/2016,Revenue Support grant payable,Local Government & Public Services,GREATER LONDON AUTHORITY,,Public Bodies,,232112404,5000328525,,Grant Payable by Exchequer,SE10 1AJ,"15,130,809.00",Yes
Communities & Local Government,DCLG,01/04/2016,Revenue Support grant payable,Local Government & Public Services,GREATER MANCHESTER FIRE & RESCUE AU,,,,,5000328593,,Grant Payable by Exchequer,M27 8US,"9,052,051.00",Yes
Communities & Local Government,DCLG,01/04/2016,Revenue Support grant payable,Local Government & Public Services,GREENWICH LB,,,,,5000328531,,Grant Payable by Exchequer,SE18 6HQ,"4,780,950.00",Yes
Communities & Local Government,DCLG,01/04/2016,Revenue Support grant payable,Local Government & Public Services,GUILDFORD BC,,,,236663720,5000328532,,Grant Payable by Exchequer,GU2 5BB,"98,707.00",Yes
Communities & Local Government,DCLG,01/04/2016,Revenue Support grant payable,Local Government & Public Services,HALTON BC,,,,227959376,5000328534,,Grant Payable by Exchequer,WA8 7QF,"2,002,552.00",Yes
Communities & Local Government,DCLG,01/04/2016,Revenue Support grant payable,Local Government & Public Services,HAMBLETON DC,,Large,,503481319,5000328535,,Grant Payable by Exchequer,DL6 2UU,"91,867.00",Yes
Communities & Local Government,DCLG,01/04/2016,Revenue Support grant payable,Local Government & Public Services,HAMMERSMITH & FULHAM LB,,,,216929489,5000328536,,Grant Payable by Exchequer,W6 9JU,"3,460,753.00",Yes
Communities & Local Government,DCLG,01/04/2016,Revenue Support grant payable,Local Government & Public Services,HAMPSHIRE COUNTY COUNCIL,,,,211325832,5000328537,,Grant Payable by Exchequer,SO23 8UB,"7,268,779.00",Yes
Communities & Local Government,DCLG,01/04/2016,Revenue Support grant payable,Local Government & Public Services,HAMPSHIRE FIRE & RESCUE AUTHORITY,,,,211325832,5000328538,,Grant Payable by Exchequer,SO23 8UB,"4,175,279.00",Yes
Communities & Local Government,DCLG,01/04/2016,Revenue Support grant payable,Local Government & Public Services,HARBOROUGH DC,,Public Bodies,,232611962,5000328539,,Grant Payable by Exchequer,LE16 7AG,"70,674.00",Yes
Communities & Local Government,DCLG,01/04/2016,Revenue Support grant payable,Local Government & Public Services,HARINGEY LB,,,,217471767,5000328540,,Grant Payable by Exchequer,N22 7TR,"4,588,954.00",Yes
Communities & Local Government,DCLG,01/04/2016,Revenue Support grant payable,Local Government & Public Services,HARLOW COUNCIL,,,,239999055,5000328541,,Grant Payable by Exchequer,CM20 1WG,"116,034.00",Yes
Communities & Local Government,DCLG,01/04/2016,Revenue Support grant payable,Local Government & Public Services,HARROGATE BOROUGH COUNCIL,,,,236660031,5000328542,,Grant Payable by Exchequer,HG1 2SG,"138,901.00",Yes
Communities & Local Government,DCLG,01/04/2016,Revenue Support grant payable,Local Government & Public Services,HARROW LB,,,,,5000328543,,Grant Payable by Exchequer,HA1 2UZ,"1,974,191.00",Yes
Communities & Local Government,DCLG,01/04/2016,Revenue Support grant payable,Local Government & Public Services,HART DC,,,,229723895,5000328544,,Grant Payable by Exchequer,GU13 8AE,"50,558.00",Yes
Communities & Local Government,DCLG,01/04/2016,Revenue Support grant payable,Local Government & Public Services,HARTLEPOOL BOROUGH COUNCIL,,,,424291797,5000328545,,Grant Payable by Exchequer,TS24 8AY,"1,638,557.00",Yes
Communities & Local Government,DCLG,01/04/2016,Revenue Support grant payable,Local Government & Public Services,HASTINGS BC,,,,,5000328546,,Grant Payable by Exchequer,TN34 3WN,"255,177.00",Yes
Communities & Local Government,DCLG,01/04/2016,Revenue Support grant payable,Local Government & Public Services,HAVANT BC,,,,211047543,5000328547,,Grant Payable by Exchequer,PO9 2AX,"140,083.00",Yes
Communities & Local Government,DCLG,01/04/2016,Revenue Support grant payable,Local Government & Public Services,HAVERING LB,,,,211209770,5000328548,,Grant Payable by Exchequer,RM1 3BB,"1,880,077.00",Yes
Communities & Local Government,DCLG,01/04/2016,Revenue Support grant payable,Local Government & Public Services,HEREFORD & WORCESTER FIRE & RESCUE,,,,236425484,5000328549,,Grant Payable by Exchequer,WR5 1JR,"1,488,075.00",Yes
Communities & Local Government,DCLG,01/04/2016,Revenue Support grant payable,Local Government & Public Services,HEREFORDSHIRE DISTRICT COUNCIL,,,,211510826,5000328550,,Grant Payable by Exchequer,HR1 1SH,"1,572,747.00",Yes
Communities & Local Government,DCLG,01/04/2016,Revenue Support grant payable,Local Government & Public Services,HERTFORDSHIRE COUNTY CNCL,,,,,5000328551,,Grant Payable by Exchequer,SG13 9BD,"7,199,253.00",Yes
Communities & Local Government,DCLG,01/04/2016,Revenue Support grant payable,Local Government & Public Services,HERTSMERE BC,,,,237549253,5000328552,,Grant Payable by Exchequer,WD6 1WA,"112,813.00",Yes
Communities & Local Government,DCLG,01/04/2016,Revenue Support grant payable,Local Government & Public Services,HIGH PEAK BC,,,,239967771,5000328553,,Grant Payable by Exchequer,SK17 6EL,"101,212.00",Yes
Communities & Local Government,DCLG,01/04/2016,Revenue Support grant payable,Local Government & Public Services,HILLINGDON LB,,,,211198585,5000328554,,Grant Payable by Exchequer,UB8 1UW,"2,648,813.00",Yes
Communities & Local Government,DCLG,01/04/2016,Revenue Support grant payable,Local Government & Public Services,HINCKLEY & BOSWORTH BC,,,,211176144,5000328555,,Grant Payable by Exchequer,LE10 1BZ,"113,165.00",Yes
Communities & Local Government,DCLG,01/04/2016,Revenue Support grant payable,Local Government & Public Services,HORSHAM DC,,,,229776588,5000328556,,Grant Payable by Exchequer,RH12 1RL,"74,218.00",Yes
Communities & Local Government,DCLG,01/04/2016,Revenue Support grant payable,Local Government & Public Services,HOUNSLOW LB,,,,210388999,5000328557,,Grant Payable by Exchequer,TW3 4DN,"2,797,371.00",Yes
Communities & Local Government,DCLG,01/04/2016,Revenue Support grant payable,Local Government & Public Services,HULL CITY COUNCIL,,,,217460984,5000328570,,Grant Payable by Exchequer,HU1 2AA,"4,565,277.00",Yes
Communities & Local Government,DCLG,01/04/2016,Revenue Support grant payable,Local Government & Public Services,HUMBERSIDE FIRE & RESCUE SERVICE,,,,229832563,5000328558,,Grant Payable by Exchequer,HU4 7BB,"3,673,620.00",Yes
Communities & Local Government,DCLG,01/04/2016,Revenue Support grant payable,Local Government & Public Services,HUNTINGDONSHIRE DC,,,,235999216,5000328559,,Grant Payable by Exchequer,PE18 6TN,"189,623.00",Yes
Communities & Local Government,DCLG,01/04/2016,Revenue Support grant payable,Local Government & Public Services,HYNDBURN BC,,,,,5000328560,,Grant Payable by Exchequer,BB5 1EZ,"287,522.00",Yes
Communities & Local Government,DCLG,01/04/2016,Revenue Support grant payable,Local Government & Public Services,IPSWICH BC,,,,226861391,5000328562,,Grant Payable by Exchequer,IP3 8SF,"141,172.00",Yes
Communities & Local Government,DCLG,01/04/2016,Revenue Support grant payable,Local Government & Public Services,ISLE OF WIGHT CNCL,,,,236431730,5000328561,,Grant Payable by Exchequer,PO30 1UD,"1,725,299.00",Yes
Communities & Local Government,DCLG,01/04/2016,Revenue Support grant payable,Local Government & Public Services,ISLES OF SCILLY COUNCIL,,,,214146040,5000328563,,Grant Payable by Exchequer,TR21 0LW,"170,090.00",Yes
Communities & Local Government,DCLG,01/04/2016,Revenue Support grant payable,Local Government & Public Services,ISLINGTON LB,,,,225716729,5000328564,,Grant Payable by Exchequer,N1 1XR,"4,762,620.00",Yes
Communities & Local Government,DCLG,01/04/2016,Revenue Support grant payable,Local Government & Public Services,KENT & MEDWAY TOWNS FIRE AUTHORITY,,,,423679414,5000328567,,Grant Payable by Exchequer,ME15 6XB,"3,979,797.00",Yes
Communities & Local Government,DCLG,01/04/2016,Revenue Support grant payable,Local Government & Public Services,KENT COUNTY CNCL,,,,211334420,5000328566,,Grant Payable by Exchequer,ME14 1XQ,"10,028,213.00",Yes
Communities & Local Government,DCLG,01/04/2016,Revenue Support grant payable,Local Government & Public Services,KETTERING BC,,,,211271796,5000328568,,Grant Payable by Exchequer,NN15 7QX,"104,438.00",Yes
Communities & Local Government,DCLG,01/04/2016,Revenue Support grant payable,Local Government & Public Services,KINGS LYNN & WEST NORFOLK BC,,,,236417671,5000328569,,Grant Payable by Exchequer,PE30 1EX,"249,324.00",Yes
Communities & Local Government,DCLG,01/04/2016,Revenue Support grant payable,Local Government & Public Services,KINGSTON UPON THAMES,,,,,5000328571,,Grant Payable by Exchequer,KT1 1EU,"1,076,322.00",Yes
Communities & Local Government,DCLG,01/04/2016,Revenue Support grant payable,Local Government & Public Services,KIRKLEES COUNCIL,,,,,5000328572,,Grant Payable by Exchequer,HD1 2YU,"4,306,164.00",Yes
Communities & Local Government,DCLG,01/04/2016,Revenue Support grant payable,Local Government & Public Services,KNOWSLEY MBC,,,,,5000328573,,Grant Payable by Exchequer,L36 9YZ,"3,693,881.00",Yes
Communities & Local Government,DCLG,01/04/2016,Revenue Support grant payable,Local Government & Public Services,LANCASHIRE COMBINED FIRE AUTHORITY,,,,230398732,5000328576,,Grant Payable by Exchequer,PR2 3LH,"4,406,031.00",Yes
Communities & Local Government,DCLG,01/04/2016,Revenue Support grant payable,Local Government & Public Services,LANCASHIRE COUNTY CNCL,,,,233136584,5000328575,,Grant Payable by Exchequer,PR1 8RD,"10,695,744.00",Yes
Communities & Local Government,DCLG,01/04/2016,Revenue Support grant payable,Local Government & Public Services,LANCASTER CITY CNCL,,,,228669990,5000328577,,Grant Payable by Exchequer,LA1 1PJ,"238,672.00",Yes
Communities & Local Government,DCLG,01/04/2016,Revenue Support grant payable,Local Government & Public Services,LEEDS CITY CNCL,,,,,5000328578,,Grant Payable by Exchequer,LS1 1JF,"8,374,308.00",Yes
Communities & Local Government,DCLG,01/04/2016,Revenue Support grant payable,Local Government & Public Services,LEICESTER CITY CNCL,,,,228219960,5000328579,,Grant Payable by Exchequer,LE1 1FZ,"5,615,856.00",Yes
Communities & Local Government,DCLG,01/04/2016,Revenue Support grant payable,Local Government & Public Services,LEICESTERSHIRE COUNTY CNCL,,,,423679836,5000328581,,Grant Payable by Exchequer,LE3 8RB,"3,329,269.00",Yes
Communities & Local Government,DCLG,01/04/2016,Revenue Support grant payable,Local Government & Public Services,LEICS LEICESTERSHIRE RUTLAND CFA,,,,,5000328580,,Grant Payable by Exchequer,LE4 3BU,"2,389,583.00",Yes
Communities & Local Government,DCLG,01/04/2016,Revenue Support grant payable,Local Government & Public Services,LEWES DC,,Large,,213090082,5000328582,,Grant Payable by Exchequer,BN7 1AB,"89,551.00",Yes
Communities & Local Government,DCLG,01/04/2016,Revenue Support grant payable,Local Government & Public Services,LEWISHAM LONDON BOROUGH,,Large,,235653300,5000328583,,Grant Payable by Exchequer,SE6 4RU,"5,364,728.00",Yes
Communities & Local Government,DCLG,01/04/2016,Revenue Support grant payable,Local Government & Public Services,LICHFIELD DC,,,,236780086,5000328584,,Grant Payable by Exchequer,WS13 6YX,"69,610.00",Yes
Communities & Local Government,DCLG,01/04/2016,Revenue Support grant payable,Local Government & Public Services,LINCOLNSHIRE COUNTY CNCL,,,,,5000328586,,Grant Payable by Exchequer,LN1 1YT,"6,331,563.00",Yes
Communities & Local Government,DCLG,01/04/2016,Revenue Support grant payable,Local Government & Public Services,LIVERPOOL CITY COUNCIL,,,,,5000328587,,Grant Payable by Exchequer,L2 2DH,"9,848,781.00",Yes
Communities & Local Government,DCLG,01/04/2016,Revenue Support grant payable,Local Government & Public Services,LONDON BOROUGH OF HACKNEY,,,,225221597,5000328533,,Grant Payable by Exchequer,E8 4RU,"6,222,641.00",Yes
Communities & Local Government,DCLG,01/04/2016,Revenue Support grant payable,Local Government & Public Services,LONDON BOROUGH OF LAMBETH,,,,228216479,5000328574,,Grant Payable by Exchequer,SW2 1RL,"6,241,011.00",Yes
Communities & Local Government,DCLG,01/04/2016,Revenue Support grant payable,Local Government & Public Services,LONDON BOROUGH OF NEWHAM,,Large,,228454344,5000328611,,Grant Payable by Exchequer,E16 2QU,"6,359,504.00",Yes
Communities & Local Government,DCLG,01/04/2016,Revenue Support grant payable,Local Government & Public Services,LONDON BOROUGH OF REDBRIDGE,,,,211341417,5000328645,,Grant Payable by Exchequer,IG1 1NN,"2,974,314.00",Yes
Communities & Local Government,DCLG,01/04/2016,Revenue Support grant payable,Local Government & Public Services,LUTON BC,,,,365112155,5000328588,,Grant Payable by Exchequer,LU1 2BQ,"2,589,212.00",Yes
Communities & Local Government,DCLG,01/04/2016,Revenue Support grant payable,Local Government & Public Services,MAIDSTONE BC,,,,293004214,5000328589,,Grant Payable by Exchequer,ME15 6JQ,"78,316.00",Yes
Communities & Local Government,DCLG,01/04/2016,Revenue Support grant payable,Local Government & Public Services,MALDON DC,,,,424668663,5000328590,,Grant Payable by Exchequer,CM9 7DL,"50,530.00",Yes
Communities & Local Government,DCLG,01/04/2016,Revenue Support grant payable,Local Government & Public Services,MALVERN HILLS DC,,,,227470424,5000328591,,Grant Payable by Exchequer,WR14 3AF,"70,091.00",Yes
Communities & Local Government,DCLG,01/04/2016,Revenue Support grant payable,Local Government & Public Services,MANCHESTER CITY CNCL,,,,211241393,5000328592,,Grant Payable by Exchequer,M60 2JR,"10,239,094.00",Yes
Communities & Local Government,DCLG,01/04/2016,Revenue Support grant payable,Local Government & Public Services,MANSFIELD DC,,,,237922968,5000328594,,Grant Payable by Exchequer,NG19 7BH,"167,288.00",Yes
Communities & Local Government,DCLG,01/04/2016,Revenue Support grant payable,Local Government & Public Services,MEDWAY COUNCIL,,,,210389746,5000328595,,Grant Payable by Exchequer,ME4 4TR,"2,522,823.00",Yes
Communities & Local Government,DCLG,01/04/2016,Revenue Support grant payable,Local Government & Public Services,MELTON BC,,,,346268340,5000328596,,Grant Payable by Exchequer,LE13 0UL,"51,828.00",Yes
Communities & Local Government,DCLG,01/04/2016,Revenue Support grant payable,Local Government & Public Services,MENDIP DISTRICT COUNCIL,,,,,5000328597,,Grant Payable by Exchequer,BA4 5BA,"126,301.00",Yes
Communities & Local Government,DCLG,01/04/2016,Revenue Support grant payable,Local Government & Public Services,MERSEYSIDE FIRE & RESCUE SERVICE,,,,210372331,5000328598,,Grant Payable by Exchequer,L30 4YD,"5,507,565.00",Yes
Communities & Local Government,DCLG,01/04/2016,Revenue Support grant payable,Local Government & Public Services,MERTON LB,,,,,5000328599,,Grant Payable by Exchequer,SM4 5DX,"2,033,052.00",Yes
Communities & Local Government,DCLG,01/04/2016,Revenue Support grant payable,Local Government & Public Services,MID DEVON DC,,,,213241137,5000328600,,Grant Payable by Exchequer,EX16 6PP,"91,554.00",Yes
Communities & Local Government,DCLG,01/04/2016,Revenue Support grant payable,Local Government & Public Services,MID SUFFOLK DC,,,,219028933,5000328601,,Grant Payable by Exchequer,IP6 8DL,"82,610.00",Yes
Communities & Local Government,DCLG,01/04/2016,Revenue Support grant payable,Local Government & Public Services,MID SUSSEX DC,,,,236675989,5000328602,,Grant Payable by Exchequer,RH16 1SS,"76,073.00",Yes
Communities & Local Government,DCLG,01/04/2016,Revenue Support grant payable,Local Government & Public Services,MIDDLESBROUGH BC,,,,,5000328603,,Grant Payable by Exchequer,TS1 9GA,"2,488,008.00",Yes
Communities & Local Government,DCLG,01/04/2016,Revenue Support grant payable,Local Government & Public Services,MILTON KEYNES BC,,,,506884659,5000328604,,Grant Payable by Exchequer,MK9 3EJ,"2,385,406.00",Yes
Communities & Local Government,DCLG,01/04/2016,Revenue Support grant payable,Local Government & Public Services,MOLE VALLEY DC,,,,225385772,5000328605,,Grant Payable by Exchequer,RH4 1SJ,"24,618.00",Yes
Communities & Local Government,DCLG,01/04/2016,Revenue Support grant payable,Local Government & Public Services,NEW FOREST DC,,,,,5000328607,,Grant Payable by Exchequer,SO41 9ZG,"158,837.00",Yes
Communities & Local Government,DCLG,01/04/2016,Revenue Support grant payable,Local Government & Public Services,NEWARK & SHERWOOD DC,,,,236186755,5000328608,,Grant Payable by Exchequer,NG23 5QX,"159,900.00",Yes
Communities & Local Government,DCLG,01/04/2016,Revenue Support grant payable,Local Government & Public Services,NEWCASTLE CITY COUNCIL,,,,239154040,5000328609,,Grant Payable by Exchequer,NE99 2BN,"5,198,696.00",Yes
Communities & Local Government,DCLG,01/04/2016,Revenue Support grant payable,Local Government & Public Services,NEWCASTLE UNDER LYME BC,,,,229894373,5000328610,,Grant Payable by Exchequer,ST5 2AG,"163,259.00",Yes
Communities & Local Government,DCLG,01/04/2016,Revenue Support grant payable,Local Government & Public Services,NORFOLK COUNTY COUNCIL,,,,232602789,5000328612,,Grant Payable by Exchequer,NR1 2DW,"9,766,006.00",Yes
Communities & Local Government,DCLG,01/04/2016,Revenue Support grant payable,Local Government & Public Services,NORTH DEVON DC,,,,,5000328613,,Grant Payable by Exchequer,EX31 1EA,"130,170.00",Yes
Communities & Local Government,DCLG,01/04/2016,Revenue Support grant payable,Local Government & Public Services,NORTH DORSET DC,,,,236185005,5000328614,,Grant Payable by Exchequer,DT11 7LL,"66,133.00",Yes
Communities & Local Government,DCLG,01/04/2016,Revenue Support grant payable,Local Government & Public Services,NORTH EAST DERBYSHIRE DC,,,,238879308,5000328606,,Grant Payable by Exchequer,S40 1LF,"116,545.00",Yes
Communities & Local Government,DCLG,01/04/2016,Revenue Support grant payable,Local Government & Public Services,NORTH EAST LINCOLN COUNCIL,,Public Bodies,,423962570,5000328615,,Grant Payable by Exchequer,DN35 8LN,"2,183,841.00",Yes
Communities & Local Government,DCLG,01/04/2016,Revenue Support grant payable,Local Government & Public Services,NORTH HERTS DC,,,,233593917,5000328616,,Grant Payable by Exchequer,SG6 3HN,"73,915.00",Yes
Communities & Local Government,DCLG,01/04/2016,Revenue Support grant payable,Local Government & Public Services,NORTH KESTEVEN DC,,,,,5000328617,,Grant Payable by Exchequer,NG34 7EF,"120,793.00",Yes
Communities & Local Government,DCLG,01/04/2016,Revenue Support grant payable,Local Government & Public Services,NORTH LINCOLNSHIRE DC,,Public Bodies,,221034841,5000328618,,Grant Payable by Exchequer,DN16 1AB,"1,845,991.00",Yes
Communities & Local Government,DCLG,01/04/2016,Revenue Support grant payable,Local Government & Public Services,NORTH NORFOLK DC,,,,239975964,5000328619,,Grant Payable by Exchequer,NR27 9EN,"141,763.00",Yes
Communities & Local Government,DCLG,01/04/2016,Revenue Support grant payable,Local Government & Public Services,NORTH SOMERSET DC,,,,,5000328620,,Grant Payable by Exchequer,BS21 6FW,"1,727,914.00",Yes
Communities & Local Government,DCLG,01/04/2016,Revenue Support grant payable,Local Government & Public Services,NORTH TYNESIDE MBC,,,,,5000328621,,Grant Payable by Exchequer,NE27 0BY,"2,806,535.00",Yes
Communities & Local Government,DCLG,01/04/2016,Revenue Support grant payable,Local Government & Public Services,NORTH WARWICKSHIRE BC,,,,,5000328622,,Grant Payable by Exchequer,CV9 1DE,"80,902.00",Yes
Communities & Local Government,DCLG,01/04/2016,Revenue Support grant payable,Local Government & Public Services,NORTH WEST LEICESTERSHIRE DC,,,,232605782,5000328632,,Grant Payable by Exchequer,LE67 PSH,"100,941.00",Yes
Communities & Local Government,DCLG,01/04/2016,Revenue Support grant payable,Local Government & Public Services,NORTH YORKSHIRE CC,,,,,5000328623,,Grant Payable by Exchequer,DL7 8AL,"3,363,517.00",Yes
Communities & Local Government,DCLG,01/04/2016,Revenue Support grant payable,Local Government & Public Services,NORTH YORKSHIRE FIRE & RESCUE AUTH,,,,423679778,5000328624,,Grant Payable by Exchequer,DL6 1AB,"1,632,623.00",Yes
Communities & Local Government,DCLG,01/04/2016,Revenue Support grant payable,Local Government & Public Services,NORTHAMPTON BOROUGH COUNCIL,,Large,,228310017,5000328625,,Grant Payable by Exchequer,NN4 4FF,"293,074.00",Yes
Communities & Local Government,DCLG,01/04/2016,Revenue Support grant payable,Local Government & Public Services,NORTHAMPTONSHIRE COUNTY COUNCIL,,Public Bodies,,385469184,5000328626,,Grant Payable by Exchequer,NN4 7DB,"5,027,890.00",Yes
Communities & Local Government,DCLG,01/04/2016,Revenue Support grant payable,Local Government & Public Services,NORTHUMBERLAND COUNTY COUNCIL,,,,210308905,5000328466,,Grant Payable by Exchequer,NE61 2EF,"3,731,354.00",Yes
Communities & Local Government,DCLG,01/04/2016,Revenue Support grant payable,Local Government & Public Services,NORWICH CITY CNCL,,,,235981297,5000328627,,Grant Payable by Exchequer,NR2 1NH,"248,014.00",Yes
Communities & Local Government,DCLG,01/04/2016,Revenue Support grant payable,Local Government & Public Services,NOTTINGHAM CITY COUNCIL,,,,214495447,5000328628,,Grant Payable by Exchequer,NG2 3NG,"5,254,106.00",Yes
Communities & Local Government,DCLG,01/04/2016,Revenue Support grant payable,Local Government & Public Services,NOTTINGHAMSHIRE COUNTY CNCL,,,,,5000328629,,Grant Payable by Exchequer,NG2 7QP,"5,691,066.00",Yes
Communities & Local Government,DCLG,01/04/2016,Revenue Support grant payable,Local Government & Public Services,NOTTS & CITY NOTTINGHAM FIRE AUTH,,,,296814999,5000328630,,Grant Payable by Exchequer,NG5 8PD,"2,955,749.00",Yes
Communities & Local Government,DCLG,01/04/2016,Revenue Support grant payable,Local Government & Public Services,NUNEATON & BEDWORTH BC,,Large,,,5000328631,,Grant Payable by Exchequer,CV11 5AA,"141,908.00",Yes
Communities & Local Government,DCLG,01/04/2016,Revenue Support grant payable,Local Government & Public Services,OADBY & WIGSTON BC,,,,239831878,5000328633,,Grant Payable by Exchequer,LE8 2DR,"64,645.00",Yes
Communities & Local Government,DCLG,01/04/2016,Revenue Support grant payable,Local Government & Public Services,OLDHAM MBC,,,,213015574,5000328634,,Grant Payable by Exchequer,OL1 1UH,"3,648,906.00",Yes
Communities & Local Government,DCLG,01/04/2016,Revenue Support grant payable,Local Government & Public Services,OXFORD CITY CNCL,,,,236042586,5000328635,,Grant Payable by Exchequer,OX1 1DS,"251,445.00",Yes
Communities & Local Government,DCLG,01/04/2016,Revenue Support grant payable,Local Government & Public Services,OXFORDSHIRE CC,,,,228216438,5000328636,,Grant Payable by Exchequer,OX4 2GQ,"3,539,782.00",Yes
Communities & Local Government,DCLG,01/04/2016,Revenue Support grant payable,Local Government & Public Services,PENDLE BC,,,,548605328,5000328637,,Grant Payable by Exchequer,BB9 7LG,"271,151.00",Yes
Communities & Local Government,DCLG,01/04/2016,Revenue Support grant payable,Local Government & Public Services,PETERBOROUGH CITY CNCL,,,,,5000328638,,Grant Payable by Exchequer,PE1 1HG,"2,428,430.00",Yes
Communities & Local Government,DCLG,01/04/2016,Revenue Support grant payable,Local Government & Public Services,PLYMOUTH CITY COUNCIL,,Public Bodies,,236416095,5000328639,,Grant Payable by Exchequer,PL1 2AA,"2,989,033.00",Yes
Communities & Local Government,DCLG,01/04/2016,Revenue Support grant payable,Local Government & Public Services,POOLE BC,,,,,5000328640,,Grant Payable by Exchequer,BH15 2RU,"894,817.00",Yes
Communities & Local Government,DCLG,01/04/2016,Revenue Support grant payable,Local Government & Public Services,PORTSMOUTH CITY COUNCIL,,Large,,211183082,5000328641,,Grant Payable by Exchequer,PO1 2AR,"2,732,690.00",Yes
Communities & Local Government,DCLG,01/04/2016,Revenue Support grant payable,Local Government & Public Services,PRESTON BC,,,,232604124,5000328642,,Grant Payable by Exchequer,PR1 2RL,"227,442.00",Yes
Communities & Local Government,DCLG,01/04/2016,Revenue Support grant payable,Local Government & Public Services,PURBECK DC,,Public Bodies,,,5000328643,,Grant Payable by Exchequer,BH20 4PP,"37,702.00",Yes
Communities & Local Government,DCLG,01/04/2016,Revenue Support grant payable,Local Government & Public Services,READING BC,,,,210220399,5000328644,,Grant Payable by Exchequer,RG1 7TD,"1,514,300.00",Yes
Communities & Local Government,DCLG,01/04/2016,Revenue Support grant payable,Local Government & Public Services,REDCAR & CLEVELAND BOROUGH COUNCIL,,,,215175196,5000328646,,Grant Payable by Exchequer,TS6 9AR,"1,939,550.00",Yes
Communities & Local Government,DCLG,01/04/2016,Revenue Support grant payable,Local Government & Public Services,REDDITCH BC,,,,231421491,5000328647,,Grant Payable by Exchequer,B98 8AH,"81,098.00",Yes
Communities & Local Government,DCLG,01/04/2016,Revenue Support grant payable,Local Government & Public Services,REIGATE & BANSTEAD BC,,,,211313515,5000328648,,Grant Payable by Exchequer,RH2 OSH,"44,559.00",Yes
Communities & Local Government,DCLG,01/04/2016,Revenue Support grant payable,Local Government & Public Services,RIBBLE VALLEY BC,,,,232617894,5000328649,,Grant Payable by Exchequer,BB7 2RA,"56,078.00",Yes
Communities & Local Government,DCLG,01/04/2016,Revenue Support grant payable,Local Government & Public Services,RICHMOND UPON THAMES LB,,Large,,228868535,5000328650,,Grant Payable by Exchequer,TW1 3BZ,"1,110,041.00",Yes
Communities & Local Government,DCLG,01/04/2016,Revenue Support grant payable,Local Government & Public Services,RICHMONDSHIRE DC,,Large,,232245142,5000328651,,Grant Payable by Exchequer,DL10 4JX,"54,984.00",Yes
Communities & Local Government,DCLG,01/04/2016,Revenue Support grant payable,Local Government & Public Services,ROCHDALE MBC,,,,,5000328652,,Grant Payable by Exchequer,OL16 1YG,"3,534,532.00",Yes
Communities & Local Government,DCLG,01/04/2016,Revenue Support grant payable,Local Government & Public Services,ROCHFORD DISTRICT COUNCIL,,,,387828767,5000328653,,Grant Payable by Exchequer,SS4 1BW,"52,512.00",Yes
Communities & Local Government,DCLG,01/04/2016,Revenue Support grant payable,Local Government & Public Services,ROSSENDALE BC,,,,237654020,5000328654,,Grant Payable by Exchequer,OL13 0BB,"91,410.00",Yes
Communities & Local Government,DCLG,01/04/2016,Revenue Support grant payable,Local Government & Public Services,ROTHER DC,,,,,5000328655,,Grant Payable by Exchequer,TN39 3JX,"96,612.00",Yes
Communities & Local Government,DCLG,01/04/2016,Revenue Support grant payable,Local Government & Public Services,ROTHERHAM MBC,,,,211266937,5000328656,,Grant Payable by Exchequer,S60 1AE,"3,546,415.00",Yes
Communities & Local Government,DCLG,01/04/2016,Revenue Support grant payable,Local Government & Public Services,ROYAL BERKSHIRE FIRE AUTHORITY,,,,424872653,5000328346,,Grant Payable by Exchequer,RG30 4FS,"1,902,057.00",Yes
Communities & Local Government,DCLG,01/04/2016,Revenue Support grant payable,Local Government & Public Services,ROYAL BORO OF KENSINGTON & CHELSEA,,,,211124466,5000328565,,Grant Payable by Exchequer,W8 7NX,"2,839,322.00",Yes
Communities & Local Government,DCLG,01/04/2016,Revenue Support grant payable,Local Government & Public Services,RUGBY BC,,,,,5000328657,,Grant Payable by Exchequer,CV21 2RR,"98,861.00",Yes
Communities & Local Government,DCLG,01/04/2016,Revenue Support grant payable,Local Government & Public Services,RUNNYMEDE BOROUGH COUNCIL,,,,232225722,5000328658,,Grant Payable by Exchequer,KT15 2AH,"67,161.00",Yes
Communities & Local Government,DCLG,01/04/2016,Revenue Support grant payable,Local Government & Public Services,RUSHCLIFFE BOROUGH COUNCIL,,,,,5000328659,,Grant Payable by Exchequer,NG2 5FE,"93,037.00",Yes
Communities & Local Government,DCLG,01/04/2016,Revenue Support grant payable,Local Government & Public Services,RUSHMOOR BC,,,,232607606,5000328660,,Grant Payable by Exchequer,GU14 7JU,"99,345.00",Yes
Communities & Local Government,DCLG,01/04/2016,Revenue Support grant payable,Local Government & Public Services,RUTLAND CC,,,,,5000328661,,Grant Payable by Exchequer,LE15 6HP,"215,273.00",Yes
Communities & Local Government,DCLG,01/04/2016,Revenue Support grant payable,Local Government & Public Services,RYEDALE DC,,,,,5000328662,,Grant Payable by Exchequer,YO17 0HH,"68,662.00",Yes
Communities & Local Government,DCLG,01/04/2016,Revenue Support grant payable,Local Government & Public Services,SALFORD CITY CNCL,,,,213180073,5000328663,,Grant Payable by Exchequer,M27 5AW,"4,207,989.00",Yes
Communities & Local Government,DCLG,01/04/2016,Revenue Support grant payable,Local Government & Public Services,SANDWELL MBC,,,,,5000328664,,Grant Payable by Exchequer,B69 3DE,"6,068,235.00",Yes
Communities & Local Government,DCLG,01/04/2016,Revenue Support grant payable,Local Government & Public Services,SCARBOROUGH BC,,Large,,,5000328665,,Grant Payable by Exchequer,YO11 2HG,"191,565.00",Yes
Communities & Local Government,DCLG,01/04/2016,Revenue Support grant payable,Local Government & Public Services,SEDGEMOOR DC,,,,211204011,5000328666,,Grant Payable by Exchequer,TA6 3AR,"142,294.00",Yes
Communities & Local Government,DCLG,01/04/2016,Revenue Support grant payable,Local Government & Public Services,SEFTON MBC,,,,232936125,5000328667,,Grant Payable by Exchequer,L20 3AB,"3,471,907.00",Yes
Communities & Local Government,DCLG,01/04/2016,Revenue Support grant payable,Local Government & Public Services,SELBY DC,,,,239816721,5000328668,,Grant Payable by Exchequer,YO8 9FT,"100,917.00",Yes
Communities & Local Government,DCLG,01/04/2016,Revenue Support grant payable,Local Government & Public Services,SEVENOAKS DC,,,,236100913,5000328669,,Grant Payable by Exchequer,TN13 1HG,"56,951.00",Yes
Communities & Local Government,DCLG,01/04/2016,Revenue Support grant payable,Local Government & Public Services,SHEFFIELD CITY CNCL,,Large,,,5000328670,,Grant Payable by Exchequer,S1 1UJ,"8,153,322.00",Yes
Communities & Local Government,DCLG,01/04/2016,Revenue Support grant payable,Local Government & Public Services,SHEPWAY DC,,,,235550878,5000328671,,Grant Payable by Exchequer,CT20 2QY,"156,260.00",Yes
Communities & Local Government,DCLG,01/04/2016,Revenue Support grant payable,Local Government & Public Services,SHROPSHIRE & WREKIN FIRE AUTHORITY,,,,424873610,5000328672,,Grant Payable by Exchequer,SY1 2HJ,"981,440.00",Yes
Communities & Local Government,DCLG,01/04/2016,Revenue Support grant payable,Local Government & Public Services,SHROPSHIRE COUNCIL,,Large,,217036490,5000328468,,Grant Payable by Exchequer,SY2 6ND,"2,840,934.00",Yes
Communities & Local Government,DCLG,01/04/2016,Revenue Support grant payable,Local Government & Public Services,SLOUGH BOROUGH COUNCIL,,,,211027123,5000328673,,Grant Payable by Exchequer,SL1 3UF,"1,662,894.00",Yes
Communities & Local Government,DCLG,01/04/2016,Revenue Support grant payable,Local Government & Public Services,SOLIHULL MBC,,,,,5000328674,,Grant Payable by Exchequer,B91 3QR,"1,727,973.00",Yes
Communities & Local Government,DCLG,01/04/2016,Revenue Support grant payable,Local Government & Public Services,SOMERSET COUNTY CNCL,,,,211229406,5000328675,,Grant Payable by Exchequer,TA1 4DY,"3,801,695.00",Yes
Communities & Local Government,DCLG,01/04/2016,Revenue Support grant payable,Local Government & Public Services,SOUTH BUCKS DC,,,,221356624,5000328676,,Grant Payable by Exchequer,UB9 4LH,"39,223.00",Yes
Communities & Local Government,DCLG,01/04/2016,Revenue Support grant payable,Local Government & Public Services,SOUTH CAMBRIDGESHIRE DC,,,,,5000328677,,Grant Payable by Exchequer,CB3 6EA,"83,318.00",Yes
Communities & Local Government,DCLG,01/04/2016,Revenue Support grant payable,Local Government & Public Services,SOUTH DERBYSHIRE D C,,Public Bodies,,232612416,5000328678,,Grant Payable by Exchequer,DE11 0AH,"107,927.00",Yes
Communities & Local Government,DCLG,01/04/2016,Revenue Support grant payable,Local Government & Public Services,SOUTH GLOUCESTERSHIRE COUNCIL,,,,212834242,5000328679,,Grant Payable by Exchequer,BS15 2TR,"2,275,556.00",Yes
Communities & Local Government,DCLG,01/04/2016,Revenue Support grant payable,Local Government & Public Services,SOUTH HAMS DC,,,,236445342,5000328680,,Grant Payable by Exchequer,TQ9 5NE,"67,451.00",Yes
Communities & Local Government,DCLG,01/04/2016,Revenue Support grant payable,Local Government & Public Services,SOUTH HOLLAND,,,,236445383,5000328681,,Grant Payable by Exchequer,PE11 2XE,"149,900.00",Yes
Communities & Local Government,DCLG,01/04/2016,Revenue Support grant payable,Local Government & Public Services,SOUTH KESTEVEN DC,,,,227470747,5000328682,,Grant Payable by Exchequer,NG31 6PZ,"152,973.00",Yes
Communities & Local Government,DCLG,01/04/2016,Revenue Support grant payable,Local Government & Public Services,SOUTH LAKELAND DC,,Large,,236445466,5000328683,,Grant Payable by Exchequer,LA9 4DQ,"84,060.00",Yes
Communities & Local Government,DCLG,01/04/2016,Revenue Support grant payable,Local Government & Public Services,SOUTH NORFOLK DC,,,,232605717,5000328684,,Grant Payable by Exchequer,NR15 2XE,"135,184.00",Yes
Communities & Local Government,DCLG,01/04/2016,Revenue Support grant payable,Local Government & Public Services,SOUTH NORTHAMPTONSHIRE DC,,,,,5000328685,,Grant Payable by Exchequer,NN12 7AE,"73,050.00",Yes
Communities & Local Government,DCLG,01/04/2016,Revenue Support grant payable,Local Government & Public Services,SOUTH OXFORDSHIRE DC,,,,212296766,5000328686,,Grant Payable by Exchequer,OX10 8ED,"107,538.00",Yes
Communities & Local Government,DCLG,01/04/2016,Revenue Support grant payable,Local Government & Public Services,SOUTH RIBBLE BOROUGH COUNCIL,,,,,5000328687,,Grant Payable by Exchequer,PR5 1DH,"90,599.00",Yes
Communities & Local Government,DCLG,01/04/2016,Revenue Support grant payable,Local Government & Public Services,SOUTH SOMERSET DC,,,,239850811,5000328688,,Grant Payable by Exchequer,BA20 2DS,"150,800.00",Yes
Communities & Local Government,DCLG,01/04/2016,Revenue Support grant payable,Local Government & Public Services,SOUTH STAFFORDSHIRE DC,,,,210305155,5000328689,,Grant Payable by Exchequer,WV8 1PX,"102,916.00",Yes
Communities & Local Government,DCLG,01/04/2016,Revenue Support grant payable,Local Government & Public Services,SOUTH TYNESIDE COUNCIL,,,,345736438,5000328690,,Grant Payable by Exchequer,NE33 2RL,"2,878,257.00",Yes
Communities & Local Government,DCLG,01/04/2016,Revenue Support grant payable,Local Government & Public Services,SOUTH YORKSHIRE FIRE & RESCUE AUTH,,,,424872620,5000328691,,Grant Payable by Exchequer,S70 2HG,"4,255,460.00",Yes
Communities & Local Government,DCLG,01/04/2016,Revenue Support grant payable,Local Government & Public Services,SOUTHAMPTON CITY CNCL,,,,216927475,5000328692,,Grant Payable by Exchequer,SO14 7LY,"2,928,504.00",Yes
Communities & Local Government,DCLG,01/04/2016,Revenue Support grant payable,Local Government & Public Services,SOUTHEND ON SEA BC,,,,217067263,5000328693,,Grant Payable by Exchequer,SS2 6EP,"1,920,418.00",Yes
Communities & Local Government,DCLG,01/04/2016,Revenue Support grant payable,Local Government & Public Services,SOUTHWARK LB,,,,,5000328694,,Grant Payable by Exchequer,SE1P 5LX,"6,613,180.00",Yes
Communities & Local Government,DCLG,01/04/2016,Revenue Support grant payable,Local Government & Public Services,SPELTHORNE BOROUGH COUNCIL,,,,211177332,5000328695,,Grant Payable by Exchequer,TW18 1XB,"52,222.00",Yes
Communities & Local Government,DCLG,01/04/2016,Revenue Support grant payable,Local Government & Public Services,ST ALBANS CITY COUNCIL,,,,218692510,5000328696,,Grant Payable by Exchequer,AL1 3JE,"89,853.00",Yes
Communities & Local Government,DCLG,01/04/2016,Revenue Support grant payable,Local Government & Public Services,ST EDMUNDSBURY BC,,,,,5000328697,,Grant Payable by Exchequer,IP33 3YU,"102,667.00",Yes
Communities & Local Government,DCLG,01/04/2016,Revenue Support grant payable,Local Government & Public Services,ST HELENS MBC,,,,,5000328698,,Grant Payable by Exchequer,WA10 1HP,"2,525,175.00",Yes
Communities & Local Government,DCLG,01/04/2016,Revenue Support grant payable,Local Government & Public Services,STAFFORD BC,,,,227476934,5000328699,,Grant Payable by Exchequer,ST16 3AQ,"115,957.00",Yes
Communities & Local Government,DCLG,01/04/2016,Revenue Support grant payable,Local Government & Public Services,STAFFORDSHIRE  FIRE & RESCUE SERV,,Large,,232600577,5000328701,,Grant Payable by Exchequer,ST15 0BS,"2,680,857.00",Yes
Communities & Local Government,DCLG,01/04/2016,Revenue Support grant payable,Local Government & Public Services,STAFFORDSHIRE COUNTY CNCL,,,,,5000328700,,Grant Payable by Exchequer,ST16 2LH,"5,784,012.00",Yes
Communities & Local Government,DCLG,01/04/2016,Revenue Support grant payable,Local Government & Public Services,STAFFORDSHIRE MOORLANDS DC,,,,232749775,5000328702,,Grant Payable by Exchequer,ST13 6HQ,"112,166.00",Yes
Communities & Local Government,DCLG,01/04/2016,Revenue Support grant payable,Local Government & Public Services,STEVENAGE BC,,,,236440186,5000328703,,Grant Payable by Exchequer,SG1 1HN,"111,225.00",Yes
Communities & Local Government,DCLG,01/04/2016,Revenue Support grant payable,Local Government & Public Services,STOCKPORT MBC,,,,228706248,5000328310,,Grant Payable by Exchequer,SK1 3XE,"2,546,053.00",Yes
Communities & Local Government,DCLG,01/04/2016,Revenue Support grant payable,Local Government & Public Services,STOCKTON ON TEES BC,,,,,5000328312,,Grant Payable by Exchequer,TS23 2YS,"1,976,391.00",Yes
Communities & Local Government,DCLG,01/04/2016,Revenue Support grant payable,Local Government & Public Services,STOKE ON TRENT CITY COUNCIL,,,,216037890,5000328314,,Grant Payable by Exchequer,ST4 1HH,"4,369,044.00",Yes
Communities & Local Government,DCLG,01/04/2016,Revenue Support grant payable,Local Government & Public Services,STRATFORD ON AVON DC,,,,227473881,5000328317,,Grant Payable by Exchequer,CV37 6HX,"100,560.00",Yes
Communities & Local Government,DCLG,01/04/2016,Revenue Support grant payable,Local Government & Public Services,STROUD DC,,,,,5000328318,,Grant Payable by Exchequer,GL5 4UB,"94,796.00",Yes
Communities & Local Government,DCLG,01/04/2016,Revenue Support grant payable,Local Government & Public Services,SUFFOLK COASTAL DC,,,,239933203,5000328323,,Grant Payable by Exchequer,IP12 1AU,"117,367.00",Yes
Communities & Local Government,DCLG,01/04/2016,Revenue Support grant payable,Local Government & Public Services,SUFFOLK COUNTY CNCL,,Public Bodies,,232767710,5000328321,,Grant Payable by Exchequer,IP4 2JP,"6,140,727.00",Yes
Communities & Local Government,DCLG,01/04/2016,Revenue Support grant payable,Local Government & Public Services,SUNDERLAND DC,,,,215599312,5000328325,,Grant Payable by Exchequer,SR2 7DN,"5,150,784.00",Yes
Communities & Local Government,DCLG,01/04/2016,Revenue Support grant payable,Local Government & Public Services,SURREY COUNTY CNCL,,Public Bodies,,,5000328326,,Grant Payable by Exchequer,KT1 2DN,"6,037,042.00",Yes
Communities & Local Government,DCLG,01/04/2016,Revenue Support grant payable,Local Government & Public Services,SURREY HEATH BC,,,,236445441,5000328328,,Grant Payable by Exchequer,GU15 3HD,"32,114.00",Yes
Communities & Local Government,DCLG,01/04/2016,Revenue Support grant payable,Local Government & Public Services,SUTTON LB,,,,,5000328330,,Grant Payable by Exchequer,SM1 1EA,"2,227,565.00",Yes
Communities & Local Government,DCLG,01/04/2016,Revenue Support grant payable,Local Government & Public Services,SWALE BC,,,,239842768,5000328332,,Grant Payable by Exchequer,ME10 3HT,"187,736.00",Yes
Communities & Local Government,DCLG,01/04/2016,Revenue Support grant payable,Local Government & Public Services,SWINDON BC,,,,458639697,5000328335,,Grant Payable by Exchequer,SN1 2JH,"1,874,072.00",Yes
Communities & Local Government,DCLG,01/04/2016,Revenue Support grant payable,Local Government & Public Services,TAMESIDE MBC,,,,212635875,5000328337,,Grant Payable by Exchequer,OL6 0GA,"3,104,362.00",Yes
Communities & Local Government,DCLG,01/04/2016,Revenue Support grant payable,Local Government & Public Services,TAMWORTH BOROUGH COUNCIL,,,,232612457,5000328339,,Grant Payable by Exchequer,B79 7BZ,"108,864.00",Yes
Communities & Local Government,DCLG,01/04/2016,Revenue Support grant payable,Local Government & Public Services,TANDRIDGE DC,,,,225481076,5000328340,,Grant Payable by Exchequer,RH8 0BT,"47,588.00",Yes
Communities & Local Government,DCLG,01/04/2016,Revenue Support grant payable,Local Government & Public Services,TAUNTON DEANE BC,,,,236185294,5000328343,,Grant Payable by Exchequer,TA1 1HE,"111,162.00",Yes
Communities & Local Government,DCLG,01/04/2016,Revenue Support grant payable,Local Government & Public Services,TEIGNBRIDGE DC,,,,236440475,5000328345,,Grant Payable by Exchequer,TQ12 4XX,"144,127.00",Yes
Communities & Local Government,DCLG,01/04/2016,Revenue Support grant payable,Local Government & Public Services,TELFORD & WREKIN DC,,,,230235801,5000328347,,Grant Payable by Exchequer,TF3 4NT,"2,240,955.00",Yes
Communities & Local Government,DCLG,01/04/2016,Revenue Support grant payable,Local Government & Public Services,TENDRING DC,,,,,5000328349,,Grant Payable by Exchequer,CO15 1SE,"230,746.00",Yes
Communities & Local Government,DCLG,01/04/2016,Revenue Support grant payable,Local Government & Public Services,TEST VALLEY BC,,Large,,225442698,5000328351,,Grant Payable by Exchequer,SP10 3AJ,"91,098.00",Yes
Communities & Local Government,DCLG,01/04/2016,Revenue Support grant payable,Local Government & Public Services,TEWKESBURY BC,,,,232740399,5000328353,,Grant Payable by Exchequer,GL20 5TT,"79,872.00",Yes
Communities & Local Government,DCLG,01/04/2016,Revenue Support grant payable,Local Government & Public Services,THANET DC,,,,232309369,5000328355,,Grant Payable by Exchequer,CT8 1XZ,"221,840.00",Yes
Communities & Local Government,DCLG,01/04/2016,Revenue Support grant payable,Local Government & Public Services,THREE RIVERS DC,,,,,5000328357,,Grant Payable by Exchequer,WD3 1RL,"78,678.00",Yes
Communities & Local Government,DCLG,01/04/2016,Revenue Support grant payable,Local Government & Public Services,THURROCK  BOROUGH COUNCIL,,,,,5000328359,,Grant Payable by Exchequer,RM17 6LT,"1,860,546.00",Yes
Communities & Local Government,DCLG,01/04/2016,Revenue Support grant payable,Local Government & Public Services,TONBRIDGE & MALLING BC,,,,,5000328361,,Grant Payable by Exchequer,ME19 6LZ,"58,954.00",Yes
Communities & Local Government,DCLG,01/04/2016,Revenue Support grant payable,Local Government & Public Services,TORBAY BC,,,,,5000328363,,Grant Payable by Exchequer,TQ1 3DR,"1,804,977.00",Yes
Communities & Local Government,DCLG,01/04/2016,Revenue Support grant payable,Local Government & Public Services,TORRIDGE DC,,Public Bodies,,,5000328365,,Grant Payable by Exchequer,EX39 2QG,"103,709.00",Yes
Communities & Local Government,DCLG,01/04/2016,Revenue Support grant payable,Local Government & Public Services,TOWER HAMLETS LB,,,,231315144,5000328367,,Grant Payable by Exchequer,E14 2BG,"6,179,825.00",Yes
Communities & Local Government,DCLG,01/04/2016,Revenue Support grant payable,Local Government & Public Services,TRAFFORD MBC,,,,,5000328369,,Grant Payable by Exchequer,M32 0TH,"2,069,017.00",Yes
Communities & Local Government,DCLG,01/04/2016,Revenue Support grant payable,Local Government & Public Services,TUNBRIDGE WELLS BC,,,,775221013,5000328371,,Grant Payable by Exchequer,TN1 1RS,"75,044.00",Yes
Communities & Local Government,DCLG,01/04/2016,Revenue Support grant payable,Local Government & Public Services,TYNE & WEAR FIRE AUTHORITY,,,,215599312,5000328373,,Grant Payable by Exchequer,SR2 7DN,"4,393,309.00",Yes
Communities & Local Government,DCLG,01/04/2016,Revenue Support grant payable,Local Government & Public Services,UTTLESFORD DC,,,,424423242,5000328375,,Grant Payable by Exchequer,CB11 4ER,"61,576.00",Yes
Communities & Local Government,DCLG,01/04/2016,Revenue Support grant payable,Local Government & Public Services,VALE OF WHITE HORSE DC,,,,,5000328377,,Grant Payable by Exchequer,OX14 3JE,"97,421.00",Yes
Communities & Local Government,DCLG,01/04/2016,Revenue Support grant payable,Local Government & Public Services,WALSALL MBC,,,,212515585,5000328381,,Grant Payable by Exchequer,WS1 1TW,"4,118,317.00",Yes
Communities & Local Government,DCLG,01/04/2016,Revenue Support grant payable,Local Government & Public Services,WALTHAM FOREST LB,,Large,,,5000328383,,Grant Payable by Exchequer,E17 4JF,"4,003,526.00",Yes
Communities & Local Government,DCLG,01/04/2016,Revenue Support grant payable,Local Government & Public Services,WANDSWORTH LB,,,,,5000328385,,Grant Payable by Exchequer,SW18 2PU,"4,226,131.00",Yes
Communities & Local Government,DCLG,01/04/2016,Revenue Support grant payable,Local Government & Public Services,WARRINGTON BC,,,,,5000328387,,Grant Payable by Exchequer,WA1 1BN,"1,547,303.00",Yes
Communities & Local Government,DCLG,01/04/2016,Revenue Support grant payable,Local Government & Public Services,WARWICK,,,,,5000328389,,Grant Payable by Exchequer,CV32 4NW,"142,806.00",Yes
Communities & Local Government,DCLG,01/04/2016,Revenue Support grant payable,Local Government & Public Services,WARWICKSHIRE COUNTY CNCL,,,,210396290,5000328391,,Grant Payable by Exchequer,CV34 4RH,"3,375,226.00",Yes
Communities & Local Government,DCLG,01/04/2016,Revenue Support grant payable,Local Government & Public Services,WATFORD COUNCIL,,,,215498572,5000328393,,Grant Payable by Exchequer,WD17 3EX,"118,017.00",Yes
Communities & Local Government,DCLG,01/04/2016,Revenue Support grant payable,Local Government & Public Services,WAVENEY DISTRICT COUNCIL,,Large,,229740980,5000328395,,Grant Payable by Exchequer,NR32 1HS,"181,636.00",Yes
Communities & Local Government,DCLG,01/04/2016,Revenue Support grant payable,Local Government & Public Services,WAVERLEY BC,,Public Bodies,,236429064,5000328397,,Grant Payable by Exchequer,GU7 1HR,"68,827.00",Yes
Communities & Local Government,DCLG,01/04/2016,Revenue Support grant payable,Local Government & Public Services,WEALDEN DC,,,,232688697,5000328399,,Grant Payable by Exchequer,BN22 9LN,"109,199.00",Yes
Communities & Local Government,DCLG,01/04/2016,Revenue Support grant payable,Local Government & Public Services,WELLINGBOROUGH BOROUGH COUNCIL,,Large,,230851581,5000328401,,Grant Payable by Exchequer,NN8 1BP,"111,481.00",Yes
Communities & Local Government,DCLG,01/04/2016,Revenue Support grant payable,Local Government & Public Services,WELWYN HATFIELD COUNCIL,,,,210360804,5000328403,,Grant Payable by Exchequer,AL8 6AE,"117,629.00",Yes
Communities & Local Government,DCLG,01/04/2016,Revenue Support grant payable,Local Government & Public Services,WEST BERKSHIRE COUNCIL,,,,364809181,5000328405,,Grant Payable by Exchequer,RG14 2AF,"857,624.00",Yes
Communities & Local Government,DCLG,01/04/2016,Revenue Support grant payable,Local Government & Public Services,WEST DEVON BC,,,,234002095,5000328407,,Grant Payable by Exchequer,PL19 0BZ,"56,106.00",Yes
Communities & Local Government,DCLG,01/04/2016,Revenue Support grant payable,Local Government & Public Services,WEST DORSET DC,,,,424295350,5000328409,,Grant Payable by Exchequer,DT1 1UZ,"116,014.00",Yes
Communities & Local Government,DCLG,01/04/2016,Revenue Support grant payable,Local Government & Public Services,WEST LANCASHIRE BC,,,,232240978,5000328411,,Grant Payable by Exchequer,L39 2DF,"141,806.00",Yes
Communities & Local Government,DCLG,01/04/2016,Revenue Support grant payable,Local Government & Public Services,WEST LINDSEY DC,,,,227471026,5000328413,,Grant Payable by Exchequer,DN21 2NA,"124,861.00",Yes
Communities & Local Government,DCLG,01/04/2016,Revenue Support grant payable,Local Government & Public Services,WEST MIDLANDS FIRE & CIVIL DEFENCE,,,,232913731,5000328415,,Grant Payable by Exchequer,B4 7DE,"9,264,742.00",Yes
Communities & Local Government,DCLG,01/04/2016,Revenue Support grant payable,Local Government & Public Services,WEST OXFORDSHIRE DC,,Large,,210401379,5000328417,,Grant Payable by Exchequer,OX28 1NB,"95,170.00",Yes
Communities & Local Government,DCLG,01/04/2016,Revenue Support grant payable,Local Government & Public Services,WEST SOMERSET DC,,,,216015144,5000328419,,Grant Payable by Exchequer,TA4 4QA,"49,529.00",Yes
Communities & Local Government,DCLG,01/04/2016,Revenue Support grant payable,Local Government & Public Services,WEST SUSSEX CC,,Public Bodies,,232198762,5000328421,,Grant Payable by Exchequer,PO19 1RG,"4,777,190.00",Yes
Communities & Local Government,DCLG,01/04/2016,Revenue Support grant payable,Local Government & Public Services,WEST YORKSHIRE FIRE & RESCUE AUTH,,,,236428595,5000328423,,Grant Payable by Exchequer,HD1 2YU,"6,832,243.00",Yes
Communities & Local Government,DCLG,01/04/2016,Revenue Support grant payable,Local Government & Public Services,WESTMINSTER CITY CNCL,,,,229845706,5000328425,,Grant Payable by Exchequer,SW1E 6QP,"5,206,630.00",Yes
Communities & Local Government,DCLG,01/04/2016,Revenue Support grant payable,Local Government & Public Services,WEYMOUTH & PORTLAND BC,,,,735157948,5000328427,,Grant Payable by Exchequer,DT4 8TA,"66,814.00",Yes
Communities & Local Government,DCLG,01/04/2016,Revenue Support grant payable,Local Government & Public Services,WIGAN MBC,,,,,5000328429,,Grant Payable by Exchequer,WN1 1AZ,"3,958,863.00",Yes
Communities & Local Government,DCLG,01/04/2016,Revenue Support grant payable,Local Government & Public Services,WILTSHIRE COUNCIL,,,,211341656,5000328470,,Grant Payable by Exchequer,BA14 4DS,"3,125,302.00",Yes
Communities & Local Government,DCLG,01/04/2016,Revenue Support grant payable,Local Government & Public Services,WINCHESTER CITY CNCL,,,,228838280,5000328431,,Grant Payable by Exchequer,SO23 9LJ,"90,271.00",Yes
Communities & Local Government,DCLG,01/04/2016,Revenue Support grant payable,Local Government & Public Services,WINDSOR & MAIDENHEAD,,,,227411998,5000328433,,Grant Payable by Exchequer,SL6 1RF,"685,911.00",Yes
Communities & Local Government,DCLG,01/04/2016,Revenue Support grant payable,Local Government & Public Services,WIRRAL BOROUGH COUNCIL,,,,,5000328435,,Grant Payable by Exchequer,CH41 6BU,"4,564,121.00",Yes
Communities & Local Government,DCLG,01/04/2016,Revenue Support grant payable,Local Government & Public Services,WOKING BC,,,,211163449,5000328436,,Grant Payable by Exchequer,GU21 1YL,"52,886.00",Yes
Communities & Local Government,DCLG,01/04/2016,Revenue Support grant payable,Local Government & Public Services,WOKINGHAM DC,,,,,5000328438,,Grant Payable by Exchequer,RG11 1WJ,"553,087.00",Yes
Communities & Local Government,DCLG,01/04/2016,Revenue Support grant payable,Local Government & Public Services,WOLVERHAMPTON MBC,,,,229895453,5000328440,,Grant Payable by Exchequer,WV1 1RL,"4,525,529.00",Yes
Communities & Local Government,DCLG,01/04/2016,Revenue Support grant payable,Local Government & Public Services,WORCESTER CITY CNCL,,,,227419751,5000328442,,Grant Payable by Exchequer,WR1 2EZ,"109,194.00",Yes
Communities & Local Government,DCLG,01/04/2016,Revenue Support grant payable,Local Government & Public Services,WORCESTERSHIRE COUNTY COUNCIL,,,,230359643,5000328444,,Grant Payable by Exchequer,WR5 2NP,"3,271,189.00",Yes
Communities & Local Government,DCLG,01/04/2016,Revenue Support grant payable,Local Government & Public Services,WORTHING BC,,,,236429734,5000328446,,Grant Payable by Exchequer,BN11 1HB,"107,404.00",Yes
Communities & Local Government,DCLG,01/04/2016,Revenue Support grant payable,Local Government & Public Services,WYCHAVON DISTRICT COUNCIL,,,,232257139,5000328449,,Grant Payable by Exchequer,WR10 1PT,"102,723.00",Yes
Communities & Local Government,DCLG,01/04/2016,Revenue Support grant payable,Local Government & Public Services,WYCOMBE DC,,,,232683771,5000328451,,Grant Payable by Exchequer,HP11 1BB,"134,122.00",Yes
Communities & Local Government,DCLG,01/04/2016,Revenue Support grant payable,Local Government & Public Services,WYRE BC,,,,236646493,5000328453,,Grant Payable by Exchequer,FY6 7PU,"146,814.00",Yes
Communities & Local Government,DCLG,01/04/2016,Revenue Support grant payable,Local Government & Public Services,WYRE FOREST DISTRICT COUNCIL,,,,,5000328455,,Grant Payable by Exchequer,DY11 7WF,"106,116.00",Yes
Communities & Local Government,DCLG,01/04/2016,Revenue Support grant payable,Local Government & Public Services,YORK CITY CNCL,,,,,5000328441,,Grant Payable by Exchequer,YO1 1XH,"1,340,286.00",Yes
Communities & Local Government,DCLG,01/04/2016,Services provided by other Govt Orgs,Housing & Planning,VALUATION OFFICE AGENCY,,Public Bodies,,215253886,5106220816,Financial,Right to Buy Fees revaluations 15-16,W1D 5BU,"158,765.93",Yes
Communities & Local Government,DCLG,01/04/2016,Steady State Service Provision,Housing & Planning,LOCALITY,,Medium,,347998312,5106220837,Business Process Outsourcing Services,Neighbourhood Planning & CRTB,N1 6DR,"44,035.87",
Communities & Local Government,DCLG,01/04/2016,Steady State Service Provision,Local Government & Public Services,LOCALITY,,Medium,,347998312,5106220835,Business Process Outsourcing Services,Lot 5: Community Assets,N1 6DR,"16,583.98",
Communities & Local Government,DCLG,01/04/2016,Steady State Service Provision,Local Government & Public Services,LOCALITY,,Medium,,347998312,5106220836,Business Process Outsourcing Services,Lot 3 Our Place and First Steps,N1 6DR,"35,795.36",
Communities & Local Government,DCLG,01/04/2016,Steady State Service Provision,Local Government & Public Services,LOCALITY,,Medium,,347998312,5106220881,Business Process Outsourcing Services,Lot 1 Advice Service and Network,N1 6DR,"16,628.11",
Communities & Local Government,DCLG,01/04/2016,Steady State Service Provision,Local Government & Public Services,LOCALITY,,Medium,,347998312,5106220893,Business Process Outsourcing Services,Lot 1 Advice Service and Network,N1 6DR,"8,602.80",
Communities & Local Government,DCLG,01/04/2016,Subscriptions,Finance,ROYAL STATISTICAL SOCIETY,,Small,,236770160,5106220879,Subscriptions and Admissions,RSS Annual Subscription fees,EC1Y 8LX,"3,152.82",
Communities & Local Government,DCLG,01/04/2016,Subscriptions,Finance,ROYAL STATISTICAL SOCIETY,,Small,,236770160,5106220879,Subscriptions and Admissions,RSS Annual Subscription fees from Jan 16,EC1Y 8LX,"1,342.82",
Communities & Local Government,DCLG,01/04/2016,Telephone call costs,Finance,DAISY CORPORATE SERVICES LTD,,Large,,221481042,5106220856,IT Managed / Outsourced Services,call charges to 31/3/2016,BB9 5SR,"7,575.62",
Communities & Local Government,DCLG,01/04/2016,Telephone call costs,Finance,DAISY CORPORATE SERVICES LTD,,Large,,221481042,5106220890,IT Managed / Outsourced Services,call charges to 31/3/2016,BB9 5SR,836.98,
Communities & Local Government,DCLG,01/04/2016,Training,Finance,CRANFIELD MANAGEMENT DEVELOPMENT LT,,Medium,,346264427,5106220826,Development and Training,Project Leadership Programme (PLP),MK43 0AL,"7,166.67",
Communities & Local Government,DCLG,01/04/2016,Training,Finance,IBIS TRADING LTD,,Micro,,,5106220820,Development and Training,APM Project Management Conference 2016,HP27 9LE,405,
Communities & Local Government,DCLG,01/04/2016,Training,Finance,IBIS TRADING LTD,,Micro,,,5106220829,Development and Training,APM Project Management Conference 2016,HP27 9LE,405,
Communities & Local Government,DCLG,01/04/2016,Training,Finance,LEXXION VERLAGSGESELLSCHAFT MBH,,Small,,331558424,5106220887,Development and Training,ESI Funds & Public Procurement Requireme,10717,"1,053.63",
Communities & Local Government,DCLG,01/04/2016,Training,Finance,WHITEHALL & INDUSTRY GROUP,,Small,,385853957,5106220832,Development and Training,Mindfulness Seminar: Overcome Stress and,SW1H 9EX,450,
Communities & Local Government,DCLG,01/04/2016,Training,Local Government & Public Services,CAPITA BUS. SERV. LTD (CON LAB),,Large,,,5106220857,Development and Training,WPS CAPITA Contract National Resillience,DL1 9HB,"88,153.50",
Communities & Local Government,DCLG,01/04/2016,Travel and Subsistence Account,Decentralisation and Local Growth,REDFERN TRAVEL LIMITED,,Small,,213089972,2100263390,Business Travel,Consolidated Monthly Travel February Misc T&S,BD1 3AZ,386.91,
Communities & Local Government,DCLG,01/04/2016,Travel and Subsistence Account,Decentralisation and Local Growth,REDFERN TRAVEL LIMITED,,Small,,213089972,2100263390,Business Travel,Consolidated Monthly Travel February Misc T&S,BD1 3AZ,480.77,
Communities & Local Government,DCLG,01/04/2016,Travel and Subsistence Account,Local Government & Public Services,REDFERN TRAVEL LIMITED,,Small,,213089972,2100263390,Business Travel,Consolidated Monthly Travel February Misc T&S,BD1 3AZ,-258.65,
Communities & Local Government,DCLG,04/04/2016,Advertising,"Strategy, Communications and Private Office",OGILVY & MATHER GROUP (HOLDINGS) LT,,Large,,,5106220912,Advertising,Home Ownership Campaign,E14 4QB,"21,998.25",
Communities & Local Government,DCLG,04/04/2016,BLKD DC EU Gts (Cap) to Prvt/Sec Persons & NPISH,Local Government & Public Services,MUATH TRUST,,Small,,,7500029507,,20482/The Bordesley Centre: A Gateway to Eastside/,B11 1AR,"-53,925.87",Yes
Communities & Local Government,DCLG,04/04/2016,Current (non AEF) Grants to Local Authorities,Local Government & Public Services,ADUR DC,,,,227472891,5000330164,,Business Rates Relief s31 grant payments for 2014-15,BN11 1HA,"4,964.00",Yes
Communities & Local Government,DCLG,04/04/2016,Current (non AEF) Grants to Local Authorities,Local Government & Public Services,AYLESBURY VALE DC(HSG),,,,396710709,5000330022,,Business Rates Relief s31 grant payments for 2014-15,HP19 8FF,"318,751.00",Yes
Communities & Local Government,DCLG,04/04/2016,Current (non AEF) Grants to Local Authorities,Local Government & Public Services,BABERGH DC,,,,232618405,5000330023,,Business Rates Relief s31 grant payments for 2014-15,IP7 6SJ,"44,803.00",Yes
Communities & Local Government,DCLG,04/04/2016,Current (non AEF) Grants to Local Authorities,Local Government & Public Services,BARNSLEY MBC,,,,211178595,5000330169,,Business Rates Relief s31 grant payments for 2014-15,S70 2AQ,"98,812.00",Yes
Communities & Local Government,DCLG,04/04/2016,Current (non AEF) Grants to Local Authorities,Local Government & Public Services,BLACKBURN WITH DARWEN BC,,,,,5000330174,,Business Rates Relief s31 grant payments for 2014-15,BB1 7DY,"30,470.00",Yes
Communities & Local Government,DCLG,04/04/2016,Current (non AEF) Grants to Local Authorities,Local Government & Public Services,BRIGHTON & HOVE CITY COUNCIL,,Large,,228455218,5000330182,,Business Rates Relief s31 grant payments for 2014-15,BN3 2LS,"107,493.00",Yes
Communities & Local Government,DCLG,04/04/2016,Current (non AEF) Grants to Local Authorities,Local Government & Public Services,BROMSGROVE DC,,,,236654745,5000330035,,Business Rates Relief s31 grant payments for 2014-15,B60 1AA,"18,816.00",Yes
Communities & Local Government,DCLG,04/04/2016,Current (non AEF) Grants to Local Authorities,Local Government & Public Services,CAMBRIDGESHIRE COUNTY CNCL,,,,219047347,5000330191,,Business Rates Relief s31 grant payments for 2014-15,CB3 0AP,"7,690.00",Yes
Communities & Local Government,DCLG,04/04/2016,Current (non AEF) Grants to Local Authorities,Local Government & Public Services,CAMBS & PETERBOROUGH FIRE AUTHORITY,,,,235999737,5000330364,,Business Rates Relief s31 grant payments for 2014-15,PE29 2NA,"2,065.00",Yes
Communities & Local Government,DCLG,04/04/2016,Current (non AEF) Grants to Local Authorities,Local Government & Public Services,CHARNWOOD BC,,,,,5000330195,,Business Rates Relief s31 grant payments for 2014-15,LE11 2TU,"30,725.00",Yes
Communities & Local Government,DCLG,04/04/2016,Current (non AEF) Grants to Local Authorities,Local Government & Public Services,CITY OF SUNDERLAND (HSG),,,,215599312,5000330043,,Business Rates Relief s31 grant payments for 2014-15,SR2 7DN,"77,643.00",Yes
Communities & Local Government,DCLG,04/04/2016,Current (non AEF) Grants to Local Authorities,Local Government & Public Services,CITY OF WAKEFIELD MDC,,,,,5000330339,,Business Rates Relief s31 grant payments for 2014-15,WF1 2QW,"180,401.00",Yes
Communities & Local Government,DCLG,04/04/2016,Current (non AEF) Grants to Local Authorities,Local Government & Public Services,CORBY BC,,,,,5000330045,,Business Rates Relief s31 grant payments for 2014-15,NN17 1GD,"175,738.00",Yes
Communities & Local Government,DCLG,04/04/2016,Current (non AEF) Grants to Local Authorities,Local Government & Public Services,CORNWALL UNITARY AUTHORITY,,,,211334404,5000330372,,Business Rates Relief s31 grant payments for 2014-15,TR1 3AY,"107,549.00",Yes
Communities & Local Government,DCLG,04/04/2016,Current (non AEF) Grants to Local Authorities,Local Government & Public Services,COTSWOLD DC,,,,232462085,5000330046,,Business Rates Relief s31 grant payments for 2014-15,GL7 1PX,"169,255.00",Yes
Communities & Local Government,DCLG,04/04/2016,Current (non AEF) Grants to Local Authorities,Local Government & Public Services,CRAVEN DC (HSG),,,,,5000330047,,Business Rates Relief s31 grant payments for 2014-15,BD23 1FJ,"85,112.00",Yes
Communities & Local Government,DCLG,04/04/2016,Current (non AEF) Grants to Local Authorities,Local Government & Public Services,DARLINGTON BC,,,,,5000330205,,Business Rates Relief s31 grant payments for 2014-15,TS19 1JA,"216,954.00",Yes
Communities & Local Government,DCLG,04/04/2016,Current (non AEF) Grants to Local Authorities,Local Government & Public Services,DERBY CITY CNCL,,,,229641378,5000330206,,Business Rates Relief s31 grant payments for 2014-15,DE1 2FS,"23,263.00",Yes
Communities & Local Government,DCLG,04/04/2016,Current (non AEF) Grants to Local Authorities,Local Government & Public Services,DERBYSHIRE DALES DC,,,,,5000330051,,Business Rates Relief s31 grant payments for 2014-15,DE4 3NN,444,Yes
Communities & Local Government,DCLG,04/04/2016,Current (non AEF) Grants to Local Authorities,Local Government & Public Services,DORSET COUNTY CNCL,,,,225431279,5000330210,,Business Rates Relief s31 grant payments for 2014-15,DT1 1XJ,"2,504.00",Yes
Communities & Local Government,DCLG,04/04/2016,Current (non AEF) Grants to Local Authorities,Local Government & Public Services,DUDLEY MBC,,,,,5000330211,,Business Rates Relief s31 grant payments for 2014-15,DY1 1HF,"42,711.00",Yes
Communities & Local Government,DCLG,04/04/2016,Current (non AEF) Grants to Local Authorities,Local Government & Public Services,EAST HAMPSHIRE DC,,,,,5000330055,,Business Rates Relief s31 grant payments for 2014-15,GU31 4EX,"15,649.00",Yes
Communities & Local Government,DCLG,04/04/2016,Current (non AEF) Grants to Local Authorities,Local Government & Public Services,EAST STAFFORDSHIRE BC,,,,226778033,5000330060,,Business Rates Relief s31 grant payments for 2014-15,DE14 2EB,"42,874.00",Yes
Communities & Local Government,DCLG,04/04/2016,Current (non AEF) Grants to Local Authorities,Local Government & Public Services,HARROGATE BC,,,,236660031,5000330071,,Business Rates Relief s31 grant payments for 2014-15,HG1 2SG,"407,103.00",Yes
Communities & Local Government,DCLG,04/04/2016,Current (non AEF) Grants to Local Authorities,Local Government & Public Services,HASTINGS BC,,,,,5000330239,,Business Rates Relief s31 grant payments for 2014-15,TN34 3WN,"119,482.00",Yes
Communities & Local Government,DCLG,04/04/2016,Current (non AEF) Grants to Local Authorities,Local Government & Public Services,HIGH PEAK BC,,,,239967771,5000330073,,Business Rates Relief s31 grant payments for 2014-15,SK17 6EL,"9,092.00",Yes
Communities & Local Government,DCLG,04/04/2016,Current (non AEF) Grants to Local Authorities,Local Government & Public Services,HOUNSLOW LB,,Public Bodies,,210388999,5000330245,,Business Rates Relief s31 grant payments for 2014-15,TW3 4DN,"86,496.00",Yes
Communities & Local Government,DCLG,04/04/2016,Current (non AEF) Grants to Local Authorities,Local Government & Public Services,HUNTINGDONSHIRE DC,,,,235999216,5000330076,,Business Rates Relief s31 grant payments for 2014-15,PE18 6TN,"159,317.00",Yes
Communities & Local Government,DCLG,04/04/2016,Current (non AEF) Grants to Local Authorities,Local Government & Public Services,IPSWICH BC,,,,226861391,5000330247,,Business Rates Relief s31 grant payments for 2014-15,IP1 2DE,"10,222.00",Yes
Communities & Local Government,DCLG,04/04/2016,Current (non AEF) Grants to Local Authorities,Local Government & Public Services,ISLES OF SCILLY COUNCIL,,,,214146040,5000330249,,Business Rates Relief s31 grant payments for 2014-15,TR21 0LW,"13,361.00",Yes
Communities & Local Government,DCLG,04/04/2016,Current (non AEF) Grants to Local Authorities,Local Government & Public Services,ISLINGTON LB,,,,225716729,5000330250,,Business Rates Relief s31 grant payments for 2014-15,N1 1XR,"258,050.00",Yes
Communities & Local Government,DCLG,04/04/2016,Current (non AEF) Grants to Local Authorities,Local Government & Public Services,KIRKLEES COUNCIL (HSG),,,,,5000330079,,Business Rates Relief s31 grant payments for 2014-15,HD1 2YU,"188,778.00",Yes
Communities & Local Government,DCLG,04/04/2016,Current (non AEF) Grants to Local Authorities,Local Government & Public Services,MALVERN HILLS DC,,,,227470424,5000330265,,Business Rates Relief s31 grant payments for 2014-15,WR14 3AF,"11,182.00",Yes
Communities & Local Government,DCLG,04/04/2016,Current (non AEF) Grants to Local Authorities,Local Government & Public Services,MENDIP DISTRICT COUNCIL,,,,,5000330089,,Business Rates Relief s31 grant payments for 2014-15,BA4 5BA,"12,716.00",Yes
Communities & Local Government,DCLG,04/04/2016,Current (non AEF) Grants to Local Authorities,Local Government & Public Services,MID SUFFOLK DISTRICK COUNCIL,,,,223387239,5000330091,,Business Rates Relief s31 grant payments for 2014-15,IP6 8DL,"42,656.00",Yes
Communities & Local Government,DCLG,04/04/2016,Current (non AEF) Grants to Local Authorities,Local Government & Public Services,NEWCASTLE UNDER LYME BC,,,,229894373,5000330270,,Business Rates Relief s31 grant payments for 2014-15,ST5 2AG,"82,233.00",Yes
Communities & Local Government,DCLG,04/04/2016,Current (non AEF) Grants to Local Authorities,Local Government & Public Services,NORTH DEVON DC,,,,,5000330096,,Business Rates Relief s31 grant payments for 2014-15,EX31 1EA,"67,945.00",Yes
Communities & Local Government,DCLG,04/04/2016,Current (non AEF) Grants to Local Authorities,Local Government & Public Services,NORTH EAST DERBYSHIRE DC,,,,238879308,5000330274,,Business Rates Relief s31 grant payments for 2014-15,S40 1LF,"8,262.00",Yes
Communities & Local Government,DCLG,04/04/2016,Current (non AEF) Grants to Local Authorities,Local Government & Public Services,NORTH NORFOLK DC,,,,239975964,5000330101,,Business Rates Relief s31 grant payments for 2014-15,NR27 9EJ,"69,200.00",Yes
Communities & Local Government,DCLG,04/04/2016,Current (non AEF) Grants to Local Authorities,Local Government & Public Services,NORTH YORKSHIRE CC (DL7 8AL),,,,,5000330278,,Business Rates Relief s31 grant payments for 2014-15,DL7 8AL,"114,611.00",Yes
Communities & Local Government,DCLG,04/04/2016,Current (non AEF) Grants to Local Authorities,Local Government & Public Services,NORTH YORKSHIRE FIRE & RESCUE AUTH,,Large,,423679778,5000330366,,Business Rates Relief s31 grant payments for 2014-15,DL6 2ND,"6,584.00",Yes
Communities & Local Government,DCLG,04/04/2016,Current (non AEF) Grants to Local Authorities,Local Government & Public Services,NORTHAMPTON BOROUGH COUNCIL,,,,228310017,5000330279,,Business Rates Relief s31 grant payments for 2014-15,NN4 4FF,"72,992.00",Yes
Communities & Local Government,DCLG,04/04/2016,Current (non AEF) Grants to Local Authorities,Local Government & Public Services,NORTHAMPTONSHIRE COUNTY COUNCIL,,,,,5000330280,,Business Rates Relief s31 grant payments for 2014-15,CB3 0AP,"51,812.00",Yes
Communities & Local Government,DCLG,04/04/2016,Current (non AEF) Grants to Local Authorities,Local Government & Public Services,NORTHUMBERLAND COUNTY COUNCIL,,,,210308905,5000330368,,Business Rates Relief s31 grant payments for 2014-15,NE61 2EF,"108,131.00",Yes
Communities & Local Government,DCLG,04/04/2016,Current (non AEF) Grants to Local Authorities,Local Government & Public Services,NOTTINGHAM CITY COUNCIL,,,,214495447,5000330282,,Business Rates Relief s31 grant payments for 2014-15,NG2 3NG,"121,719.00",Yes
Communities & Local Government,DCLG,04/04/2016,Current (non AEF) Grants to Local Authorities,Local Government & Public Services,PETERBOROUGH CITY CNCL,,,,,5000330289,,Business Rates Relief s31 grant payments for 2014-15,PE1 1HG,"56,380.00",Yes
Communities & Local Government,DCLG,04/04/2016,Current (non AEF) Grants to Local Authorities,Local Government & Public Services,PRESTON BC,,,,232604124,5000330292,,Business Rates Relief s31 grant payments for 2014-15,PR1 2RL,"7,938.00",Yes
Communities & Local Government,DCLG,04/04/2016,Current (non AEF) Grants to Local Authorities,Local Government & Public Services,PURBECK DC,,,,,5000330106,,Business Rates Relief s31 grant payments for 2014-15,BH20 4PP,"11,635.00",Yes
Communities & Local Government,DCLG,04/04/2016,Current (non AEF) Grants to Local Authorities,Local Government & Public Services,READING BC,,,,210220399,5000330293,,Business Rates Relief s31 grant payments for 2014-15,RG1 7TD,"274,385.00",Yes
Communities & Local Government,DCLG,04/04/2016,Current (non AEF) Grants to Local Authorities,Local Government & Public Services,RICHMONDSHIRE DC,,,,232245142,5000330108,,Business Rates Relief s31 grant payments for 2014-15,DL10 4JX,"44,437.00",Yes
Communities & Local Government,DCLG,04/04/2016,Current (non AEF) Grants to Local Authorities,Local Government & Public Services,ROCHDALE MBC,,,,,5000330299,,Business Rates Relief s31 grant payments for 2014-15,OL16 1YG,"138,209.00",Yes
Communities & Local Government,DCLG,04/04/2016,Current (non AEF) Grants to Local Authorities,Local Government & Public Services,ROTHERHAM MBC,,,,211266937,5000330302,,Business Rates Relief s31 grant payments for 2014-15,S60 1AE,"25,916.00",Yes
Communities & Local Government,DCLG,04/04/2016,Current (non AEF) Grants to Local Authorities,Local Government & Public Services,RUSHCLIFFE BOROUGH COUNCIL,,,,,5000330110,,Business Rates Relief s31 grant payments for 2014-15,NG2 5FE,"1,609.00",Yes
Communities & Local Government,DCLG,04/04/2016,Current (non AEF) Grants to Local Authorities,Local Government & Public Services,RUTLAND CC,,,,,5000330306,,Business Rates Relief s31 grant payments for 2014-15,LE15 6HP,"4,733.00",Yes
Communities & Local Government,DCLG,04/04/2016,Current (non AEF) Grants to Local Authorities,Local Government & Public Services,SANDWELL MBC,,,,,5000330308,,Business Rates Relief s31 grant payments for 2014-15,B69 3BS,"550,462.00",Yes
Communities & Local Government,DCLG,04/04/2016,Current (non AEF) Grants to Local Authorities,Local Government & Public Services,SCARBOROUGH BC,,Large,,,5000330112,,Business Rates Relief s31 grant payments for 2014-15,YO11 2HG,"105,256.00",Yes
Communities & Local Government,DCLG,04/04/2016,Current (non AEF) Grants to Local Authorities,Local Government & Public Services,SEDGEMOOR DC,,,,211204011,5000330113,,Business Rates Relief s31 grant payments for 2014-15,TA6 3AR,"35,099.00",Yes
Communities & Local Government,DCLG,04/04/2016,Current (non AEF) Grants to Local Authorities,Local Government & Public Services,SHEFFIELD CITY CNCL,,,,,5000330310,,Business Rates Relief s31 grant payments for 2014-15,S1 1UJ,"322,846.00",Yes
Communities & Local Government,DCLG,04/04/2016,Current (non AEF) Grants to Local Authorities,Local Government & Public Services,SHEPWAY DISTRICT COUNCIL,,,,235550878,5000330116,,Business Rates Relief s31 grant payments for 2014-15,CT20 2QY,"57,429.00",Yes
Communities & Local Government,DCLG,04/04/2016,Current (non AEF) Grants to Local Authorities,Local Government & Public Services,SOUTH DERBYSHIRE DC,,Public Bodies,,232612416,5000330119,,Business Rates Relief s31 grant payments for 2014-15,DE11 0AH,"16,577.00",Yes
Communities & Local Government,DCLG,04/04/2016,Current (non AEF) Grants to Local Authorities,Local Government & Public Services,SOUTH NORTHAMPTONSHIRE DC,,,,,5000330126,,Business Rates Relief s31 grant payments for 2014-15,NN12 7AE,"49,786.00",Yes
Communities & Local Government,DCLG,04/04/2016,Current (non AEF) Grants to Local Authorities,Local Government & Public Services,SOUTH TYNESIDE COUNCIL,,,,345736438,5000330315,,Business Rates Relief s31 grant payments for 2014-15,NE33 2RL,"8,611.00",Yes
Communities & Local Government,DCLG,04/04/2016,Current (non AEF) Grants to Local Authorities,Local Government & Public Services,SOUTH YORKSHIRE FIRE & RESCUE AUTH,,,,424872620,5000330363,,Business Rates Relief s31 grant payments for 2014-15,S70 2HG,"5,327.00",Yes
Communities & Local Government,DCLG,04/04/2016,Current (non AEF) Grants to Local Authorities,Local Government & Public Services,SOUTHWARK LB,,,,,5000330318,,Business Rates Relief s31 grant payments for 2014-15,SE1 2QH,"288,018.00",Yes
Communities & Local Government,DCLG,04/04/2016,Current (non AEF) Grants to Local Authorities,Local Government & Public Services,STAFFORDSHIRE MOORLANDS DC,,,,232749775,5000330132,,Business Rates Relief s31 grant payments for 2014-15,ST13 6HQ,"9,340.00",Yes
Communities & Local Government,DCLG,04/04/2016,Current (non AEF) Grants to Local Authorities,Local Government & Public Services,STOKE ON TRENT CITY COUNCIL,,,,216037890,5000330325,,Business Rates Relief s31 grant payments for 2014-15,ST4 1HH,"42,906.00",Yes
Communities & Local Government,DCLG,04/04/2016,Current (non AEF) Grants to Local Authorities,Local Government & Public Services,SUFFOLK CC (SOCIAL CARE SERV) (H,,,,385614821,5000330135,,Business Rates Relief s31 grant payments for 2014-15,IP4 1LH,"30,394.00",Yes
Communities & Local Government,DCLG,04/04/2016,Current (non AEF) Grants to Local Authorities,Local Government & Public Services,SUFFOLK COASTAL DC (HSG),,,,239933203,5000330136,,Business Rates Relief s31 grant payments for 2014-15,IP12 1AU,"58,872.00",Yes
Communities & Local Government,DCLG,04/04/2016,Current (non AEF) Grants to Local Authorities,Local Government & Public Services,TEIGNBRIDGE DC,,,,236440475,5000330139,,Business Rates Relief s31 grant payments for 2014-15,TQ12 4XX,"100,568.00",Yes
Communities & Local Government,DCLG,04/04/2016,Current (non AEF) Grants to Local Authorities,Local Government & Public Services,TENDRING DC,,,,,5000330140,,Business Rates Relief s31 grant payments for 2014-15,CO15 1SE,"204,196.00",Yes
Communities & Local Government,DCLG,04/04/2016,Current (non AEF) Grants to Local Authorities,Local Government & Public Services,TORRIDGE DC,,,,,5000330145,,Business Rates Relief s31 grant payments for 2014-15,EX39 2QG,"2,493.00",Yes
Communities & Local Government,DCLG,04/04/2016,Current (non AEF) Grants to Local Authorities,Local Government & Public Services,UTTLESFORD DC,,,,424423242,5000330148,,Business Rates Relief s31 grant payments for 2014-15,CB11 4ER,"62,789.00",Yes
Communities & Local Government,DCLG,04/04/2016,Current (non AEF) Grants to Local Authorities,Local Government & Public Services,WALTHAM FOREST LB,,,,,5000330341,,Business Rates Relief s31 grant payments for 2014-15,E17 4JA,"3,553.00",Yes
Communities & Local Government,DCLG,04/04/2016,Current (non AEF) Grants to Local Authorities,Local Government & Public Services,WAVENEY DISTRICT COUNCIL,,Large,,229740980,5000330150,,Business Rates Relief s31 grant payments for 2014-15,NR32 1HS,"16,257.00",Yes
Communities & Local Government,DCLG,04/04/2016,Current (non AEF) Grants to Local Authorities,Local Government & Public Services,WELLINGBOROUGH BOROUGH COUNCIL,,Large,,230851581,5000330347,,Business Rates Relief s31 grant payments for 2014-15,NN8 1BN,"25,219.00",Yes
Communities & Local Government,DCLG,04/04/2016,Current (non AEF) Grants to Local Authorities,Local Government & Public Services,WEST DORSET DC,,,,424295350,5000330155,,Business Rates Relief s31 grant payments for 2014-15,DT1 1UZ,"59,999.00",Yes
Communities & Local Government,DCLG,04/04/2016,Current (non AEF) Grants to Local Authorities,Local Government & Public Services,WEST OXFORDSHIRE DC,,,,210401379,5000330157,,Business Rates Relief s31 grant payments for 2014-15,OX28 1NB,"110,979.00",Yes
Communities & Local Government,DCLG,04/04/2016,Current (non AEF) Grants to Local Authorities,Local Government & Public Services,WIGAN MBC,,Public Bodies,,,5000330353,,Business Rates Relief s31 grant payments for 2014-15,WN1 1AZ,"845,927.00",Yes
Communities & Local Government,DCLG,04/04/2016,Current (non AEF) Grants to Local Authorities,Local Government & Public Services,WYCHAVON DISTRICT COUNCIL,,,,232257139,5000330161,,Business Rates Relief s31 grant payments for 2014-15,WR10 1PT,"10,854.00",Yes
Communities & Local Government,DCLG,04/04/2016,Current Grants to Non Profit Bodies,Local Government & Public Services,CFOA SERVICES,,Small,,236821067,2100263412,,Payment for National Resilience Services,B77 4RD,"178,000.00",Yes
Communities & Local Government,DCLG,04/04/2016,"IT - PC, Network & Hardware",Finance,MISCO UK LTD,,Large,,500279948,5106220908,ICT Hardware,Sleeves for Asus Chromebook,NN8 6XH,"6,084.00",
Communities & Local Government,DCLG,04/04/2016,IT - Service Contracts,Finance,ARCUS GLOBAL LIMITED,,Medium,,,5106220915,IT Managed / Outsourced Services,MCIS/TESA Cloud Hosting Support 2015/16,CB4 2HY,"13,253.97",
Communities & Local Government,DCLG,04/04/2016,IT - Service Contracts,Finance,DAISY CORPORATE SERVICES LTD,,Large,,221481042,5106220944,IT Managed / Outsourced Services,FY 15/16 Transition Costs Capital,BB9 5SR,"53,913.60",
Communities & Local Government,DCLG,04/04/2016,IT - Service Contracts,Finance,DAISY CORPORATE SERVICES LTD,,Large,,221481042,5106220949,IT Managed / Outsourced Services,FY 15/16 Transition Costs Capital,BB9 5SR,"58,406.40",
Communities & Local Government,DCLG,04/04/2016,IT - Service Contracts,Finance,FUJITSU SERVICES LTD,,Large,,423375062,5106220950,IT Managed / Outsourced Services,FY 15/16 NR New Requirements,WA3 6GD,"6,131.50",
Communities & Local Government,DCLG,04/04/2016,IT - Service Contracts,Housing & Planning,DEXTROUS WEB LTD,,Micro,,211267270,5106220940,IT Managed / Outsourced Services,Hosting services,N1 7NG,868.8,
Communities & Local Government,DCLG,04/04/2016,IT - Service Contracts,Local Government & Public Services,SWIRRL IT LIMITED,,Micro,,211074993,5106220925,IT Managed / Outsourced Services,DCLG Open Data Strategy,FK7 7WT,"10,715.52",
Communities & Local Government,DCLG,04/04/2016,Publications,Finance,JONES YARRELL LEADENHALL LTD,,Large,,505670265,5106220939,Learning and Development Materials,Journal and Newspaper supply 2015-16,E3 3JH,269.75,
Communities & Local Government,DCLG,04/04/2016,Publicity,"Strategy, Communications and Private Office",JONES YARRELL LEADENHALL LTD,,Large,,505670265,5106220921,Advertising,News & Magazines for Press monitor,E3 3JH,514.86,
Communities & Local Government,DCLG,04/04/2016,Research,Housing & Planning,BUILDING RESEARCH ESTABLISHMENT,,Large,,896495033,5106220905,Research,Milestone 10: Quarterly Progress Report,WD25 9XX,"10,867.20",
Communities & Local Government,DCLG,04/04/2016,Research,Housing & Planning,BUILDING RESEARCH ESTABLISHMENT,,Large,,896495033,5106220905,Research,Part 2: Experimental Fire Testing,WD25 9XX,"20,341.20",
Communities & Local Government,DCLG,04/04/2016,Research,Housing & Planning,BUILDING RESEARCH ESTABLISHMENT,,Large,,896495033,5106220906,Research,Half Yearly Report  3,WD25 9XX,"16,388.40",
Communities & Local Government,DCLG,04/04/2016,Research,Housing & Planning,INNOVATE AT PRP LTD,,Large,,,5106220907,Research,Final reports,KT7 0QJ,"4,800.00",
Communities & Local Government,DCLG,04/04/2016,Safety equipment,Finance,CYCLESCHEME LTD,,Large,,345537935,5106220948,Clothing and Textiles,Salaried Cycle to work scheme accessorie,BA1 2LN,40,
Communities & Local Government,DCLG,04/04/2016,Services provided by other Govt Orgs,Local Government & Public Services,HOME OFFICE,,Large,,210019203,2100263405,Financial,Public Sector Transformation Network Secondments,NP20 9BB,"28,463.32",Yes
Communities & Local Government,DCLG,04/04/2016,Steady State Service Provision,Finance,CGI IT UK LIMITED,,Large,,239881618,5106220943,Business Process Outsourcing Services,Payroll Services & Licences 15/17,CF31 9AP,525.78,
Communities & Local Government,DCLG,04/04/2016,Steady State Service Provision,Finance,CGI IT UK LIMITED,,Large,,239881618,5106220946,Business Process Outsourcing Services,Payroll Services & Licences 15/17,CF31 9AP,"7,824.45",
Communities & Local Government,DCLG,04/04/2016,Steady State Service Provision,Housing & Planning,LOCALITY,,Medium,,347998312,5106220904,Business Process Outsourcing Services,Neighbourhood Planning & CRTB,N1 6DR,"101,233.46",
Communities & Local Government,DCLG,04/04/2016,Training,Finance,BPP PROFESSIONAL EDUCATION,,,,732726158,5106220934,Development and Training,Postage for training materials,W12 8AA,6,
Communities & Local Government,DCLG,04/04/2016,Training,Finance,BPP PROFESSIONAL EDUCATION,,,,732726158,5106220934,Development and Training,Professional Training JC,W12 8AA,"1,115.63",
Communities & Local Government,DCLG,04/04/2016,Training,Finance,CAPITA BUS. SERV. LTD (CSL),,Large,,215580993,5106220899,Development and Training,Regular Performance discussion/construct,DL1 9HB,"1,084.80",
Communities & Local Government,DCLG,04/04/2016,Training,Finance,CAPITA BUS. SERV. LTD (CSL),,Large,,215580993,5106220901,Development and Training,Lean Six Sigma levels Scheme,DL1 9HB,"17,134.15",
Communities & Local Government,DCLG,04/04/2016,Training,Finance,CAPITA BUS. SERV. LTD (CSL),,Large,,215580993,5106220918,Development and Training,360 Degree Feedback Tool: Grade 6 (NR),DL1 9HB,55,
Communities & Local Government,DCLG,04/04/2016,Training,Finance,CAPITA BUS. SERV. LTD (CSL),,Large,,215580993,5106220918,Development and Training,360 Degree Feedback Tool: Grade 7 (JS),DL1 9HB,55,
Communities & Local Government,DCLG,04/04/2016,Training,Finance,CAPITA BUS. SERV. LTD (CSL),,Large,,215580993,5106220918,Development and Training,360 Degree Feedback Tool: Grade 7 (SC),DL1 9HB,55,
Communities & Local Government,DCLG,04/04/2016,Training,Finance,CAPITA BUS. SERV. LTD (CSL),,Large,,215580993,5106220918,Development and Training,360 Degree Feedback Tool: Grade 7 (WR),DL1 9HB,55,
Communities & Local Government,DCLG,04/04/2016,Vehicle Maintenance,Finance,CYCLESCHEME LTD,,Large,,345537935,5106220948,Fleet Management,Salaried Cycle to work scheme,BA1 2LN,849,
Communities & Local Government,DCLG,04/04/2016,Web Services,"Strategy, Communications and Private Office",MEMSET,,Small,,641014779,5106220923,ICT Services,Mini server hosting April to June 16,GU2 7YD,449.82,
Communities & Local Government,DCLG,04/04/2016,Work In Progress Pre-Cert 40373 Spend,Decentralisation and Local Growth,CORNWALL COUNCIL,,,,,7600015332,,Revenue Grant To Be Paid,TR1 3AY,"85,946.16",Yes
Communities & Local Government,DCLG,04/04/2016,Work In Progress Pre-Cert 40373 Spend,Decentralisation and Local Growth,SCIENCE CITY YORK,,,,,7600015333,,Revenue Grant To Be Paid,YO10 5NY,"68,823.48",Yes
Communities & Local Government,DCLG,04/04/2016,Work In Progress Pre-Cert 40373 Spend,Decentralisation and Local Growth,STEPS TO WORK (WALSALL) LTD,,Medium,,,7600015330,,Revenue Grant Clawback Offset,WS1 1XN,"-11,301.21",Yes
Communities & Local Government,DCLG,04/04/2016,Work In Progress Pre-Cert 40373 Spend,Decentralisation and Local Growth,STEPS TO WORK (WALSALL) LTD,,Medium,,,7600015330,,Revenue Grant To Be Paid,WS1 1XN,"66,444.25",Yes
Communities & Local Government,DCLG,04/04/2016,Work In Progress Pre-Cert 40373 Spend,Decentralisation and Local Growth,STEPS TO WORK (WALSALL) LTD,,Medium,,,7600015331,,Revenue Grant Clawback Offset,WS1 1XN,-718.38,Yes
Communities & Local Government,DCLG,04/04/2016,Work In Progress Pre-Cert 40373 Spend,Decentralisation and Local Growth,STEPS TO WORK (WALSALL) LTD,,Medium,,,7600015331,,Revenue Grant To Be Paid,WS1 1XN,"99,756.64",Yes
Communities & Local Government,DCLG,04/04/2016,Work In Progress Pre-Cert 40467 Spend,Decentralisation and Local Growth,SCIENCE CITY YORK,,,,,7600015333,,Capital Grant Clawback Offset,YO10 5NY,"-596,166.85",Yes
Communities & Local Government,DCLG,04/04/2016,Work In Progress Pre-Cert 40467 Spend,Decentralisation and Local Growth,SCIENCE CITY YORK,,,,,7600015333,,Capital Grant To Be Paid,YO10 5NY,"1,178,017.62",Yes
Communities & Local Government,DCLG,05/04/2016,Advertising,"Strategy, Communications and Private Office",CARAT LTD,,Large,,211589882,5106220728,Advertising,HO - Media Buying,NW1 3BF,0.98,
Communities & Local Government,DCLG,05/04/2016,Advertising,"Strategy, Communications and Private Office",CARAT LTD,,Large,,211589882,5106220728,Advertising,HO - Media Spend,NW1 3BF,"1,235.28",
Communities & Local Government,DCLG,05/04/2016,Advertising,"Strategy, Communications and Private Office",CARAT LTD,,Large,,211589882,5106220987,Advertising,RTB Biddable Campaign,NW1 3BF,285.68,
Communities & Local Government,DCLG,05/04/2016,Advertising,"Strategy, Communications and Private Office",ROYAL MAIL,,Large,,212543784,5106220961,Advertising,RtB Direct Marketing Campaign,S49 1HQ,"1,261.30",
Communities & Local Government,DCLG,05/04/2016,Advertising,"Strategy, Communications and Private Office",TULLO MARSHALL WARREN LTD,,Medium,,,5106220971,Advertising,Right to Buy Marketing Contrsct 15/16,W1F 9NB,"3,880.00",
Communities & Local Government,DCLG,05/04/2016,Advertising,"Strategy, Communications and Private Office",TULLO MARSHALL WARREN LTD,,Medium,,,5106220983,Advertising,Right to Buy Marketing Contrsct 15/16,W1F 9NB,"1,900.00",
Communities & Local Government,DCLG,05/04/2016,Agency Staff,Decentralisation and Local Growth,BROOK STREET UK LTD,,Large,,364940028,5106220962,Contingent Labour,Temporary Staff to support closure,AL1 4JB,501.42,
Communities & Local Government,DCLG,05/04/2016,Agency Staff,Decentralisation and Local Growth,BROOK STREET UK LTD,,Large,,364940028,5106220963,Contingent Labour,Temporary Staff to support closure,AL1 4JB,608.28,
Communities & Local Government,DCLG,05/04/2016,Agency Staff,Decentralisation and Local Growth,BROOK STREET UK LTD,,Large,,364940028,5106220964,Contingent Labour,Temporary Staff to support closure,AL1 4JB,688.26,
Communities & Local Government,DCLG,05/04/2016,Agency Staff,Decentralisation and Local Growth,BROOK STREET UK LTD,,Large,,364940028,5106220965,Contingent Labour,Temporary Staff to support closure,AL1 4JB,608.28,
Communities & Local Government,DCLG,05/04/2016,Agency Staff,Decentralisation and Local Growth,BROOK STREET UK LTD,,Large,,364940028,5106220966,Contingent Labour,Temporary Staff to support closure,AL1 4JB,608.28,
Communities & Local Government,DCLG,05/04/2016,Agency Staff,Decentralisation and Local Growth,CAPITA BUS. SERV. LTD (CON LAB),,Large,,,5106220980,Contingent Labour,Interim Manager,DL1 9HB,"1,879.26",
Communities & Local Government,DCLG,05/04/2016,EU Cur Grnt to Priv Sect-Persons & NPISH,Local Government & Public Services,MILIEU DEVELOPMENTS LTD,,Small,,,7500025843,,1341/106/004LT/Selling Capacity in the North East,DH1 5TS,"-50,881.00",Yes
Communities & Local Government,DCLG,05/04/2016,EU Cur Grnt to Priv Sect-Persons & NPISH,Local Government & Public Services,MILIEU DEVELOPMENTS LTD,,Small,,,7500025845,,1341/106/004LC/Selling Capacity in the North East,DH1 5TS,"-778,471.00",Yes
Communities & Local Government,DCLG,05/04/2016,EU Cur Grnt to Priv Sect-Persons & NPISH,Local Government & Public Services,MILIEU DEVELOPMENTS LTD,,Small,,,7500025847,,1341/202/007C/A Thematic Approach to Environmental,DH1 5TS,"-86,300.00",Yes
Communities & Local Government,DCLG,05/04/2016,IT - Service Contracts,Finance,ARCUS GLOBAL LIMITED,,Medium,,,5106220970,IT Managed / Outsourced Services,FY15-16 DataMart HostingSer.Chgs.Jul-Mar,CB4 2HY,"32,102.11",
Communities & Local Government,DCLG,05/04/2016,IT - Service Contracts,Finance,DAISY CORPORATE SERVICES LTD,,Large,,221481042,5106220844,IT Managed / Outsourced Services,FY 15/16 Transition Costs Capital,BB9 5SR,"56,147.90",
Communities & Local Government,DCLG,05/04/2016,IT - Service Contracts,Finance,FUJITSU SERVICES LTD,,Large,,423375062,5106220847,IT Managed / Outsourced Services,NRF0269 Initial survery/design work,WA3 6GD,"20,000.00",
Communities & Local Government,DCLG,05/04/2016,IT - Service Contracts,Finance,FUJITSU SERVICES LTD,,Large,,423375062,5106220903,IT Managed / Outsourced Services,LOGASnet CRs FY15-16 10126657,WA3 6GD,"1,039.00",
Communities & Local Government,DCLG,05/04/2016,Mobile phone costs,Finance,ORANGE (AIRTIME/LINE RENTAL),,Large,,210707540,2100263419,Telecoms,Monthly Consolidated Costs Mar 2016,S98 1DX,394.85,
Communities & Local Government,DCLG,05/04/2016,Physical Storage,Finance,IRON MOUNTAIN (UK) LIMITED,,Large,,501338354,5106220974,Warehousing and Storage,Offsite Storage -Tapes 2015,EH54 7DF,424.84,
Communities & Local Government,DCLG,05/04/2016,Printing,"Strategy, Communications and Private Office",STATIONERY OFFICE LTD,,Large,,779375633,5106220845,Printing Services,Statutory Instruments Print: Non-Vatable,NR3 1PD,165,
Communities & Local Government,DCLG,05/04/2016,Printing,"Strategy, Communications and Private Office",STATIONERY OFFICE LTD,,Large,,779375633,5106220845,Printing Services,Statutory Instruments Print: Vatable,NR3 1PD,130,
Communities & Local Government,DCLG,05/04/2016,Repayments of LA Grant (Cap),Decentralisation and Local Growth,DERBYSHIRE COUNTY COUNCIL,,,,232152967,2300002434,,2172C Clawback of Regional Growth Fund,DE4 3AH,"-358,475.96",
Communities & Local Government,DCLG,05/04/2016,Subscriptions,Finance,STONEWALL EQUALITY LIMITED,,Micro,,504154204,5106220913,Subscriptions and Admissions,Stonewall Subscription 2016/17,SE1 7NX,"2,000.00",
Communities & Local Government,DCLG,05/04/2016,Training,Finance,CABINET OFFICE,,Public Bodies,,349606306,5106220968,Development and Training,Psychometric tests for FLS candidates,FY5 3TA,"2,601.00",
Communities & Local Government,DCLG,05/04/2016,Training,Finance,CABINET OFFICE,,Public Bodies,,349606306,5106220968,Development and Training,Psychometric tests for SLS candidates,FY5 3TA,"1,040.40",
Communities & Local Government,DCLG,05/04/2016,Training,Finance,CABINET OFFICE,,Public Bodies,,349606306,5106220968,Development and Training,Senior Leaders Scheme (SLS) participant,FY5 3TA,"39,000.00",
Communities & Local Government,DCLG,05/04/2016,Training,Finance,CAPITA BUS. SERV. LTD (CSL),,Large,,215580993,5106220928,Development and Training,Individually Facilitated Learning Sessio,DL1 9HB,"1,878.00",
Communities & Local Government,DCLG,05/04/2016,Training,Finance,CAPITA BUS. SERV. LTD (CSL),,Large,,215580993,5106220989,Development and Training,Presentation Skills,DL1 9HB,289,
Communities & Local Government,DCLG,05/04/2016,Training,Finance,CAPITA BUS. SERV. LTD (CSL),,Large,,215580993,5106220990,Development and Training,Training London Workshop,DL1 9HB,671,
Communities & Local Government,DCLG,05/04/2016,Training,Finance,NATIONAL COUNCIL FOR VOL ORGS,,Medium,,290082338,5106220959,Development and Training,A Day in the Life Scheme 2015/16 Program,N1 9RL,"5,000.00",
Communities & Local Government,DCLG,05/04/2016,Utilisation of Unfunded Pension Scheme,Finance,LONDON PENSIONS FUND AUTHORITY,,Public Bodies,,236915880,5106220979,Financial,Pension fund management,SE1 0LL,372.79,
Communities & Local Government,DCLG,05/04/2016,Web Services,"Strategy, Communications and Private Office",PULSION TECHNOLOGY LTD,,Small,,,5106220733,ICT Services,Hosting and maintenance  RtB website,G4 9XA,"7,920.00",
Communities & Local Government,DCLG,05/04/2016,Work In Progress Pre-Cert 40373 Spend,Decentralisation and Local Growth,CORNWALL COUNCIL,,,,,7600015335,,Revenue Grant To Be Paid,TR1 3AY,"25,390.75",Yes
Communities & Local Government,DCLG,05/04/2016,Work In Progress Pre-Cert 40373 Spend,Decentralisation and Local Growth,NORTH TYNESIDE COUNCIL,,,,,7600015336,,Revenue Grant To Be Paid,NE27 0BY,0.86,Yes
Communities & Local Government,DCLG,05/04/2016,Work In Progress Pre-Cert 40467 Spend,Decentralisation and Local Growth,NORTH TYNESIDE COUNCIL,,,,,7600015334,,Capital Grant Clawback Offset,NE27 0BY,"-89,937.59",Yes
Communities & Local Government,DCLG,05/04/2016,Work In Progress Pre-Cert 40467 Spend,Decentralisation and Local Growth,NORTH TYNESIDE COUNCIL,,,,,7600015334,,Capital Grant To Be Paid,NE27 0BY,"810,564.37",Yes
Communities & Local Government,DCLG,05/04/2016,Work In Progress Pre-Cert 40467 Spend,Decentralisation and Local Growth,NORTH TYNESIDE COUNCIL,,,,,7600015336,,Capital Grant To Be Paid,NE27 0BY,"623,670.61",Yes
Communities & Local Government,DCLG,06/04/2016,Advertising,"Strategy, Communications and Private Office",CARAT LTD,,Large,,211589882,5106220481,Advertising,HO - Media Buying,NW1 3BF,55.5,
Communities & Local Government,DCLG,06/04/2016,Advertising,"Strategy, Communications and Private Office",CARAT LTD,,Large,,211589882,5106220481,Advertising,HO - Media Spend,NW1 3BF,"72,377.05",
Communities & Local Government,DCLG,06/04/2016,Advertising,"Strategy, Communications and Private Office",CARAT SCOTLAND,,Large,,519820302,5106221025,Advertising,Fire Kills,EH1 3HU,870.73,
Communities & Local Government,DCLG,06/04/2016,Agency Staff,Decentralisation and Local Growth,CAPITA BUS. SERV. LTD (CON LAB),,Large,,,5106221001,Contingent Labour,Agency Staff costs,DL1 9HB,549.61,
Communities & Local Government,DCLG,06/04/2016,Agency Staff,Decentralisation and Local Growth,CAPITA BUS. SERV. LTD (CON LAB),,Large,,,5106221004,Contingent Labour,Interim Manager,DL1 9HB,"1,812.91",
Communities & Local Government,DCLG,06/04/2016,Agency Staff,Decentralisation and Local Growth,CAPITA BUS. SERV. LTD (CON LAB),,Large,,,5106221005,Contingent Labour,Interim Manager,DL1 9HB,"1,407.84",
Communities & Local Government,DCLG,06/04/2016,Agency Staff,Decentralisation and Local Growth,CAPITA BUS. SERV. LTD (CON LAB),,Large,,,5106221006,Contingent Labour,Agency Staff costs,DL1 9HB,18.42,
Communities & Local Government,DCLG,06/04/2016,Agency Staff,Decentralisation and Local Growth,CAPITA BUS. SERV. LTD (CON LAB),,Large,,,5106221006,Contingent Labour,Interim Manager,DL1 9HB,"1,553.71",
Communities & Local Government,DCLG,06/04/2016,Agency Staff,Decentralisation and Local Growth,CAPITA BUS. SERV. LTD (CON LAB),,Large,,,5106221007,Contingent Labour,Interim Manager,DL1 9HB,"1,780.37",
Communities & Local Government,DCLG,06/04/2016,Agency Staff,Local Government & Public Services,CAPITA BUS. SERV. LTD (CON LAB),,Large,,,5106220996,Contingent Labour,Interim Manager,DL1 9HB,"2,654.11",
Communities & Local Government,DCLG,06/04/2016,Agency Staff,Local Government & Public Services,CAPITA BUS. SERV. LTD (CON LAB),,Large,,,5106220997,Contingent Labour,Interim Staff,DL1 9HB,"1,877.95",
Communities & Local Government,DCLG,06/04/2016,Agency Staff,Local Government & Public Services,CAPITA BUS. SERV. LTD (CON LAB),,Large,,,5106221002,Contingent Labour,Interim Staff,DL1 9HB,"1,375.14",
Communities & Local Government,DCLG,06/04/2016,Current (non AEF) Grants to Local Authorities,Finance, CO DURHAM & DARLINGTON FIRE RESCUE,,Public Bodies,,211684266,2100263418,,Regional Control Centre Grant,DH1 1TW,"91,924.75",Yes
Communities & Local Government,DCLG,06/04/2016,Current (non AEF) Grants to Local Authorities,Finance,GREATER LONDON AUTHORITY,,Large,,225353416,2100263417,,Regional Control Centre Grant,SE10 1AP,"160,743.58",Yes
Communities & Local Government,DCLG,06/04/2016,Current (non AEF) Grants to Local Authorities,Finance,GREATER MANCHESTER FIRE & RESCUE,,Public Bodies,,424873172,2100263416,,Regional Control Centre Grant,M27 8US,"87,383.00",Yes
Communities & Local Government,DCLG,06/04/2016,Grant in Aid to NDPBs (non budget),Housing & Planning,EBBSFLEET DEVELOPMENT CORPORATION,,,,,2100263434,,Ebbsfleet Development Corp:Grant -in-aid,DA11 8DB,"500,000.00",Yes
Communities & Local Government,DCLG,06/04/2016,IT - Service Contracts,Finance,FUJITSU SERVICES LTD,,Large,,423375062,5106220516,IT Managed / Outsourced Services,"PINS ""NR"" New Requirements raise by PINS",WA3 6GD,"3,277.24",
Communities & Local Government,DCLG,06/04/2016,IT - Service Contracts,Finance,FUJITSU SERVICES LTD,,Large,,423375062,5106220902,IT Managed / Outsourced Services,"PINS ""NR"" New Requirements raise by PINS",WA3 6GD,"5,966.11",
Communities & Local Government,DCLG,06/04/2016,IT - Service Contracts,Finance,ICASEWORK LTD,,Large,,,5106221014,IT Managed / Outsourced Services,Monthly Fee (24 x 3833.33),NW6 7SG,"5,060.00",
Communities & Local Government,DCLG,06/04/2016,IT - Software Maintenance,Finance,SAP (UK) LTD,,Large,,396951675,5106221009,IT Managed / Outsourced Services,Exhibit 4 SAP Ent Support to 31/12/16,TW14 8HD,"16,318.80",
Communities & Local Government,DCLG,06/04/2016,IT - Software Maintenance,Finance,SAP (UK) LTD,,Large,,396951675,5106221010,IT Managed / Outsourced Services,Exhibit 1 SAP Ent Support to 31/12/16,TW14 8HD,"165,769.33",
Communities & Local Government,DCLG,06/04/2016,Office machinery consumables,Finance,NEW RICOH UK,,Large,,424537512,5106221012,Office Supplies,STAPLE REFILL CSC760B (3x5000)GEN0347,NN4 7YB,363.17,
Communities & Local Government,DCLG,06/04/2016,Printing,"Strategy, Communications and Private Office",STATIONERY OFFICE LTD,,Large,,779375633,5106221011,Printing Services,Statutory Instruments Print: Non-Vatable,NR3 1PD,165,
Communities & Local Government,DCLG,06/04/2016,Printing,"Strategy, Communications and Private Office",STATIONERY OFFICE LTD,,Large,,779375633,5106221011,Printing Services,Statutory Instruments Print: Vatable,NR3 1PD,130,
Communities & Local Government,DCLG,06/04/2016,Research,Local Government & Public Services,OFFICE FOR NATIONAL STATISTICS,,Public Bodies,,232101196,5106221008,Research,2015/16 - Milestone 3,NP10 8XG,"158,641.50",
Communities & Local Government,DCLG,06/04/2016,Research,Local Government & Public Services,UNIVERSITY OF YORK,,Large,,213292944,5106221013,Research,Research - Directly Commissioning of House Building,YO10 5DG,"29,320.00",
Communities & Local Government,DCLG,06/04/2016,Software Licences,Local Government & Public Services,STATIONERY OFFICE LTD,,Large,,779375633,5106221026,Software,Beta Phase Wks TFApplication,NR3 1PD,"324,780.00",
Communities & Local Government,DCLG,06/04/2016,Training,Finance,CAPITA BUS. SERV. LTD (CSL),,Large,,215580993,5106221015,Development and Training,Training AM Workshops,DL1 9HB,671,
Communities & Local Government,DCLG,06/04/2016,Training,Finance,CAPITA BUS. SERV. LTD (CSL),,Large,,215580993,5106221015,Development and Training,Training PM Workshops,DL1 9HB,"1,342.00",
Communities & Local Government,DCLG,06/04/2016,Training,Finance,CAPITA BUS. SERV. LTD (CSL),,Large,,215580993,5106221017,Development and Training,Curriculum Vitae (CV) and Jobsearch Work,DL1 9HB,568.18,
Communities & Local Government,DCLG,06/04/2016,Training,Finance,CAPITA BUS. SERV. LTD (CSL),,Large,,215580993,5106221017,Development and Training,Interview Techniques/Skills Workshops,DL1 9HB,"4,545.44",
Communities & Local Government,DCLG,06/04/2016,Training,Finance,CAPITA BUS. SERV. LTD (CSL),,Large,,215580993,5106221017,Development and Training,One to One Career Consultancy Sessions,DL1 9HB,681.82,
Communities & Local Government,DCLG,06/04/2016,Training,Finance,CAPITA BUS. SERV. LTD (CSL),,Large,,215580993,5106221018,Development and Training,Pre-Retirement Course,DL1 9HB,274,
Communities & Local Government,DCLG,06/04/2016,Training,Finance,SAP (UK) LTD,,Large,,396951675,5106220995,Development and Training,SAP ERP HCM,TW14 8HD,"2,850.00",
Communities & Local Government,DCLG,06/04/2016,Training,Finance,SAP (UK) LTD,,Large,,396951675,5106220999,Development and Training,SAP ERP HCM,TW14 8HD,"2,850.00",
Communities & Local Government,DCLG,06/04/2016,Travel and Subsistence Account,"Strategy, Communications and Private Office",DIAL A CAB,,Medium,,225338235,2100263427,Business Travel,Monthly Consolidated Costs Mar 2016,N1 6AH,13.56,
Communities & Local Government,DCLG,06/04/2016,Travel and Subsistence Account,"Strategy, Communications and Private Office",DIAL A CAB,,Medium,,225338235,2100263427,Business Travel,Monthly Consolidated Costs Mar 2016,N1 6AH,481.1,
Communities & Local Government,DCLG,06/04/2016,Work In Progress Pre-Cert 40373 Spend,Decentralisation and Local Growth,STEPS TO WORK (WALSALL) LTD,,Medium,,,7600015337,,Revenue Grant To Be Paid,WS1 1XN,"36,589.14",Yes
Communities & Local Government,DCLG,06/04/2016,Work In Progress Pre-Cert 40373 Spend,Decentralisation and Local Growth,STEPS TO WORK (WALSALL) LTD,,Medium,,,7600015338,,Revenue Grant To Be Paid,WS1 1XN,"35,216.68",Yes
Communities & Local Government,DCLG,06/04/2016,Work In Progress Pre-Cert 40467 Spend,Decentralisation and Local Growth,ADVANTAGE EARLY GROWTH LTD,,Small,,,2300002447,,A16 AA/WM25/13 Finding 1 - An investment of  131.3,B79 0PF,-131.39,Yes
Communities & Local Government,DCLG,06/04/2016,Work In Progress Pre-Cert 40467 Spend,Decentralisation and Local Growth,ADVANTAGE EARLY GROWTH LTD,,Small,,,2300002447,,"Project Reference: 080/FS/SP7001a, Project Name: A",B79 0PF,-183.35,Yes
Communities & Local Government,DCLG,06/04/2016,Work In Progress Pre-Cert 40467 Spend,Decentralisation and Local Growth,ADVANTAGE EARLY GROWTH LTD,,Small,,,2300002475,,Project: Advantage Early Growth Fund Augmentation,B79 0PF,"-1,417.26",Yes
Communities & Local Government,DCLG,07/04/2016,BLKD DC EU Gts (Cap) to Prvt/Sec Persons & NPISH,Decentralisation and Local Growth,NORTH ORMESBY NEIGHBOURHOOD DEV TRU,,Small,,,7500027884,,Recovery of payment,TS3 6NF,"-10,671.21",Yes
Communities & Local Government,DCLG,07/04/2016,Current (non AEF) Grants to Local Authorities,Housing & Planning,BLACKPOOL BC,,Public Bodies,,228593497,2100263440,,Preventing Homelessness,FY1 1NA,"100,000.00",Yes
Communities & Local Government,DCLG,07/04/2016,Current (non AEF) Grants to Local Authorities,Housing & Planning,DUDLEY METROPOLITAN BC,,Public Bodies,,,2100263431,,Preventing Homelessness,DY1 1HF,"100,000.00",Yes
Communities & Local Government,DCLG,07/04/2016,Current (non AEF) Grants to Local Authorities,Housing & Planning,STOKE ON TRENT CITY COUNCIL (USE 40,,,,232789425,2100263433,,Preventing Homelessness,ST4 1RF,"100,000.00",Yes
Communities & Local Government,DCLG,07/04/2016,Current (non AEF) Grants to Local Authorities,Housing & Planning,SURREY COUNTY COUNCIL,,Public Bodies,,211036447,2100263432,,Preventing Homelessness,KT1 1AB,"100,000.00",Yes
Communities & Local Government,DCLG,07/04/2016,Current (non AEF) Grants to Local Authorities,Local Government & Public Services,LB HAMMERSMITH & FULHAM,,Public Bodies,,216929489,2100263435,,Operational Costs,W6 9JU,"65,000.00",Yes
Communities & Local Government,DCLG,07/04/2016,Electricity,Finance,BRITISH INDEPENDENT UTILITIES,,Medium,,,5106221030,Energy,Utilities Revenue for RCCs,FY8 2NA,"1,527.05",
Communities & Local Government,DCLG,07/04/2016,Electricity,Finance,BRITISH INDEPENDENT UTILITIES,,Medium,,,5106221031,Energy,Utilities Revenue for RCCs,FY8 2NA,921.89,
Communities & Local Government,DCLG,07/04/2016,Grant in Aid to NDPBs (non budget),Finance,VALUATION TRIBUNAL SERVICE,,,,211218366,2100263439,,VTS,E1 8EU,"499,000.00",Yes
Communities & Local Government,DCLG,07/04/2016,Grant in Aid to NDPBs (non budget),Housing & Planning,LEASEHOLD ADVISORY SERVICE,,Small,,378000152,2100263441,,Grant in aid for Quarter 1 (April - June 2016),WT1 7BN,"277,000.00",Yes
Communities & Local Government,DCLG,07/04/2016,"IT - PC, Network & Hardware",Finance,MISCO UK LTD,,Large,,500279948,5106221028,ICT Hardware,Chrome Mgt Console Licences,NN8 6XH,"81,828.00",
Communities & Local Government,DCLG,07/04/2016,"IT - PC, Network & Hardware",Local Government & Public Services,QUEEN MARY & WESTFIELD,,Large,,578379257,5106221036,Not Addressable,Internship payment,E1 4NS,"3,000.00",
Communities & Local Government,DCLG,07/04/2016,IT - Service Contracts,Finance,FUJITSU SERVICES LTD,,Large,,423375062,5106221023,IT Managed / Outsourced Services,"FY15/16 Desktop Charges ""D""Table Charges",WA3 6GD,"-13,200.10",
Communities & Local Government,DCLG,07/04/2016,IT - Service Contracts,Finance,FUJITSU SERVICES LTD,,Large,,423375062,5106221046,IT Managed / Outsourced Services,NRF0056 LiveLink Upgrade Project,WA3 6GD,"11,868.12",
Communities & Local Government,DCLG,07/04/2016,IT - Service Contracts,Housing & Planning,ICON SOFTWARE LIMITED,,Micro,,,5106220849,IT Managed / Outsourced Services,Online Planning tool,LE14 3EN,"3,320.00",
Communities & Local Government,DCLG,07/04/2016,Professional services,Decentralisation and Local Growth,BROOK STREET UK LTD,,Large,,364940028,5106221048,Financial,Agency Staff ,AL1 4JB,525.17,
Communities & Local Government,DCLG,07/04/2016,Publicity,"Strategy, Communications and Private Office",PRESS ASSOCIATION,,Large,,217191704,5106221000,Advertising,PRESS ASSOCIATION (PA) 2014-17,DN14 7YH,"1,339.66",
Communities & Local Government,DCLG,07/04/2016,Recruitment,Local Government & Public Services,SPECIALIST RECRUITMENT SERVICES LTD,,Micro,,221711679,5106221035,Business Process Outsourcing Services,Recruitment Advert,ST18 0DS,598.8,
Communities & Local Government,DCLG,07/04/2016,Steady State Service Provision,Local Government & Public Services,VODAFONE LTD FORMELY CABLE  & WIREL,,Large,,239869688,5106221049,Business Process Outsourcing Services,Managed Internet Access Line,MK3 5JP,582.58,
Communities & Local Government,DCLG,07/04/2016,Work In Progress Pre-Cert 40373 Spend,Decentralisation and Local Growth,REDCAR & CLEVELAND BC,,,,,7600015339,,Revenue Grant To Be Paid,TS10 1YA,"97,939.79",Yes
Communities & Local Government,DCLG,07/04/2016,Work In Progress Pre-Cert 40467 Spend,Decentralisation and Local Growth,REDCAR & CLEVELAND BC,,,,,7600015339,,Capital Grant Clawback Offset,TS10 1YA,"92,532.33",Yes
Communities & Local Government,DCLG,07/04/2016,Work In Progress Pre-Cert 40467 Spend,Decentralisation and Local Growth,REDCAR & CLEVELAND BC,,,,,7600015339,,Capital Grant To Be Paid,TS10 1YA,"276,329.73",Yes
Communities & Local Government,DCLG,08/04/2016,Agency Staff,Decentralisation and Local Growth,BROOK STREET UK LTD,,Large,,364940028,5106220850,Contingent Labour,2 Temporary staff for e-claims,AL1 4JB,513.74,
Communities & Local Government,DCLG,08/04/2016,Agency Staff,Decentralisation and Local Growth,BROOK STREET UK LTD,,Large,,364940028,5106221051,Contingent Labour,Interim for Data Input,AL1 4JB,541.26,
Communities & Local Government,DCLG,08/04/2016,Agency Staff,Decentralisation and Local Growth,BROOK STREET UK LTD,,Large,,364940028,5106221052,Contingent Labour,Temporary Staff to Support GDT Project C,AL1 4JB,456.06,
Communities & Local Government,DCLG,08/04/2016,Agency Staff,Decentralisation and Local Growth,BROOK STREET UK LTD,,Large,,364940028,5106221057,Contingent Labour,Agency Staff - Brook Street,AL1 4JB,447.98,
Communities & Local Government,DCLG,08/04/2016,Agency Staff,Decentralisation and Local Growth,BROOK STREET UK LTD,,Large,,364940028,5106221062,Contingent Labour,Interim Manager,AL1 4JB,648.72,
Communities & Local Government,DCLG,08/04/2016,Agency Staff,Decentralisation and Local Growth,BROOK STREET UK LTD,,Large,,364940028,5106221066,Contingent Labour,Agency Staff 14/03/16 - 29/04/16,AL1 4JB,502.51,
Communities & Local Government,DCLG,08/04/2016,Agency Staff,Decentralisation and Local Growth,BROOK STREET UK LTD,,Large,,364940028,5106221071,Contingent Labour,Interim Manager,AL1 4JB,658.03,
Communities & Local Government,DCLG,08/04/2016,Agency Staff,Decentralisation and Local Growth,BROOK STREET UK LTD,,Large,,364940028,5106221076,Contingent Labour,2 Temporary staff for e-claims,AL1 4JB,513.74,
Communities & Local Government,DCLG,08/04/2016,Agency Staff,Decentralisation and Local Growth,BROOK STREET UK LTD,,Large,,364940028,5106221078,Contingent Labour,Agency Staff - Brook Street,AL1 4JB,378.12,
Communities & Local Government,DCLG,08/04/2016,Agency Staff,Decentralisation and Local Growth,BROOK STREET UK LTD,,Large,,364940028,5106221101,Contingent Labour,Interim for Data Input,AL1 4JB,630.42,
Communities & Local Government,DCLG,08/04/2016,Agency Staff,Finance,BROOK STREET UK LTD,,Large,,364940028,5106221054,Contingent Labour,Support worker for staff interim measure,AL1 4JB,585.16,
Communities & Local Government,DCLG,08/04/2016,Agency Staff,Finance,BROOK STREET UK LTD,,Large,,364940028,5106221058,Contingent Labour,Interim Admin support,AL1 4JB,538.4,
Communities & Local Government,DCLG,08/04/2016,Agency Staff,Finance,BROOK STREET UK LTD,,Large,,364940028,5106221059,Contingent Labour,Interim Admin support Rate Increase,AL1 4JB,447.77,
Communities & Local Government,DCLG,08/04/2016,Agency Staff,Finance,BROOK STREET UK LTD,,Large,,364940028,5106221061,Contingent Labour,Interim Admin support Rate Increase,AL1 4JB,348.26,
Communities & Local Government,DCLG,08/04/2016,Agency Staff,Finance,BROOK STREET UK LTD,,Large,,364940028,5106221063,Contingent Labour,Interim Admin support,AL1 4JB,398.02,
Communities & Local Government,DCLG,08/04/2016,Agency Staff,Finance,BROOK STREET UK LTD,,Large,,364940028,5106221064,Contingent Labour,Interim Admin support,AL1 4JB,440.35,
Communities & Local Government,DCLG,08/04/2016,Agency Staff,Finance,BROOK STREET UK LTD,,Large,,364940028,5106221065,Contingent Labour,Interim Admin support,AL1 4JB,348.26,
Communities & Local Government,DCLG,08/04/2016,Agency Staff,"Strategy, Communications and Private Office",BROOK STREET UK LTD,,Large,,364940028,5106221053,Contingent Labour,Correspondance Interim Staff  Apr 16,AL1 4JB,482.1,
Communities & Local Government,DCLG,08/04/2016,Courier Services,Finance,NATURAL ENGLAND,,Public Bodies,,212444538,5106221095,Office Solutions,Postage & Stamps Eastbrook 2015-16,YO1 7PX,"5,538.65",
Communities & Local Government,DCLG,08/04/2016,Current (non AEF) Grants to Local Authorities,Local Government & Public Services,LONDON BOROUGH OF EALING,,,,211049515,2100263436,,Operational Costs,W5 2HL,"36,000.00",Yes
Communities & Local Government,DCLG,08/04/2016,Current Grants to Non Profit Bodies,Housing & Planning,GROUNDWORK UK,Yes,,,739193758,2100263426,,Groundwork,B1 2RR,"2,200,000.00",Yes
Communities & Local Government,DCLG,08/04/2016,Electricity,Finance,WESTERN POWER DISTRIBUTION,,Large,,227499134,5106221096,Energy,Meter Operator & Comm charge 2016-17,PL4 0YU,432,
Communities & Local Government,DCLG,08/04/2016,Facilities Management (ISD use only),Finance,INTERSERVE (FACILITIES MANAGEMENT),,Large,,364834825,5106221070,Property Occupation,Offsite Management,BS32 4NH,"5,624.42",
Communities & Local Government,DCLG,08/04/2016,Grant in Aid to NDPBs (non budget),Finance,COMMISSION LOCAL ADMINISTRATION,,,,215271508,2100263413,,CLAE Grant in Aid,SW1P 4QP,"875,000.00",Yes
Communities & Local Government,DCLG,08/04/2016,"IT - PC, Network & Hardware",Finance,X M A LTD,,Large,,298484148,5106221068,ICT Hardware,Asus Chromebooks C300,NG11 7EP,"45,159.70",
Communities & Local Government,DCLG,08/04/2016,IT - Software Maintenance,Finance,ORACLE CORPORATION UK LTD,,Large,,291601524,5106221029,IT Managed / Outsourced Services,Oracle annual support 2016/17,RG6 1RA,"13,251.02",
Communities & Local Government,DCLG,08/04/2016,Legal Fees,Finance,GOVERNMENT LEGAL DEPARTMENT,,Public Bodies,,215580680,2100263442,Legal,Legal Advice,WC2B 4TS,"4,510.00",
Communities & Local Government,DCLG,08/04/2016,Legal Fees,Finance,GOVERNMENT LEGAL DEPARTMENT,,Public Bodies,,215580680,2100263443,Legal,Legal Advice,WC2B 4TS,"7,000.00",
Communities & Local Government,DCLG,08/04/2016,Legal Fees,Finance,GOVERNMENT LEGAL DEPARTMENT,,Public Bodies,,215580680,2100263444,Legal,Legal Advice,WC2B 4TS,"23,000.00",
Communities & Local Government,DCLG,08/04/2016,Office Supplies,Finance,BANNER BUSINESS SUPPLIES LTD,,Large,,236638362,5106221077,Office Supplies,Stationery for GLD,S9 1XU,341.53,
Communities & Local Government,DCLG,08/04/2016,Office Supplies,Finance,BANNER BUSINESS SUPPLIES LTD,,Large,,236638362,5106221097,Office Supplies,Stationery for GLD,S9 1XU,298.13,
Communities & Local Government,DCLG,08/04/2016,Steady State Service Provision,Local Government & Public Services,CO-OPERATIVES UK,,Small,,,5106221100,Business Process Outsourcing Services,Lot 4 Community Economic Development,M60 0AS,"183,769.45",
Communities & Local Government,DCLG,08/04/2016,Variable Maintenance < 15k,Finance,INTERSERVE (FACILITIES MANAGEMENT),,Large,,364834825,5106221060,Property Occupation,Rivergate Variable Maintenance 2015-16,BS32 4NH,279.13,
Communities & Local Government,DCLG,08/04/2016,Variable Maintenance < 15k,Finance,INTERSERVE (FACILITIES MANAGEMENT),,Large,,364834825,5106221060,Property Occupation,5 SPP Variable Maintenance 2015-16,BS32 4NH,"3,849.76",
Communities & Local Government,DCLG,08/04/2016,Variable Maintenance < 15k,Finance,INTERSERVE (FACILITIES MANAGEMENT),,Large,,364834825,5106221070,Property Occupation,TQH Pass Through 2015-16,BS32 4NH,114.95,
Communities & Local Government,DCLG,08/04/2016,Variable Maintenance < 15k,Finance,INTERSERVE (FACILITIES MANAGEMENT),,Large,,364834825,5106221070,Property Occupation,Rivergate Pass Through 2015-16,BS32 4NH,"3,846.08",
Communities & Local Government,DCLG,08/04/2016,Variable Maintenance < 15k,Finance,INTERSERVE (FACILITIES MANAGEMENT),,Large,,364834825,5106221070,Property Occupation,Citygate Pass Through 2015-16,BS32 4NH,"1,247.93",
Communities & Local Government,DCLG,08/04/2016,Variable Maintenance < 15k,Finance,INTERSERVE (FACILITIES MANAGEMENT),,Large,,364834825,5106221070,Property Occupation,5 SPP Pass Through 2015-16,BS32 4NH,"2,309.56",
Communities & Local Government,DCLG,08/04/2016,Variable Maintenance < 15k,Finance,INTERSERVE (FACILITIES MANAGEMENT),,Large,,364834825,5106221070,Property Occupation,2 MS Pass Through 2015-16,BS32 4NH,"1,876.73",
Communities & Local Government,DCLG,08/04/2016,Variable Maintenance < 15k,Finance,INTERSERVE (FACILITIES MANAGEMENT),,Large,,364834825,5106221070,Property Occupation,High Trees Pass Through 2015-16,BS32 4NH,"1,645.42",
Communities & Local Government,DCLG,08/04/2016,Work In Progress Pre-Cert 40373 Spend,Decentralisation and Local Growth,CORNWALL DEVELOPMENT COMPANY,,,,,7600015340,,Revenue Grant Clawback Offset,TR15 3QG,"-73,149.56",Yes
Communities & Local Government,DCLG,08/04/2016,Work In Progress Pre-Cert 40373 Spend,Decentralisation and Local Growth,CORNWALL DEVELOPMENT COMPANY,,,,,7600015340,,Revenue Grant To Be Paid,TR15 3QG,"495,043.42",Yes
Communities & Local Government,DCLG,08/04/2016,Work In Progress Pre-Cert 40373 Spend,Decentralisation and Local Growth,CORNWALL DEVELOPMENT COMPANY,,,,,7600015341,,Revenue Grant To Be Paid,TR15 3QG,"3,148.00",Yes
Communities & Local Government,DCLG,11/04/2016,Agency Staff,Decentralisation and Local Growth,CAPITA BUS. SERV. LTD (CON LAB),,Large,,,5106221106,Contingent Labour,Interim Manager,DL1 9HB,"1,503.41",
Communities & Local Government,DCLG,11/04/2016,Agency Staff,Decentralisation and Local Growth,CAPITA BUS. SERV. LTD (CON LAB),,Large,,,5106221109,Contingent Labour,Agency Staff,DL1 9HB,"1,370.69",
Communities & Local Government,DCLG,11/04/2016,Agency Staff,Decentralisation and Local Growth,CAPITA BUS. SERV. LTD (CON LAB),,Large,,,5106221110,Contingent Labour,Agency Staff,DL1 9HB,812.26,
Communities & Local Government,DCLG,11/04/2016,Agency Staff,Decentralisation and Local Growth,CAPITA BUS. SERV. LTD (CON LAB),,Large,,,5106221111,Contingent Labour,Agency Staff,DL1 9HB,"2,670.55",
Communities & Local Government,DCLG,11/04/2016,Agency Staff,Decentralisation and Local Growth,CAPITA BUS. SERV. LTD (CON LAB),,Large,,,5106221113,Contingent Labour,Interim Manager,DL1 9HB,"1,867.26",
Communities & Local Government,DCLG,11/04/2016,Agency Staff,Decentralisation and Local Growth,CAPITA BUS. SERV. LTD (CON LAB),,Large,,,5106221114,Contingent Labour,Agency Staff costs,DL1 9HB,152.16,
Communities & Local Government,DCLG,11/04/2016,Agency Staff,Decentralisation and Local Growth,CAPITA BUS. SERV. LTD (CON LAB),,Large,,,5106221114,Contingent Labour,Interim Manager,DL1 9HB,"1,812.34",
Communities & Local Government,DCLG,11/04/2016,Agency Staff,Decentralisation and Local Growth,CAPITA BUS. SERV. LTD (CON LAB),,Large,,,5106221119,Contingent Labour,Interim Manager,DL1 9HB,"7,143.01",
Communities & Local Government,DCLG,11/04/2016,Agency Staff,Finance,CAPITA BUS. SERV. LTD (CON LAB),,Large,,,5106221112,Contingent Labour,76 days  377.69 starts 6/12 ends 26/3/16,DL1 9HB,"7,251.65",
Communities & Local Government,DCLG,11/04/2016,Agency Staff,Finance,CAPITA BUS. SERV. LTD (CON LAB),,Large,,,5106221120,Contingent Labour,start date 6/3/16 - end dates 19/11/16,DL1 9HB,"2,454.62",
Communities & Local Government,DCLG,11/04/2016,Agency Staff,Local Government & Public Services,CAPITA BUS. SERV. LTD (CON LAB),,Large,,,5106221108,Contingent Labour,Interim Staff,DL1 9HB,"1,877.95",
Communities & Local Government,DCLG,11/04/2016,Agency Staff,Local Government & Public Services,CAPITA BUS. SERV. LTD (CON LAB),,Large,,,5106221116,Contingent Labour,Interim Manager,DL1 9HB,"2,654.11",
Communities & Local Government,DCLG,11/04/2016,Agency Staff,Local Government & Public Services,CAPITA BUS. SERV. LTD (CON LAB),,Large,,,5106221121,Contingent Labour,Interim Staff,DL1 9HB,"1,100.11",
Communities & Local Government,DCLG,11/04/2016,Cap Grants to Local Authorities (DEL),Decentralisation and Local Growth,BATH & NE SOMERSET DC (HSG),,,,214502499,5000330407,,Local Growth Fund,BA1 5AW,"42,406,588.00",Yes
Communities & Local Government,DCLG,11/04/2016,Cap Grants to Local Authorities (DEL),Decentralisation and Local Growth,BIRMINGHAM CITY CNCL,,,,213780559,5000330412,,Local Growth Fund,B2 2AJ,"49,175,485.00",Yes
Communities & Local Government,DCLG,11/04/2016,Cap Grants to Local Authorities (DEL),Decentralisation and Local Growth,BUCKINGHAMSHIRE CC,,,,293750923,5000330413,,Local Growth Fund,HP20 1UD,"17,492,367.00",Yes
Communities & Local Government,DCLG,11/04/2016,Cap Grants to Local Authorities (DEL),Decentralisation and Local Growth,CAMBRIDGESHIRE COUNTY CNCL,,,,219047347,5000330414,,Local Growth Fund,CB3 0AP,"28,943,252.00",Yes
Communities & Local Government,DCLG,11/04/2016,Cap Grants to Local Authorities (DEL),Decentralisation and Local Growth,CHESHIRE EAST COUNCIL,,Large,,,5000330441,,Local Growth Fund,CW11 1HZ,"45,787,235.00",Yes
Communities & Local Government,DCLG,11/04/2016,Cap Grants to Local Authorities (DEL),Decentralisation and Local Growth,CORNWALL UNITARY AUTHORITY,,,,211334404,5000330443,,Local Growth Fund,TR1 3AY,"27,596,794.00",Yes
Communities & Local Government,DCLG,11/04/2016,Cap Grants to Local Authorities (DEL),Decentralisation and Local Growth,COVENTRY CITY CNCL,,,,210384802,5000330415,,Local Growth Fund,CV1 2QL,"23,506,663.00",Yes
Communities & Local Government,DCLG,11/04/2016,Cap Grants to Local Authorities (DEL),Decentralisation and Local Growth,CUMBRIA COUNTY CNCL,,,,211316542,5000330416,,Local Growth Fund,CA3 8NA,"19,556,536.00",Yes
Communities & Local Government,DCLG,11/04/2016,Cap Grants to Local Authorities (DEL),Decentralisation and Local Growth,DERBYSHIRE COUNTYCOUNCIL,,,,232152967,5000330417,,Local Growth Fund,DE4 3AG,"55,400,930.00",Yes
Communities & Local Government,DCLG,11/04/2016,Cap Grants to Local Authorities (DEL),Decentralisation and Local Growth,DORSET COUNTY CNCL,,,,225431279,5000330418,,Local Growth Fund,DT1 1XJ,"12,306,635.00",Yes
Communities & Local Government,DCLG,11/04/2016,Cap Grants to Local Authorities (DEL),Decentralisation and Local Growth,ESSEX COUNTY CNCL,,,,233572986,5000330419,,Local Growth Fund,CM1 1JZ,"82,270,227.00",Yes
Communities & Local Government,DCLG,11/04/2016,Cap Grants to Local Authorities (DEL),Decentralisation and Local Growth,GLOUCESTERSHIRE COUNTY CNCL,,,,211272067,5000330420,,Local Growth Fund,GL1 2TG,"23,079,605.00",Yes
Communities & Local Government,DCLG,11/04/2016,Cap Grants to Local Authorities (DEL),Decentralisation and Local Growth,GREATER LONDON AUTHORITY,,,,,5000330444,,Local Growth Fund,SE10 1AJ,"77,528,400.00",Yes
Communities & Local Government,DCLG,11/04/2016,Cap Grants to Local Authorities (DEL),Decentralisation and Local Growth,GTR MANCHESTER COMBINED AUTHORITY,,Public Bodies,,,2100263533,,Local Growth Fund 2016-17 GMCA,M60 2LA,"75,468,156.00",Yes
Communities & Local Government,DCLG,11/04/2016,Cap Grants to Local Authorities (DEL),Decentralisation and Local Growth,HAMPSHIRE COUNTY COUNCIL,,,,211325832,5000330421,,Local Growth Fund,SO23 8UB,"40,811,647.00",Yes
Communities & Local Government,DCLG,11/04/2016,Cap Grants to Local Authorities (DEL),Decentralisation and Local Growth,HERTFORDSHIRE COUNTY CNCL,,,,210659897,5000330422,,Local Growth Fund,SG13 8DQ,"13,836,191.00",Yes
Communities & Local Government,DCLG,11/04/2016,Cap Grants to Local Authorities (DEL),Decentralisation and Local Growth,HULL CITY COUNCIL,,,,217460984,5000330423,,Local Growth Fund,HU1 2AA,"39,045,912.00",Yes
Communities & Local Government,DCLG,11/04/2016,Cap Grants to Local Authorities (DEL),Decentralisation and Local Growth,LANCASHIRE COUNTY CNCL,,,,233136584,5000330424,,Local Growth Fund,PR1 8RD,"53,403,418.00",Yes
Communities & Local Government,DCLG,11/04/2016,Cap Grants to Local Authorities (DEL),Decentralisation and Local Growth,LEICESTER CITY CNCL,,,,228219960,5000330408,,Local Growth Fund,LE1 1FZ,"31,844,736.00",Yes
Communities & Local Government,DCLG,11/04/2016,Cap Grants to Local Authorities (DEL),Decentralisation and Local Growth,LINCOLNSHIRE COUNTY COUNCIL,,,,,5000330425,,Local Growth Fund,LN1 1YT,"39,863,787.00",Yes
Communities & Local Government,DCLG,11/04/2016,Cap Grants to Local Authorities (DEL),Decentralisation and Local Growth,LIVERPOOL CITY COUNCIL,,,,,5000330426,,Local Growth Fund,L2 2DH,"71,205,482.00",Yes
Communities & Local Government,DCLG,11/04/2016,Cap Grants to Local Authorities (DEL),Decentralisation and Local Growth,LUTON BC,,,,365112155,5000330427,,Local Growth Fund,LU1 2BQ,"16,083,392.00",Yes
Communities & Local Government,DCLG,11/04/2016,Cap Grants to Local Authorities (DEL),Decentralisation and Local Growth,NORTH EAST COMBINED AUTHORITY,,,,,2100263438,,Local Growth Fund,NE27 0BY,"79,401,982.00",Yes
Communities & Local Government,DCLG,11/04/2016,Cap Grants to Local Authorities (DEL),Decentralisation and Local Growth,NORTH YORKSHIRE CC (DL7 8AL),,,,,5000330428,,Local Growth Fund,DL7 8AL,"12,922,184.00",Yes
Communities & Local Government,DCLG,11/04/2016,Cap Grants to Local Authorities (DEL),Decentralisation and Local Growth,NORTHAMPTONSHIRE COUNTY COUNCIL,,,,,5000330429,,Local Growth Fund,CB3 0AP,"26,954,876.00",Yes
Communities & Local Government,DCLG,11/04/2016,Cap Grants to Local Authorities (DEL),Decentralisation and Local Growth,OXFORDSHIRE CC,,,,228216438,5000330430,,Local Growth Fund,OX1 1TH,"27,440,526.00",Yes
Communities & Local Government,DCLG,11/04/2016,Cap Grants to Local Authorities (DEL),Decentralisation and Local Growth,PORTSMOUTH CITY COUNCIL,,Large,,211183082,5000330431,,Local Growth Fund,PO1 2AR,"42,640,334.00",Yes
Communities & Local Government,DCLG,11/04/2016,Cap Grants to Local Authorities (DEL),Decentralisation and Local Growth,SHEFFIELD CITY CNCL,,,,,5000330432,,Local Growth Fund,S1 1UJ,"75,122,442.00",Yes
Communities & Local Government,DCLG,11/04/2016,Cap Grants to Local Authorities (DEL),Decentralisation and Local Growth,SHROPSHIRE UNITARY AUTHORITY,,,,217036490,5000330442,,Local Growth Fund,SY2 6ND,"30,023,451.00",Yes
Communities & Local Government,DCLG,11/04/2016,Cap Grants to Local Authorities (DEL),Decentralisation and Local Growth,SOMERSET COUNTY CNCL,,,,211229406,5000330433,,Local Growth Fund,TA1 4DY,"56,700,418.00",Yes
Communities & Local Government,DCLG,11/04/2016,Cap Grants to Local Authorities (DEL),Decentralisation and Local Growth,STAFFORDSHIRE COUNTY CNCL,,Public Bodies,,,5000330434,,Local Growth Fund,ST16 2DH,"33,356,869.00",Yes
Communities & Local Government,DCLG,11/04/2016,Cap Grants to Local Authorities (DEL),Decentralisation and Local Growth,STOCKTON-ON-TEES BC (HSG),,,,,5000330409,,Local Growth Fund,TS23 2YS,"37,798,786.00",Yes
Communities & Local Government,DCLG,11/04/2016,Cap Grants to Local Authorities (DEL),Decentralisation and Local Growth,SUFFOLK CC (SOCIAL CARE SERV) (H,,,,385614821,5000330410,,Local Growth Fund,IP4 1LH,"38,548,555.00",Yes
Communities & Local Government,DCLG,11/04/2016,Cap Grants to Local Authorities (DEL),Decentralisation and Local Growth,WALSALL MBC,,,,212515585,5000330435,,Local Growth Fund,WS1 1TW,"45,951,957.00",Yes
Communities & Local Government,DCLG,11/04/2016,Cap Grants to Local Authorities (DEL),Decentralisation and Local Growth,WEST SUSSEX CC,,Public Bodies,,232198762,5000330436,,Local Growth Fund,PO19 1RG,"53,774,557.00",Yes
Communities & Local Government,DCLG,11/04/2016,Cap Grants to Local Authorities (DEL),Decentralisation and Local Growth,WEST YORKSHIRE PTA,,,,228016648,5000330439,,Local Growth Fund,LS1 2DE,"127,657,838.00",Yes
Communities & Local Government,DCLG,11/04/2016,Cap Grants to Local Authorities (DEL),Decentralisation and Local Growth,WILTSHIRE COUNCIL,,,,211341656,5000330440,,Local Growth Fund,BA14 4DS,"10,214,948.00",Yes
Communities & Local Government,DCLG,11/04/2016,Cap Grants to Local Authorities (DEL),Decentralisation and Local Growth,WINDSOR & MAIDENHEAD (HSG),,,,227411998,5000330411,,Local Growth Fund,SL6 1RF,"20,211,758.00",Yes
Communities & Local Government,DCLG,11/04/2016,Cap Grants to Local Authorities (DEL),Decentralisation and Local Growth,WORCESTERSHIRE COUNTY COUNCIL,,,,230359643,5000330437,,Local Growth Fund,WR5 2NP,"24,152,509.00",Yes
Communities & Local Government,DCLG,11/04/2016,Current Grants to Non Profit Bodies,Local Government & Public Services,CARLISLE YOUTH ZONE,,,,,2100263483,,Storm Desmond Eva Charity Match Funding,CA1 1LR,"72,000.00",Yes
Communities & Local Government,DCLG,11/04/2016,Current Grants to Non Profit Bodies,Local Government & Public Services,COMMUNITY FOUNDATION FOR CALDERDALE,,Small,,,2100263495,,Storm Desmond Eva Charity Match Funding,HX1 2NG,"1,509,404.07",Yes
Communities & Local Government,DCLG,11/04/2016,Current Grants to Non Profit Bodies,Local Government & Public Services,CUMBRIA COMMUNITY FOUNDATION,,,,,2100263490,,Storm Desmond Eva Charity Match Funding,CA13 0PN,"3,800,000.00",Yes
Communities & Local Government,DCLG,11/04/2016,Current Grants to Non Profit Bodies,Local Government & Public Services,FOUNDATIONS IND LIVING TRUST LTD,,Micro,,,2100263482,,Storm Desmond Eva Charity Match Funding,SK13 7AG,"14,120.00",Yes
Communities & Local Government,DCLG,11/04/2016,Current Grants to Non Profit Bodies,Local Government & Public Services,MARINE SOCIETY AND SEA CADETS,,Medium,,,2100263493,,Storm Desmond Eva Charity Match Funding,SE1 7JW,"22,615.00",Yes
Communities & Local Government,DCLG,11/04/2016,Current Grants to Non Profit Bodies,Local Government & Public Services,NATIONAL FLOOD FORUM,,,,,2100263481,,Storm Desmond Eva Charity Match Funding,DY12 2EL,"2,054.46",Yes
Communities & Local Government,DCLG,11/04/2016,Current Grants to Non Profit Bodies,Local Government & Public Services,ROTARY CLUB OF KESWICK TRUST FUND,,,,,2100263479,,Storm Desmond Eva Charity Match Funding,CA12 5RZ,"117,835.00",Yes
Communities & Local Government,DCLG,11/04/2016,Current Grants to Non Profit Bodies,Local Government & Public Services,ROTARY CLUB OF RAMSBOTTOM,,,,,2100263484,,Storm Desmond Eva Charity Match Funding,BB4 4DW,"8,824.52",Yes
Communities & Local Government,DCLG,11/04/2016,Current Grants to Non Profit Bodies,Local Government & Public Services,SALFORD COMMUNITY & VOLUNTARY SERV,,Small,,,2100263488,,Storm Desmond Eva Charity Match Funding,M30 0FN,"2,872.17",Yes
Communities & Local Government,DCLG,11/04/2016,Current Grants to Non Profit Bodies,Local Government & Public Services,SAXTON CRICKET CLUB,,Micro,,,2100263486,,Storm Desmond Eva Charity Match Funding,LS24 9TA,"5,000.00",Yes
Communities & Local Government,DCLG,11/04/2016,IT - Service Contracts,Finance,DAISY CORPORATE SERVICES LTD,,Large,,221481042,5106221131,IT Managed / Outsourced Services,Telephony New Requirements,BB9 5SR,"5,501.02",
Communities & Local Government,DCLG,11/04/2016,IT - Service Contracts,Finance,DAISY CORPORATE SERVICES LTD,,Large,,221481042,5106221132,IT Managed / Outsourced Services,3mth service extension to 30/9/16,BB9 5SR,"90,144.11",
Communities & Local Government,DCLG,11/04/2016,Office Supplies,Finance,ROYAL MAIL,,Large,,212543784,5106221102,Office Supplies,Timed delivery postal service,S49 1HQ,944.4,
Communities & Local Government,DCLG,11/04/2016,Research,Local Government & Public Services,NATIONAL CENTRE FOR SOCIAL RESEARCH,,Large,,424047426,5106221133,Research,Research - English Housing Survey,EC1V 0AX,"40,907.36",
Communities & Local Government,DCLG,11/04/2016,Research,Local Government & Public Services,NATIONAL CENTRE FOR SOCIAL RESEARCH,,Large,,424047426,5106221135,Research,Research - English Housing Survey,EC1V 0AX,"142,740.10",
Communities & Local Government,DCLG,11/04/2016,Research,Local Government & Public Services,NATIONAL CENTRE FOR SOCIAL RESEARCH,,Large,,424047426,5106221136,Research,Research - English Housing Survey,EC1V 0AX,"27,259.03",
Communities & Local Government,DCLG,11/04/2016,Research,Local Government & Public Services,NATIONAL CENTRE FOR SOCIAL RESEARCH,,Large,,424047426,5106221136,Research,Research - English Housing Survey,EC1V 0AX,"131,631.03",
Communities & Local Government,DCLG,11/04/2016,Services provided by other Govt Orgs,Local Government & Public Services,HOME OFFICE,,Large,,210019203,2100263485,Financial,Public Service Transformation Network Secondments,NP20 9BB,"21,048.59",Yes
Communities & Local Government,DCLG,11/04/2016,Steady State Service Provision,Finance,VODAFONE LTD FORMELY CABLE  & WIREL,,Large,,239869688,5106221128,Business Process Outsourcing Services,PSN WAN Services FY17/18,MK3 5JP,"23,290.57",
Communities & Local Government,DCLG,11/04/2016,Steady State Service Provision,Housing & Planning,SAFFRON HOUSING TRUST,,Large,,,5106221115,Business Process Outsourcing Services,Voluntary Right to Buy Pilot,NR15 2XP,"108,397.87",
Communities & Local Government,DCLG,11/04/2016,Steady State Service Provision,Housing & Planning,SAFFRON HOUSING TRUST,,Large,,,5106221117,Business Process Outsourcing Services,Voluntary Right to Buy Pilot,NR15 2XP,"99,557.27",
Communities & Local Government,DCLG,11/04/2016,Steady State Service Provision,Housing & Planning,SAFFRON HOUSING TRUST,,Large,,,5106221118,Business Process Outsourcing Services,Voluntary Right to Buy Pilot,NR15 2XP,"78,631.06",
Communities & Local Government,DCLG,11/04/2016,Training,Finance,OFFICE FOR NATIONAL STATISTICS,,Public Bodies,,232101196,5106221122,Development and Training,GSS Statistical Foundation Course,NP10 8XG,"1,000.00",
Communities & Local Government,DCLG,12/04/2016,Advertising,"Strategy, Communications and Private Office",CARAT LTD,,Large,,211589882,5106221168,Advertising,Media Planning agency fees for Neighbour,NW1 3BF,884.66,
Communities & Local Government,DCLG,12/04/2016,Agency Staff,Finance,INTERQUEST GROUP UK LIMITED,,Large,,423935241,5106221167,Contingent Labour,Increase in funds to April 2016,EC1N 8UA,"17,730.00",
Communities & Local Government,DCLG,12/04/2016,Current Grants to Non Profit Bodies,Local Government & Public Services,CANALS &  RIVER TRUST,,,,,2100263491,,Storm Desmond Eva Charity Match Funding,MK9 1BB,"64,881.00",Yes
Communities & Local Government,DCLG,12/04/2016,Current Grants to Non Profit Bodies,Local Government & Public Services,CROSTON OLD SCHOOL,,,,,2100263535,,Storm Desmond Eva Charity Match Funding,PR26 9HA,"57,000.00",Yes
Communities & Local Government,DCLG,12/04/2016,Current Grants to Non Profit Bodies,Local Government & Public Services,HAYDON BRIDGE & HAYDON PARISH DEV T,Yes,Micro,,,2100263534,,Storm Desmond Eva Charity Match Funding,NE47 6HW,"11,869.76",Yes
Communities & Local Government,DCLG,12/04/2016,Current Grants to Non Profit Bodies,Local Government & Public Services,INSTITUTE FOR GOVERNMENT,,Small,,,2100263532,,Local join-up of public services,SW1Y 5AA,"50,000.00",Yes
Communities & Local Government,DCLG,12/04/2016,Current Grants to Non Profit Bodies,Local Government & Public Services,LEEDS COMMUNITY FOUNDATION,,Small,,,2100263536,,Storm Desmond Eva Charity Match Funding,LS1 2TE,"236,889.00",Yes
Communities & Local Government,DCLG,12/04/2016,Current Grants to Non Profit Bodies,Local Government & Public Services,LITTLEBOROUGH & DISTRICT LIONS CLUB,,,,,2100263537,,Storm Desmond Eva Charity Match Funding,OL15 8RE,"5,610.00",Yes
Communities & Local Government,DCLG,12/04/2016,Current Grants to Non Profit Bodies,Local Government & Public Services,NORTHUMBERLAND COUNTY YOUTH CRICKET,,,,,2100263480,,Storm Desmond Eva Charity Match Funding,NE4 9LG,"2,255.18",Yes
Communities & Local Government,DCLG,12/04/2016,Current Grants to Non Profit Bodies,Local Government & Public Services,TWO RIDINGS COMMUNITY FOUNDATION,Yes,,,,2100263494,,Storm Desmond Eva Charity Match Funding,YO10 5DG,"790,450.00",Yes
Communities & Local Government,DCLG,12/04/2016,Current Grants to Non Profit Bodies,Local Government & Public Services,YORK ARCHAEOLOGICAL TRUST FOR,,,,,2100263489,,Storm Desmond Eva Charity Match Funding,YO1 7BX,"14,736.00",Yes
Communities & Local Government,DCLG,12/04/2016,Grant in Aid to NDPBs (non budget),Housing & Planning,HOMES & COMMUNITIES AGENCY,,Public Bodies,,215576860,2100263538,,Monthly HCA Grant in Aid claim,NE11 0NA,"29,171,291.00",Yes
Communities & Local Government,DCLG,12/04/2016,IT - Service Contracts,Finance,FUJITSU SERVICES LTD,,Large,,423375062,5106221188,IT Managed / Outsourced Services,"PINS ""NR"" New Requirements raise by PINS",WA3 6GD,"5,054.00",
Communities & Local Government,DCLG,12/04/2016,IT Maintenance,Finance,INFORMATION SECURITY SYSTEMS LTD,,Micro,,735620416,5106221075,ICT Services,Brent Telephony Support 2014-16,HP12 3RL,"4,550.00",
Communities & Local Government,DCLG,12/04/2016,Professional services,Finance,GVA GRIMLEY LTD,,Large,,210158990,5106221152,Business Support,Com 009 Prov of Treasury Mngmt Services,B1 2JB,"2,875.00",
Communities & Local Government,DCLG,12/04/2016,Professional services,Finance,GVA GRIMLEY LTD,,Large,,210158990,5106221153,Business Support,Com 26 Valuation of Burlington House,B1 2JB,"9,000.00",
Communities & Local Government,DCLG,12/04/2016,Professional services,Finance,GVA GRIMLEY LTD,,Large,,210158990,5106221153,Business Support,Com 26 Valuation of QEIICC,B1 2JB,"9,000.00",
Communities & Local Government,DCLG,12/04/2016,Professional services,Finance,GVA GRIMLEY LTD,,Large,,210158990,5106221154,Business Support,Com 027 FSC Houses/Land Valuation 2016,B1 2JB,"6,600.00",
Communities & Local Government,DCLG,12/04/2016,Professional services,Finance,GVA GRIMLEY LTD,,Large,,210158990,5106221156,Business Support,Com 006 Snr Surveyor Resource (JL),B1 2JB,"3,600.00",
Communities & Local Government,DCLG,12/04/2016,Professional services,Finance,GVA GRIMLEY LTD,,Large,,210158990,5106221157,Business Support,Com 007 Snr Surveyor Resource (SD),B1 2JB,"5,700.00",
Communities & Local Government,DCLG,12/04/2016,Professional services,Finance,GVA GRIMLEY LTD,,Large,,210158990,5106221158,Business Support,Com 009 Prov of Treasury Mngmt Services,B1 2JB,"2,875.00",
Communities & Local Government,DCLG,12/04/2016,Research,Housing & Planning,VALUATION OFFICE AGENCY,,Public Bodies,,215253886,5106220998,Research,VOA Research Work,W1D 5BU,"3,000.00",
Communities & Local Government,DCLG,12/04/2016,Software Licences,Local Government & Public Services,SCRAPERWIKI LTD,,Micro,,,5106221105,Software,Data Science Platform,L3 5RF,"27,000.00",
Communities & Local Government,DCLG,12/04/2016,Steady State Service Provision,Finance,ALLPAY LIMITED,,Medium,,738359918,5106221184,Business Process Outsourcing Services,1Monthly Management Fee Payments,HR1 3SE,600,
Communities & Local Government,DCLG,12/04/2016,Steady State Service Provision,Finance,ALLPAY LIMITED,,Medium,,738359918,5106221184,Business Process Outsourcing Services,DC/DC Transaction Charges,HR1 3SE,549,
Communities & Local Government,DCLG,12/04/2016,Steady State Service Provision,Finance,ALLPAY LIMITED,,Medium,,738359918,5106221185,Business Process Outsourcing Services,1Monthly Management Fee Payments,HR1 3SE,500,
Communities & Local Government,DCLG,12/04/2016,Steady State Service Provision,Finance,ALLPAY LIMITED,,Medium,,738359918,5106221185,Business Process Outsourcing Services,DC/DC Transaction Charges,HR1 3SE,516.65,
Communities & Local Government,DCLG,12/04/2016,Steady State Service Provision,Finance,ALLPAY LIMITED,,Medium,,738359918,5106221186,Business Process Outsourcing Services,1Monthly Management Fee Payments,HR1 3SE,500,
Communities & Local Government,DCLG,12/04/2016,Steady State Service Provision,Finance,ALLPAY LIMITED,,Medium,,738359918,5106221186,Business Process Outsourcing Services,DC/DC Transaction Charges,HR1 3SE,428.15,
Communities & Local Government,DCLG,12/04/2016,Training,Finance,ARCHIVES & RECORDS ASSCN (UK & IRE),,Micro,,774811954,5106221180,Development and Training,ARA conference 31 Aug - 2 Sept,TA1 1SW,500,
Communities & Local Government,DCLG,12/04/2016,Training,Finance,CAPITA BUS. SERV. LTD (CSL),,Large,,215580993,5106221067,Development and Training,One to One Career Consultancy Sessions,DL1 9HB,-681.82,
Communities & Local Government,DCLG,12/04/2016,Training,Finance,CAPITA BUS. SERV. LTD (CSL),,Large,,215580993,5106221159,Development and Training,Regular Performance discussion/construct,DL1 9HB,"4,232.00",
Communities & Local Government,DCLG,12/04/2016,Training,Finance,CAPITA BUS. SERV. LTD (CSL),,Large,,215580993,5106221160,Development and Training,Lean Six Sigma levels Scheme,DL1 9HB,"4,512.20",
Communities & Local Government,DCLG,12/04/2016,Training,Finance,STONEWALL EQUALITY LIMITED,,Micro,,504154204,5106221155,Development and Training,LGBT training,SE1 7NX,"6,000.00",
Communities & Local Government,DCLG,12/04/2016,Water,Finance,SEVERN TRENT WATER LTD,,Large,,234404465,5106221164,Operation of Water Supplies and Distribution,2015/16 St Philips B ham Annual Water,CV3 9FJ,585.06,
Communities & Local Government,DCLG,13/04/2016,Advertising,"Strategy, Communications and Private Office",CARAT LTD,,Large,,211589882,5106220325,Advertising,Right to Buy Digital Display,NW1 3BF,"43,010.95",
Communities & Local Government,DCLG,13/04/2016,Advertising,"Strategy, Communications and Private Office",CARAT LTD,,Large,,211589882,5106221039,Advertising,HO - Media Buying,NW1 3BF,13.3,
Communities & Local Government,DCLG,13/04/2016,Advertising,"Strategy, Communications and Private Office",CARAT LTD,,Large,,211589882,5106221039,Advertising,HO - Media Spend,NW1 3BF,"16,699.86",
Communities & Local Government,DCLG,13/04/2016,Advertising,"Strategy, Communications and Private Office",CARAT SCOTLAND,,Large,,519820302,5106221169,Advertising,Fire Kills,EH1 3HU,720,
Communities & Local Government,DCLG,13/04/2016,Capital Grants to People Non Profit,Local Government & Public Services,ULLESKELF VILLAGE HALL &,,Micro,,,2100263492,,Storm Desmond Eva Charity Match Funding,LS24 9DU,"8,000.00",Yes
Communities & Local Government,DCLG,13/04/2016,Courier Services,Finance,SWISS POST SOLUTIONS,,Large,,,5106221107,Office Solutions,Offsite Mail Screening Screening Service,TW10 6TP,"9,432.00",
Communities & Local Government,DCLG,13/04/2016,Current Grants to Non Profit Bodies,Local Government & Public Services,MEET AT ROYAL BRITISH LEGION,,,,,2100263487,,Storm Desmond Eva Charity Match Funding,CA11 8TT,"3,046.80",Yes
Communities & Local Government,DCLG,13/04/2016,IT - Software Maintenance,Finance,COMPUTACENTER (UK) LTD,,Large,,226023463,5106221240,IT Managed / Outsourced Services,IBM Cognos support renewal 16/17,AL10 9TW,"35,874.24",
Communities & Local Government,DCLG,13/04/2016,IT - Software Maintenance,Finance,LOCKHEED MARTIN BUSINESS TECH SOLUT,,Large,,399909910,5106221214,IT Managed / Outsourced Services,MCIS/TESA support services FY15/16,G3 8EP,"48,108.00",
Communities & Local Government,DCLG,13/04/2016,IT - Software Maintenance,Finance,MARKLOGIC CORPORATION,,Large,,,5106221191,IT Managed / Outsourced Services,Annual S ware Supt Chgs FY16/17 E-Claims,CA 94070,"43,560.00",
Communities & Local Government,DCLG,13/04/2016,Printing,"Strategy, Communications and Private Office",STATIONERY OFFICE LTD,,Large,,779375633,5106221234,Printing Services,Statutory Instruments Print: Non-Vatable,NR3 1PD,165,
Communities & Local Government,DCLG,13/04/2016,Printing,"Strategy, Communications and Private Office",STATIONERY OFFICE LTD,,Large,,779375633,5106221234,Printing Services,Statutory Instruments Print: Vatable,NR3 1PD,130,
Communities & Local Government,DCLG,13/04/2016,Printing,"Strategy, Communications and Private Office",STATIONERY OFFICE LTD,,Large,,779375633,5106221235,Printing Services,Statutory Instruments Print: Non-Vatable,NR3 1PD,165,
Communities & Local Government,DCLG,13/04/2016,Printing,"Strategy, Communications and Private Office",STATIONERY OFFICE LTD,,Large,,779375633,5106221235,Printing Services,Statutory Instruments Print: Vatable,NR3 1PD,130,
